Workbook

Sheet Read Me
B2: Residential Heat Density
B4: The following active template can be used to derive residential heat density across your local authority area.
B5: This template is to be used in conjunction with the methodology set out in the heat opportunities mapping section and Project Sheet G of the toolkit.
B7: Index:
B9: Sheet Title: | C9: Sheet Contents:
B10: Res_Heat_Density | C10: Residential Heat Density calculator tool
B14: Notes:
B16: Note A: | C16: The Output Area code and the Total Heat Density should be entered into GIS. Further details of how this step is achieved can be found in Sheet G, Step 2.3 of the toolkit.
B18: Other comments:
C20: The number of dwellings per output area has been derived from 2011 census data.
C21: Gas consumption data is for the year 2013, available from the following link:
C22: https://www.gov.uk/government/statistics/lower-and-middle-super-output-areas-gas-consumption

Sheet Res_Heat_Density
D2: Residential Heat Density
A4: Please select | D4: Filter the table below by local authority to provide an estimate for residential heat density across your study area.
D6: Input | E6: Cell requiring data input.
D7: Information | E7: Cell used in calculating output - displayed for information only.
D8: Output | E8: Result cell.
D10: The table should be filtered by column 1 only.
D12: 1 | E12: 2 | F12: 3 | G12: 4 | H12: 5 | I12: 6 | J12: 7 | K12: 8 | L12: 9 | M12: 10 | O12: 11 | P12: 12 | Q12: 13
A13: Anglesey | F13: See Note A | Q13: See Note A
A14: Blaenau Gwent | D14: Local Authority | E14: Lower Super Output Area Name | F14: Output Area Code | G14: Lower Super Output Area Code | H14: Consumption in Lower Super Output Area [kWh] | I14: Dwellings in LSOA | J14: Average Consumption /Dwelling [kWh] | K14: Dwellings in Output Area | L14: Total Consumption in Output Area [kWh] | M14: Total Consumption in Output Area [MWh] | N14: Total Demand in Output Area [MWh] | O14: Total Heat in Output Area [MW] | P14: Size of Output Area [km2] | Q14: Residential Heat Density [MW/km2]
A15: Bridgend | D15: Anglesey | E15: Isle of Anglesey 007A | F15: W00000191 | G15: W01000001 | H15: =IFERROR(VLOOKUP($G15,RHD_LSOA_Lookup,2,FALSE),0) -> 0 | I15: =IFERROR(VLOOKUP($G15,RHD_LSOA_Lookup,3,FALSE),0) -> 0 | J15: =IFERROR(VLOOKUP($G15,RHD_LSOA_Lookup,4,FALSE),VLOOKUP($D15,gap_lookup,2,FALSE)) -> 12,195 | K15: =VLOOKUP($F15,dwellings_lookup,2,FALSE) -> 279 | L15: =J15*K15 -> 3,402,428 | M15: =L15/1000 -> 3,402 | N15: =M15*0.8 -> 2,722 | O15: =N15/(24*365) -> 0.31 | P15: =VLOOKUP($F15,lookup_area,10,FALSE) -> 0.12 | Q15: =O15/VLOOKUP($F15,lookup_area,10,FALSE) -> 2.64
A16: Caerphilly | D16: Anglesey | E16: Isle of Anglesey 007A | F16: W00000002 | G16: W01000001 | H16: 0 | I16: 0 | J16: 12,195 | K16: 156 | L16: 1,902,433 | M16: 1,902 | N16: =M16*0.8 -> 1,522 | O16: 0.17 | P16: 0.52 | Q16: 0.33
A17: Cardiff | D17: Anglesey | E17: Isle of Anglesey 007A | F17: W00000190 | G17: W01000001 | H17: 0 | I17: 0 | J17: 12,195 | K17: 249 | L17: 3,036,575 | M17: 3,037 | N17: 2,429 | O17: 0.28 | P17: 1.14 | Q17: 0.24
A18: Carmarthenshire | D18: Anglesey | E18: Isle of Anglesey 007A | F18: W00000001 | G18: W01000001 | H18: 0 | I18: 0 | J18: 12,195 | K18: 189 | L18: 2,304,871 | M18: 2,305 | N18: 1,844 | O18: 0.21 | P18: 29.02 | Q18: 0.01
A19: Ceredigion | D19: Anglesey | E19: Isle of Anglesey 007B | F19: W00000189 | G19: W01000002 | H19: 0 | I19: 0 | J19: 12,195 | K19: 144 | L19: 1,756,092 | M19: 1,756 | N19: 1,405 | O19: 0.16 | P19: 0.20 | Q19: 0.82
A20: Conwy | D20: Anglesey | E20: Isle of Anglesey 007B | F20: W00000188 | G20: W01000002 | H20: 0 | I20: 0 | J20: 12,195 | K20: 181 | L20: 2,207,310 | M20: 2,207 | N20: 1,766 | O20: 0.20 | P20: 0.96 | Q20: 0.21
A21: Denbighshire | D21: Anglesey | E21: Isle of Anglesey 007B | F21: W00000003 | G21: W01000002 | H21: 0 | I21: 0 | J21: 12,195 | K21: 172 | L21: 2,097,554 | M21: 2,098 | N21: 1,678 | O21: 0.19 | P21: 2.13 | Q21: 0.09
A22: Flintshire | D22: Anglesey | E22: Isle of Anglesey 007B | F22: W00000004 | G22: W01000002 | H22: 0 | I22: 0 | J22: 12,195 | K22: 201 | L22: 2,451,212 | M22: 2,451 | N22: 1,961 | O22: 0.22 | P22: 7.56 | Q22: 0.03
A23: Gwynedd | D23: Anglesey | E23: Isle of Anglesey 001A | F23: W00000006 | G23: W01000003 | H23: 12,009,967 | I23: 1,079 | J23: 11,131 | K23: 175 | L23: 1,947,925 | M23: 1,948 | N23: 1,558 | O23: 0.18 | P23: 0.11 | Q23: 1.64
A24: Merthyr Tydfil | D24: Anglesey | E24: Isle of Anglesey 001A | F24: W00009977 | G24: W01000003 | H24: 12,009,967 | I24: 1,079 | J24: 11,131 | K24: 121 | L24: 1,346,851 | M24: 1,347 | N24: 1,077 | O24: 0.12 | P24: 0.11 | Q24: 1.13
A25: Monmouthshire | D25: Anglesey | E25: Isle of Anglesey 001A | F25: W00009980 | G25: W01000003 | H25: 12,009,967 | I25: 1,079 | J25: 11,131 | K25: 130 | L25: 1,447,030 | M25: 1,447 | N25: 1,158 | O25: 0.13 | P25: 0.14 | Q25: 0.96
A26: Neath Port Talbot | D26: Anglesey | E26: Isle of Anglesey 001A | F26: W00000009 | G26: W01000003 | H26: 12,009,967 | I26: 1,079 | J26: 11,131 | K26: 193 | L26: 2,148,283 | M26: 2,148 | N26: 1,719 | O26: 0.20 | P26: 0.35 | Q26: 0.56
A27: Newport | D27: Anglesey | E27: Isle of Anglesey 001A | F27: W00000008 | G27: W01000003 | H27: 12,009,967 | I27: 1,079 | J27: 11,131 | K27: 131 | L27: 1,458,161 | M27: 1,458 | N27: 1,167 | O27: 0.13 | P27: 0.29 | Q27: 0.47
A28: Pembrokeshire | D28: Anglesey | E28: Isle of Anglesey 001A | F28: W00009978 | G28: W01000003 | H28: 12,009,967 | I28: 1,079 | J28: 11,131 | K28: 129 | L28: 1,435,899 | M28: 1,436 | N28: 1,149 | O28: 0.13 | P28: 0.33 | Q28: 0.40
A29: Powys | D29: Anglesey | E29: Isle of Anglesey 001A | F29: W00009979 | G29: W01000003 | H29: 12,009,967 | I29: 1,079 | J29: 11,131 | K29: 122 | L29: 1,357,982 | M29: 1,358 | N29: 1,086 | O29: 0.12 | P29: 0.32 | Q29: 0.39
A30: Rhonnda Cynon Taff | D30: Anglesey | E30: Isle of Anglesey 001A | F30: W00000005 | G30: W01000003 | H30: 12,009,967 | I30: 1,079 | J30: 11,131 | K30: 233 | L30: 2,593,523 | M30: 2,594 | N30: 2,075 | O30: 0.24 | P30: 1.04 | Q30: 0.23
A31: Swansea | D31: Anglesey | E31: Isle of Anglesey 001B | F31: W00000012 | G31: W01000004 | H31: 5,496,881 | I31: 399 | J31: 13,777 | K31: 148 | L31: 2,038,996 | M31: 2,039 | N31: 1,631 | O31: 0.19 | P31: 0.93 | Q31: 0.20
A32: The Vale of Glamorgan | D32: Anglesey | E32: Isle of Anglesey 001B | F32: W00000013 | G32: W01000004 | H32: 5,496,881 | I32: 399 | J32: 13,777 | K32: 177 | L32: 2,438,529 | M32: 2,439 | N32: 1,951 | O32: 0.22 | P32: 1.26 | Q32: 0.18
A33: Torfaen | D33: Anglesey | E33: Isle of Anglesey 001B | F33: W00000010 | G33: W01000004 | H33: 5,496,881 | I33: 399 | J33: 13,777 | K33: 144 | L33: 1,983,888 | M33: 1,984 | N33: 1,587 | O33: 0.18 | P33: 1.17 | Q33: 0.16
A34: Wrexham | D34: Anglesey | E34: Isle of Anglesey 001B | F34: W00000011 | G34: W01000004 | H34: 5,496,881 | I34: 399 | J34: 13,777 | K34: 135 | L34: 1,859,895 | M34: 1,860 | N34: 1,488 | O34: 0.17 | P34: 12.16 | Q34: 0.01
D35: Anglesey | E35: Isle of Anglesey 005A | F35: W00000017 | G35: W01000005 | H35: 11,122,081 | I35: 902 | J35: 12,330 | K35: 165 | L35: 2,034,450 | M35: 2,034 | N35: 1,628 | O35: 0.19 | P35: 0.05 | Q35: 4.02
D36: Anglesey | E36: Isle of Anglesey 005A | F36: W00000020 | G36: W01000005 | H36: 11,122,081 | I36: 902 | J36: 12,330 | K36: 132 | L36: 1,627,560 | M36: 1,628 | N36: 1,302 | O36: 0.15 | P36: 0.05 | Q36: 3.30
D37: Anglesey | E37: Isle of Anglesey 005A | F37: W00000019 | G37: W01000005 | H37: 11,122,081 | I37: 902 | J37: 12,330 | K37: 170 | L37: 2,096,100 | M37: 2,096 | N37: 1,677 | O37: 0.19 | P37: 0.13 | Q37: 1.45
D38: Anglesey | E38: Isle of Anglesey 005A | F38: W00000016 | G38: W01000005 | H38: 11,122,081 | I38: 902 | J38: 12,330 | K38: 121 | L38: 1,491,930 | M38: 1,492 | N38: 1,194 | O38: 0.14 | P38: 0.15 | Q38: 0.88
D39: Anglesey | E39: Isle of Anglesey 005A | F39: W00000018 | G39: W01000005 | H39: 11,122,081 | I39: 902 | J39: 12,330 | K39: 136 | L39: 1,676,880 | M39: 1,677 | N39: 1,342 | O39: 0.15 | P39: 0.17 | Q39: 0.88
D40: Anglesey | E40: Isle of Anglesey 005A | F40: W00000021 | G40: W01000005 | H40: 11,122,081 | I40: 902 | J40: 12,330 | K40: 153 | L40: 1,886,490 | M40: 1,886 | N40: 1,509 | O40: 0.17 | P40: 0.34 | Q40: 0.51
D41: Anglesey | E41: Isle of Anglesey 005A | F41: W00000015 | G41: W01000005 | H41: 11,122,081 | I41: 902 | J41: 12,330 | K41: 138 | L41: 1,701,540 | M41: 1,702 | N41: 1,361 | O41: 0.16 | P41: 2.41 | Q41: 0.06
D42: Anglesey | E42: Isle of Anglesey 005A | F42: W00000014 | G42: W01000005 | H42: 11,122,081 | I42: 902 | J42: 12,330 | K42: 117 | L42: 1,442,610 | M42: 1,443 | N42: 1,154 | O42: 0.13 | P42: 5.26 | Q42: 0.03
D43: Anglesey | E43: Isle of Anglesey 006A | F43: W00000022 | G43: W01000006 | H43: 396,957 | I43: 36 | J43: 11,027 | K43: 151 | L43: 1,665,077 | M43: 1,665 | N43: 1,332 | O43: 0.15 | P43: 2.44 | Q43: 0.06
D44: Anglesey | E44: Isle of Anglesey 006A | F44: W00000025 | G44: W01000006 | H44: 396,957 | I44: 36 | J44: 11,027 | K44: 113 | L44: 1,246,051 | M44: 1,246 | N44: 997 | O44: 0.11 | P44: 2.22 | Q44: 0.05
D45: Anglesey | E45: Isle of Anglesey 006A | F45: W00000026 | G45: W01000006 | H45: 396,957 | I45: 36 | J45: 11,027 | K45: 126 | L45: 1,389,402 | M45: 1,389 | N45: 1,112 | O45: 0.13 | P45: 7.55 | Q45: 0.02
D46: Anglesey | E46: Isle of Anglesey 006A | F46: W00000023 | G46: W01000006 | H46: 396,957 | I46: 36 | J46: 11,027 | K46: 141 | L46: 1,554,807 | M46: 1,555 | N46: 1,244 | O46: 0.14 | P46: 8.63 | Q46: 0.02
D47: Anglesey | E47: Isle of Anglesey 006A | F47: W00000024 | G47: W01000006 | H47: 396,957 | I47: 36 | J47: 11,027 | K47: 165 | L47: 1,819,455 | M47: 1,819 | N47: 1,456 | O47: 0.17 | P47: 14.23 | Q47: 0.01
D48: Anglesey | E48: Isle of Anglesey 009A | F48: W00000031 | G48: W01000007 | H48: 0 | I48: 0 | J48: 12,195 | K48: 170 | L48: 2,073,164 | M48: 2,073 | N48: 1,659 | O48: 0.19 | P48: 2.81 | Q48: 0.07
D49: Anglesey | E49: Isle of Anglesey 009A | F49: W00000029 | G49: W01000007 | H49: 0 | I49: 0 | J49: 12,195 | K49: 147 | L49: 1,792,677 | M49: 1,793 | N49: 1,434 | O49: 0.16 | P49: 2.71 | Q49: 0.06
D50: Anglesey | E50: Isle of Anglesey 009A | F50: W00000027 | G50: W01000007 | H50: 0 | I50: 0 | J50: 12,195 | K50: 160 | L50: 1,951,213 | M50: 1,951 | N50: 1,561 | O50: 0.18 | P50: 7.59 | Q50: 0.02
D51: Anglesey | E51: Isle of Anglesey 009A | F51: W00000030 | G51: W01000007 | H51: 0 | I51: 0 | J51: 12,195 | K51: 174 | L51: 2,121,944 | M51: 2,122 | N51: 1,698 | O51: 0.19 | P51: 12.82 | Q51: 0.02
D52: Anglesey | E52: Isle of Anglesey 009A | F52: W00000028 | G52: W01000007 | H52: 0 | I52: 0 | J52: 12,195 | K52: 156 | L52: 1,902,433 | M52: 1,902 | N52: 1,522 | O52: 0.17 | P52: 14.95 | Q52: 0.01
D53: Anglesey | E53: Isle of Anglesey 008A | F53: W00000032 | G53: W01000008 | H53: 6,952,874 | I53: 518 | J53: 13,423 | K53: 121 | L53: 1,624,183 | M53: 1,624 | N53: 1,299 | O53: 0.15 | P53: 0.06 | Q53: 2.67
D54: Anglesey | E54: Isle of Anglesey 008A | F54: W00000036 | G54: W01000008 | H54: 6,952,874 | I54: 518 | J54: 13,423 | K54: 118 | L54: 1,583,914 | M54: 1,584 | N54: 1,267 | O54: 0.14 | P54: 0.06 | Q54: 2.36
D55: Anglesey | E55: Isle of Anglesey 008A | F55: W00000034 | G55: W01000008 | H55: 6,952,874 | I55: 518 | J55: 13,423 | K55: 123 | L55: 1,651,029 | M55: 1,651 | N55: 1,321 | O55: 0.15 | P55: 0.10 | Q55: 1.49
D56: Anglesey | E56: Isle of Anglesey 008A | F56: W00000033 | G56: W01000008 | H56: 6,952,874 | I56: 518 | J56: 13,423 | K56: 138 | L56: 1,852,374 | M56: 1,852 | N56: 1,482 | O56: 0.17 | P56: 0.53 | Q56: 0.32
D57: Anglesey | E57: Isle of Anglesey 008A | F57: W00000035 | G57: W01000008 | H57: 6,952,874 | I57: 518 | J57: 13,423 | K57: 146 | L57: 1,959,758 | M57: 1,960 | N57: 1,568 | O57: 0.18 | P57: 1.14 | Q57: 0.16
D58: Anglesey | E58: Isle of Anglesey 007C | F58: W00000041 | G58: W01000009 | H58: 0 | I58: 0 | J58: 12,195 | K58: 124 | L58: 1,512,190 | M58: 1,512 | N58: 1,210 | O58: 0.14 | P58: 0.11 | Q58: 1.22
D59: Anglesey | E59: Isle of Anglesey 007C | F59: W00000038 | G59: W01000009 | H59: 0 | I59: 0 | J59: 12,195 | K59: 197 | L59: 2,402,431 | M59: 2,402 | N59: 1,922 | O59: 0.22 | P59: 0.82 | Q59: 0.27
D60: Anglesey | E60: Isle of Anglesey 007C | F60: W00000040 | G60: W01000009 | H60: 0 | I60: 0 | J60: 12,195 | K60: 141 | L60: 1,719,507 | M60: 1,720 | N60: 1,376 | O60: 0.16 | P60: 2.37 | Q60: 0.07
D61: Anglesey | E61: Isle of Anglesey 007C | F61: W00000039 | G61: W01000009 | H61: 0 | I61: 0 | J61: 12,195 | K61: 161 | L61: 1,963,408 | M61: 1,963 | N61: 1,571 | O61: 0.18 | P61: 4.27 | Q61: 0.04
D62: Anglesey | E62: Isle of Anglesey 007C | F62: W00000037 | G62: W01000009 | H62: 0 | I62: 0 | J62: 12,195 | K62: 202 | L62: 2,463,407 | M62: 2,463 | N62: 1,971 | O62: 0.22 | P62: 16.10 | Q62: 0.01
D63: Anglesey | E63: Isle of Anglesey 002A | F63: W00000042 | G63: W01000010 | H63: 0 | I63: 0 | J63: 12,195 | K63: 147 | L63: 1,792,677 | M63: 1,793 | N63: 1,434 | O63: 0.16 | P63: 0.16 | Q63: 1.04
D64: Anglesey | E64: Isle of Anglesey 002A | F64: W00000047 | G64: W01000010 | H64: 0 | I64: 0 | J64: 12,195 | K64: 148 | L64: 1,804,872 | M64: 1,805 | N64: 1,444 | O64: 0.16 | P64: 0.24 | Q64: 0.69
D65: Anglesey | E65: Isle of Anglesey 002A | F65: W00000043 | G65: W01000010 | H65: 0 | I65: 0 | J65: 12,195 | K65: 161 | L65: 1,963,408 | M65: 1,963 | N65: 1,571 | O65: 0.18 | P65: 0.37 | Q65: 0.48
D66: Anglesey | E66: Isle of Anglesey 002A | F66: W00000045 | G66: W01000010 | H66: 0 | I66: 0 | J66: 12,195 | K66: 152 | L66: 1,853,652 | M66: 1,854 | N66: 1,483 | O66: 0.17 | P66: 0.50 | Q66: 0.34
D67: Anglesey | E67: Isle of Anglesey 002A | F67: W00000046 | G67: W01000010 | H67: 0 | I67: 0 | J67: 12,195 | K67: 140 | L67: 1,707,312 | M67: 1,707 | N67: 1,366 | O67: 0.16 | P67: 0.67 | Q67: 0.23
D68: Anglesey | E68: Isle of Anglesey 002A | F68: W00000044 | G68: W01000010 | H68: 0 | I68: 0 | J68: 12,195 | K68: 261 | L68: 3,182,916 | M68: 3,183 | N68: 2,546 | O68: 0.29 | P68: 3.34 | Q68: 0.09
D69: Anglesey | E69: Isle of Anglesey 008B | F69: W00000050 | G69: W01000011 | H69: 7,875,672 | I69: 572 | J69: 13,769 | K69: 146 | L69: 2,010,274 | M69: 2,010 | N69: 1,608 | O69: 0.18 | P69: 0.08 | Q69: 2.43
D70: Anglesey | E70: Isle of Anglesey 008B | F70: W00000048 | G70: W01000011 | H70: 7,875,672 | I70: 572 | J70: 13,769 | K70: 187 | L70: 2,574,803 | M70: 2,575 | N70: 2,060 | O70: 0.24 | P70: 0.11 | Q70: 2.22
D71: Anglesey | E71: Isle of Anglesey 008B | F71: W00000049 | G71: W01000011 | H71: 7,875,672 | I71: 572 | J71: 13,769 | K71: 168 | L71: 2,313,192 | M71: 2,313 | N71: 1,851 | O71: 0.21 | P71: 0.18 | Q71: 1.17
D72: Anglesey | E72: Isle of Anglesey 008B | F72: W00000051 | G72: W01000011 | H72: 7,875,672 | I72: 572 | J72: 13,769 | K72: 151 | L72: 2,079,119 | M72: 2,079 | N72: 1,663 | O72: 0.19 | P72: 0.63 | Q72: 0.30
D73: Anglesey | E73: Isle of Anglesey 006B | F73: W00000053 | G73: W01000012 | H73: 9,259,729 | I73: 676 | J73: 13,698 | K73: 179 | L73: 2,451,942 | M73: 2,452 | N73: 1,962 | O73: 0.22 | P73: 0.20 | Q73: 1.10
D74: Anglesey | E74: Isle of Anglesey 006B | F74: W00000054 | G74: W01000012 | H74: 9,259,729 | I74: 676 | J74: 13,698 | K74: 130 | L74: 1,780,740 | M74: 1,781 | N74: 1,425 | O74: 0.16 | P74: 0.19 | Q74: 0.84
D75: Anglesey | E75: Isle of Anglesey 006B | F75: W00000056 | G75: W01000012 | H75: 9,259,729 | I75: 676 | J75: 13,698 | K75: 145 | L75: 1,986,210 | M75: 1,986 | N75: 1,589 | O75: 0.18 | P75: 0.62 | Q75: 0.29
D76: Anglesey | E76: Isle of Anglesey 006B | F76: W00000052 | G76: W01000012 | H76: 9,259,729 | I76: 676 | J76: 13,698 | K76: 122 | L76: 1,671,156 | M76: 1,671 | N76: 1,337 | O76: 0.15 | P76: 0.63 | Q76: 0.24
D77: Anglesey | E77: Isle of Anglesey 006B | F77: W00000055 | G77: W01000012 | H77: 9,259,729 | I77: 676 | J77: 13,698 | K77: 145 | L77: 1,986,210 | M77: 1,986 | N77: 1,589 | O77: 0.18 | P77: 2.09 | Q77: 0.09
D78: Anglesey | E78: Isle of Anglesey 005B | F78: W00000059 | G78: W01000013 | H78: 10,034,250 | I78: 620 | J78: 16,184 | K78: 131 | L78: 2,120,104 | M78: 2,120 | N78: 1,696 | O78: 0.19 | P78: 0.05 | Q78: 3.55
D79: Anglesey | E79: Isle of Anglesey 005B | F79: W00000057 | G79: W01000013 | H79: =IFERROR(VLOOKUP($G79,RHD_LSOA_Lookup,2,FALSE),0) -> 10,034,250 | I79: =IFERROR(VLOOKUP($G79,RHD_LSOA_Lookup,3,FALSE),0) -> 620 | J79: =IFERROR(VLOOKUP($G79,RHD_LSOA_Lookup,4,FALSE),VLOOKUP($D79,gap_lookup,2,FALSE)) -> 16,184 | K79: =VLOOKUP($F79,dwellings_lookup,2,FALSE) -> 152 | L79: =J79*K79 -> 2,459,968 | M79: =L79/1000 -> 2,460 | N79: 1,968 | O79: =N79/(24*365) -> 0.22 | P79: =VLOOKUP($F79,lookup_area,10,FALSE) -> 0.12 | Q79: =O79/VLOOKUP($F79,lookup_area,10,FALSE) -> 1.81
D80: Anglesey | E80: Isle of Anglesey 005B | F80: W00000060 | G80: W01000013 | H80: 10,034,250 | I80: 620 | J80: 16,184 | K80: 144 | L80: 2,330,496 | M80: 2,330 | N80: =M80*0.8 -> 1,864 | O80: 0.21 | P80: 0.43 | Q80: 0.50
D81: Anglesey | E81: Isle of Anglesey 005B | F81: W00000061 | G81: W01000013 | H81: 10,034,250 | I81: 620 | J81: 16,184 | K81: 139 | L81: 2,249,576 | M81: 2,250 | N81: 1,800 | O81: 0.21 | P81: 0.60 | Q81: 0.34
D82: Anglesey | E82: Isle of Anglesey 005B | F82: W00000058 | G82: W01000013 | H82: 10,034,250 | I82: 620 | J82: 16,184 | K82: 175 | L82: 2,832,200 | M82: 2,832 | N82: 2,266 | O82: 0.26 | P82: 1.43 | Q82: 0.18
D83: Anglesey | E83: Isle of Anglesey 005B | F83: W00000063 | G83: W01000013 | H83: 10,034,250 | I83: 620 | J83: 16,184 | K83: 135 | L83: 2,184,840 | M83: 2,185 | N83: 1,748 | O83: 0.20 | P83: 5.16 | Q83: 0.04
D84: Anglesey | E84: Isle of Anglesey 005B | F84: W00000062 | G84: W01000013 | H84: 10,034,250 | I84: 620 | J84: 16,184 | K84: 170 | L84: 2,751,280 | M84: 2,751 | N84: 2,201 | O84: 0.25 | P84: 15.33 | Q84: 0.02
D85: Anglesey | E85: Isle of Anglesey 006C | F85: W00000069 | G85: W01000014 | H85: 10,133,065 | I85: 862 | J85: 11,755 | K85: 151 | L85: 1,775,005 | M85: 1,775 | N85: 1,420 | O85: 0.16 | P85: 0.06 | Q85: 2.68
D86: Anglesey | E86: Isle of Anglesey 006C | F86: W00000066 | G86: W01000014 | H86: 10,133,065 | I86: 862 | J86: 11,755 | K86: 132 | L86: 1,551,660 | M86: 1,552 | N86: 1,241 | O86: 0.14 | P86: 0.08 | Q86: 1.71
D87: Anglesey | E87: Isle of Anglesey 006C | F87: W00000065 | G87: W01000014 | H87: 10,133,065 | I87: 862 | J87: 11,755 | K87: 141 | L87: 1,657,455 | M87: 1,657 | N87: 1,326 | O87: 0.15 | P87: 0.12 | Q87: 1.26
D88: Anglesey | E88: Isle of Anglesey 006C | F88: W00000068 | G88: W01000014 | H88: 10,133,065 | I88: 862 | J88: 11,755 | K88: 185 | L88: 2,174,675 | M88: 2,175 | N88: 1,740 | O88: 0.20 | P88: 0.45 | Q88: 0.44
D89: Anglesey | E89: Isle of Anglesey 006C | F89: W00000067 | G89: W01000014 | H89: 10,133,065 | I89: 862 | J89: 11,755 | K89: 214 | L89: 2,515,570 | M89: 2,516 | N89: 2,012 | O89: 0.23 | P89: 1.35 | Q89: 0.17
D90: Anglesey | E90: Isle of Anglesey 006C | F90: W00000064 | G90: W01000014 | H90: 10,133,065 | I90: 862 | J90: 11,755 | K90: 107 | L90: 1,257,785 | M90: 1,258 | N90: 1,006 | O90: 0.11 | P90: 3.20 | Q90: 0.04
D91: Anglesey | E91: Isle of Anglesey 008C | F91: W00000070 | G91: W01000015 | H91: 8,978,598 | I91: 660 | J91: 13,604 | K91: 175 | L91: 2,380,700 | M91: 2,381 | N91: 1,905 | O91: 0.22 | P91: 0.09 | Q91: 2.55
D92: Anglesey | E92: Isle of Anglesey 008C | F92: W00000074 | G92: W01000015 | H92: 8,978,598 | I92: 660 | J92: 13,604 | K92: 116 | L92: 1,578,064 | M92: 1,578 | N92: 1,262 | O92: 0.14 | P92: 0.08 | Q92: 1.87
D93: Anglesey | E93: Isle of Anglesey 008C | F93: W00000072 | G93: W01000015 | H93: 8,978,598 | I93: 660 | J93: 13,604 | K93: 121 | L93: 1,646,084 | M93: 1,646 | N93: 1,317 | O93: 0.15 | P93: 0.11 | Q93: 1.41
D94: Anglesey | E94: Isle of Anglesey 008C | F94: W00000073 | G94: W01000015 | H94: 8,978,598 | I94: 660 | J94: 13,604 | K94: 122 | L94: 1,659,688 | M94: 1,660 | N94: 1,328 | O94: 0.15 | P94: 0.41 | Q94: 0.37
D95: Anglesey | E95: Isle of Anglesey 008C | F95: W00000071 | G95: W01000015 | H95: 8,978,598 | I95: 660 | J95: 13,604 | K95: 148 | L95: 2,013,392 | M95: 2,013 | N95: 1,611 | O95: 0.18 | P95: 1.10 | Q95: 0.17
D96: Anglesey | E96: Isle of Anglesey 003A | F96: W00000075 | G96: W01000016 | H96: 7,090,641 | I96: 634 | J96: 11,184 | K96: 140 | L96: 1,565,760 | M96: 1,566 | N96: 1,253 | O96: 0.14 | P96: 0.03 | Q96: 4.26
D97: Anglesey | E97: Isle of Anglesey 003A | F97: W00000078 | G97: W01000016 | H97: 7,090,641 | I97: 634 | J97: 11,184 | K97: 131 | L97: 1,465,104 | M97: 1,465 | N97: 1,172 | O97: 0.13 | P97: 0.03 | Q97: 4.04
D98: Anglesey | E98: Isle of Anglesey 003A | F98: W00000076 | G98: W01000016 | H98: 7,090,641 | I98: 634 | J98: 11,184 | K98: 181 | L98: 2,024,304 | M98: 2,024 | N98: 1,619 | O98: 0.18 | P98: 0.05 | Q98: 3.67
D99: Anglesey | E99: Isle of Anglesey 003A | F99: W00000077 | G99: W01000016 | H99: 7,090,641 | I99: 634 | J99: 11,184 | K99: 190 | L99: 2,124,960 | M99: 2,125 | N99: 1,700 | O99: 0.19 | P99: 0.14 | Q99: 1.40
D100: Anglesey | E100: Isle of Anglesey 003B | F100: W00000081 | G100: W01000017 | H100: 7,902,279 | I100: 737 | J100: 10,722 | K100: 140 | L100: 1,501,080 | M100: 1,501 | N100: 1,201 | O100: 0.14 | P100: 0.06 | Q100: 2.20
D101: Anglesey | E101: Isle of Anglesey 003B | F101: W00000080 | G101: W01000017 | H101: 7,902,279 | I101: 737 | J101: 10,722 | K101: 123 | L101: 1,318,806 | M101: 1,319 | N101: 1,055 | O101: 0.12 | P101: 0.06 | Q101: 2.16
D102: Anglesey | E102: Isle of Anglesey 003B | F102: W00000079 | G102: W01000017 | H102: 7,902,279 | I102: 737 | J102: 10,722 | K102: 135 | L102: 1,447,470 | M102: 1,447 | N102: 1,158 | O102: 0.13 | P102: 0.09 | Q102: 1.55
D103: Anglesey | E103: Isle of Anglesey 003B | F103: W00000083 | G103: W01000017 | H103: 7,902,279 | I103: 737 | J103: 10,722 | K103: 146 | L103: 1,565,412 | M103: 1,565 | N103: 1,252 | O103: 0.14 | P103: 0.49 | Q103: 0.29
D104: Anglesey | E104: Isle of Anglesey 003B | F104: W00000082 | G104: W01000017 | H104: 7,902,279 | I104: 737 | J104: 10,722 | K104: 120 | L104: 1,286,640 | M104: 1,287 | N104: 1,029 | O104: 0.12 | P104: 0.49 | Q104: 0.24
D105: Anglesey | E105: Isle of Anglesey 001C | F105: W00000084 | G105: W01000018 | H105: 0 | I105: 0 | J105: 12,195 | K105: 112 | L105: 1,365,849 | M105: 1,366 | N105: 1,093 | O105: 0.12 | P105: 0.05 | Q105: 2.40
D106: Anglesey | E106: Isle of Anglesey 001C | F106: W00000086 | G106: W01000018 | H106: 0 | I106: 0 | J106: 12,195 | K106: 111 | L106: 1,353,654 | M106: 1,354 | N106: 1,083 | O106: 0.12 | P106: 0.13 | Q106: 0.95
D107: Anglesey | E107: Isle of Anglesey 001C | F107: W00000087 | G107: W01000018 | H107: 0 | I107: 0 | J107: 12,195 | K107: 144 | L107: 1,756,092 | M107: 1,756 | N107: 1,405 | O107: 0.16 | P107: 0.43 | Q107: 0.37
D108: Anglesey | E108: Isle of Anglesey 001C | F108: W00000090 | G108: W01000018 | H108: 0 | I108: 0 | J108: 12,195 | K108: 72 | L108: 878,046 | M108: 878 | N108: 702 | O108: 0.08 | P108: 0.33 | Q108: 0.24
D109: Anglesey | E109: Isle of Anglesey 001C | F109: W00000088 | G109: W01000018 | H109: 0 | I109: 0 | J109: 12,195 | K109: 152 | L109: 1,853,652 | M109: 1,854 | N109: 1,483 | O109: 0.17 | P109: 2.42 | Q109: 0.07
D110: Anglesey | E110: Isle of Anglesey 001C | F110: W00009981 | G110: W01000018 | H110: 0 | I110: 0 | J110: 12,195 | K110: 161 | L110: 1,963,408 | M110: 1,963 | N110: 1,571 | O110: 0.18 | P110: 10.36 | Q110: 0.02
D111: Anglesey | E111: Isle of Anglesey 005C | F111: W00000092 | G111: W01000019 | H111: 0 | I111: 0 | J111: 12,195 | K111: 127 | L111: 1,548,775 | M111: 1,549 | N111: 1,239 | O111: 0.14 | P111: 0.14 | Q111: 1.03
D112: Anglesey | E112: Isle of Anglesey 005C | F112: W00000093 | G112: W01000019 | H112: 0 | I112: 0 | J112: 12,195 | K112: 139 | L112: 1,695,116 | M112: 1,695 | N112: 1,356 | O112: 0.15 | P112: 0.17 | Q112: 0.89
D113: Anglesey | E113: Isle of Anglesey 005C | F113: W00000095 | G113: W01000019 | H113: 0 | I113: 0 | J113: 12,195 | K113: 139 | L113: 1,695,116 | M113: 1,695 | N113: 1,356 | O113: 0.15 | P113: 0.21 | Q113: 0.73
D114: Anglesey | E114: Isle of Anglesey 005C | F114: W00000096 | G114: W01000019 | H114: 0 | I114: 0 | J114: 12,195 | K114: 128 | L114: 1,560,971 | M114: 1,561 | N114: 1,249 | O114: 0.14 | P114: 0.88 | Q114: 0.16
D115: Anglesey | E115: Isle of Anglesey 005C | F115: W00000094 | G115: W01000019 | H115: 0 | I115: 0 | J115: 12,195 | K115: 159 | L115: 1,939,018 | M115: 1,939 | N115: 1,551 | O115: 0.18 | P115: 3.69 | Q115: 0.05
D116: Anglesey | E116: Isle of Anglesey 005C | F116: W00000091 | G116: W01000019 | H116: 0 | I116: 0 | J116: 12,195 | K116: 151 | L116: 1,841,457 | M116: 1,841 | N116: 1,473 | O116: 0.17 | P116: 4.76 | Q116: 0.04
D117: Anglesey | E117: Isle of Anglesey 002B | F117: W00000100 | G117: W01000020 | H117: 0 | I117: 0 | J117: 12,195 | K117: 164 | L117: 1,999,993 | M117: 2,000 | N117: 1,600 | O117: 0.18 | P117: 11.41 | Q117: 0.02
D118: Anglesey | E118: Isle of Anglesey 002B | F118: W00000097 | G118: W01000020 | H118: 0 | I118: 0 | J118: 12,195 | K118: 168 | L118: 2,048,774 | M118: 2,049 | N118: 1,639 | O118: 0.19 | P118: 12.82 | Q118: 0.01
D119: Anglesey | E119: Isle of Anglesey 002B | F119: W00000099 | G119: W01000020 | H119: 0 | I119: 0 | J119: 12,195 | K119: 157 | L119: 1,914,628 | M119: 1,915 | N119: 1,532 | O119: 0.17 | P119: 13.48 | Q119: 0.01
D120: Anglesey | E120: Isle of Anglesey 002B | F120: W00000098 | G120: W01000020 | H120: 0 | I120: 0 | J120: 12,195 | K120: 140 | L120: 1,707,312 | M120: 1,707 | N120: 1,366 | O120: 0.16 | P120: 16.93 | Q120: 0.01
D121: Anglesey | E121: Isle of Anglesey 002C | F121: W00000101 | G121: W01000021 | H121: 207,679 | I121: 14 | J121: 14,834 | K121: 141 | L121: 2,091,594 | M121: 2,092 | N121: 1,673 | O121: 0.19 | P121: 0.31 | Q121: 0.61
D122: Anglesey | E122: Isle of Anglesey 002C | F122: W00000104 | G122: W01000021 | H122: 207,679 | I122: 14 | J122: 14,834 | K122: 149 | L122: 2,210,266 | M122: 2,210 | N122: 1,768 | O122: 0.20 | P122: 0.85 | Q122: 0.24
D123: Anglesey | E123: Isle of Anglesey 002C | F123: W00000106 | G123: W01000021 | H123: 207,679 | I123: 14 | J123: 14,834 | K123: 146 | L123: 2,165,764 | M123: 2,166 | N123: 1,733 | O123: 0.20 | P123: 2.79 | Q123: 0.07
D124: Anglesey | E124: Isle of Anglesey 002C | F124: W00000102 | G124: W01000021 | H124: 207,679 | I124: 14 | J124: 14,834 | K124: 151 | L124: 2,239,934 | M124: 2,240 | N124: 1,792 | O124: 0.20 | P124: 5.30 | Q124: 0.04
D125: Anglesey | E125: Isle of Anglesey 002C | F125: W00000103 | G125: W01000021 | H125: 207,679 | I125: 14 | J125: 14,834 | K125: 147 | L125: 2,180,598 | M125: 2,181 | N125: 1,744 | O125: 0.20 | P125: 10.22 | Q125: 0.02
D126: Anglesey | E126: Isle of Anglesey 002C | F126: W00000105 | G126: W01000021 | H126: 207,679 | I126: 14 | J126: 14,834 | K126: 171 | L126: 2,536,614 | M126: 2,537 | N126: 2,029 | O126: 0.23 | P126: 12.04 | Q126: 0.02
D127: Anglesey | E127: Isle of Anglesey 002C | F127: W00000107 | G127: W01000021 | H127: 207,679 | I127: 14 | J127: 14,834 | K127: 170 | L127: 2,521,780 | M127: 2,522 | N127: 2,017 | O127: 0.23 | P127: 14.56 | Q127: 0.02
D128: Anglesey | E128: Isle of Anglesey 004A | F128: W00000109 | G128: W01000022 | H128: 0 | I128: 0 | J128: 12,195 | K128: 110 | L128: 1,341,459 | M128: 1,341 | N128: 1,073 | O128: 0.12 | P128: 2.55 | Q128: 0.05
D129: Anglesey | E129: Isle of Anglesey 004A | F129: W00000108 | G129: W01000022 | H129: 0 | I129: 0 | J129: 12,195 | K129: 274 | L129: 3,341,453 | M129: 3,341 | N129: 2,673 | O129: 0.31 | P129: 10.31 | Q129: 0.03
D130: Anglesey | E130: Isle of Anglesey 004A | F130: W00000110 | G130: W01000022 | H130: 0 | I130: 0 | J130: 12,195 | K130: 136 | L130: 1,658,531 | M130: 1,659 | N130: 1,327 | O130: 0.15 | P130: 5.89 | Q130: 0.03
D131: Anglesey | E131: Isle of Anglesey 004A | F131: W00000112 | G131: W01000022 | H131: 0 | I131: 0 | J131: 12,195 | K131: 131 | L131: 1,597,556 | M131: 1,598 | N131: 1,278 | O131: 0.15 | P131: 5.94 | Q131: 0.02
D132: Anglesey | E132: Isle of Anglesey 004A | F132: W00000111 | G132: W01000022 | H132: 0 | I132: 0 | J132: 12,195 | K132: 151 | L132: 1,841,457 | M132: 1,841 | N132: 1,473 | O132: 0.17 | P132: 10.87 | Q132: 0.02
D133: Anglesey | E133: Isle of Anglesey 007D | F133: W00000113 | G133: W01000023 | H133: 5,268,438 | I133: 465 | J133: 11,330 | K133: 146 | L133: 1,654,180 | M133: 1,654 | N133: 1,323 | O133: 0.15 | P133: 0.15 | Q133: 1.03
D134: Anglesey | E134: Isle of Anglesey 007D | F134: W00000120 | G134: W01000023 | H134: 5,268,438 | I134: 465 | J134: 11,330 | K134: 163 | L134: 1,846,790 | M134: 1,847 | N134: 1,477 | O134: 0.17 | P134: 2.29 | Q134: 0.07
D135: Anglesey | E135: Isle of Anglesey 007D | F135: W00000115 | G135: W01000023 | H135: 5,268,438 | I135: 465 | J135: 11,330 | K135: 181 | L135: 2,050,730 | M135: 2,051 | N135: 1,641 | O135: 0.19 | P135: 7.72 | Q135: 0.02
D136: Anglesey | E136: Isle of Anglesey 007D | F136: W00000114 | G136: W01000023 | H136: 5,268,438 | I136: 465 | J136: 11,330 | K136: 136 | L136: 1,540,880 | M136: 1,541 | N136: 1,233 | O136: 0.14 | P136: 11.46 | Q136: 0.01
D137: Anglesey | E137: Isle of Anglesey 007E | F137: W00000116 | G137: W01000024 | H137: 4,667,093 | I137: 452 | J137: 10,325 | K137: 148 | L137: 1,528,100 | M137: 1,528 | N137: 1,222 | O137: 0.14 | P137: 0.27 | Q137: 0.52
D138: Anglesey | E138: Isle of Anglesey 007E | F138: W00000117 | G138: W01000024 | H138: 4,667,093 | I138: 452 | J138: 10,325 | K138: 154 | L138: 1,590,050 | M138: 1,590 | N138: 1,272 | O138: 0.15 | P138: 2.70 | Q138: 0.05
D139: Anglesey | E139: Isle of Anglesey 007E | F139: W00000118 | G139: W01000024 | H139: 4,667,093 | I139: 452 | J139: 10,325 | K139: 146 | L139: 1,507,450 | M139: 1,507 | N139: 1,206 | O139: 0.14 | P139: 2.58 | Q139: 0.05
D140: Anglesey | E140: Isle of Anglesey 007E | F140: W00000119 | G140: W01000024 | H140: 4,667,093 | I140: 452 | J140: 10,325 | K140: 96 | L140: 991,200 | M140: 991 | N140: 793 | O140: 0.09 | P140: 8.22 | Q140: 0.01
D141: Anglesey | E141: Isle of Anglesey 009B | F141: W00000125 | G141: W01000025 | H141: 0 | I141: 0 | J141: 12,195 | K141: 129 | L141: 1,573,166 | M141: 1,573 | N141: 1,259 | O141: 0.14 | P141: 0.33 | Q141: 0.43
D142: Anglesey | E142: Isle of Anglesey 009B | F142: W00000122 | G142: W01000025 | H142: 0 | I142: 0 | J142: 12,195 | K142: 135 | L142: 1,646,336 | M142: 1,646 | N142: 1,317 | O142: 0.15 | P142: 1.29 | Q142: 0.12
D143: Anglesey | E143: Isle of Anglesey 009B | F143: W00000123 | G143: W01000025 | H143: =IFERROR(VLOOKUP($G143,RHD_LSOA_Lookup,2,FALSE),0) -> 0 | I143: =IFERROR(VLOOKUP($G143,RHD_LSOA_Lookup,3,FALSE),0) -> 0 | J143: =IFERROR(VLOOKUP($G143,RHD_LSOA_Lookup,4,FALSE),VLOOKUP($D143,gap_lookup,2,FALSE)) -> 12,195 | K143: =VLOOKUP($F143,dwellings_lookup,2,FALSE) -> 136 | L143: =J143*K143 -> 1,658,531 | M143: =L143/1000 -> 1,659 | N143: 1,327 | O143: =N143/(24*365) -> 0.15 | P143: =VLOOKUP($F143,lookup_area,10,FALSE) -> 2.21 | Q143: =O143/VLOOKUP($F143,lookup_area,10,FALSE) -> 0.07
D144: Anglesey | E144: Isle of Anglesey 009B | F144: W00000121 | G144: W01000025 | H144: 0 | I144: 0 | J144: 12,195 | K144: 136 | L144: 1,658,531 | M144: 1,659 | N144: =M144*0.8 -> 1,327 | O144: 0.15 | P144: 4.05 | Q144: 0.04
D145: Anglesey | E145: Isle of Anglesey 009B | F145: W00000126 | G145: W01000025 | H145: 0 | I145: 0 | J145: 12,195 | K145: 197 | L145: 2,402,431 | M145: 2,402 | N145: 1,922 | O145: 0.22 | P145: 13.00 | Q145: 0.02
D146: Anglesey | E146: Isle of Anglesey 009B | F146: W00000124 | G146: W01000025 | H146: 0 | I146: 0 | J146: 12,195 | K146: 183 | L146: 2,231,700 | M146: 2,232 | N146: 1,785 | O146: 0.20 | P146: 12.95 | Q146: 0.02
D147: Anglesey | E147: Isle of Anglesey 005D | F147: W00000128 | G147: W01000026 | H147: 0 | I147: 0 | J147: 12,195 | K147: 123 | L147: 1,499,995 | M147: 1,500 | N147: 1,200 | O147: 0.14 | P147: 0.37 | Q147: 0.37
D148: Anglesey | E148: Isle of Anglesey 005D | F148: W00000127 | G148: W01000026 | H148: 0 | I148: 0 | J148: 12,195 | K148: 165 | L148: 2,012,189 | M148: 2,012 | N148: 1,610 | O148: 0.18 | P148: 0.85 | Q148: 0.22
D149: Anglesey | E149: Isle of Anglesey 005D | F149: W00000129 | G149: W01000026 | H149: 0 | I149: 0 | J149: 12,195 | K149: 151 | L149: 1,841,457 | M149: 1,841 | N149: 1,473 | O149: 0.17 | P149: 1.68 | Q149: 0.10
D150: Anglesey | E150: Isle of Anglesey 005D | F150: W00000130 | G150: W01000026 | H150: 0 | I150: 0 | J150: 12,195 | K150: 100 | L150: 1,219,508 | M150: 1,220 | N150: 976 | O150: 0.11 | P150: 1.33 | Q150: 0.08
D151: Anglesey | E151: Isle of Anglesey 005D | F151: W00000131 | G151: W01000026 | H151: 0 | I151: 0 | J151: 12,195 | K151: 150 | L151: 1,829,262 | M151: 1,829 | N151: 1,463 | O151: 0.17 | P151: 5.03 | Q151: 0.03
D152: Anglesey | E152: Isle of Anglesey 009C | F152: W00000136 | G152: W01000027 | H152: 0 | I152: 0 | J152: 12,195 | K152: 155 | L152: 1,890,238 | M152: 1,890 | N152: 1,512 | O152: 0.17 | P152: 0.07 | Q152: 2.56
D153: Anglesey | E153: Isle of Anglesey 009C | F153: W00000133 | G153: W01000027 | H153: 0 | I153: 0 | J153: 12,195 | K153: 208 | L153: 2,536,577 | M153: 2,537 | N153: 2,029 | O153: 0.23 | P153: 4.20 | Q153: 0.06
D154: Anglesey | E154: Isle of Anglesey 009C | F154: W00000134 | G154: W01000027 | H154: 0 | I154: 0 | J154: 12,195 | K154: 164 | L154: 1,999,993 | M154: 2,000 | N154: 1,600 | O154: 0.18 | P154: 6.36 | Q154: 0.03
D155: Anglesey | E155: Isle of Anglesey 009C | F155: W00000135 | G155: W01000027 | H155: 0 | I155: 0 | J155: 12,195 | K155: 158 | L155: 1,926,823 | M155: 1,927 | N155: 1,541 | O155: 0.18 | P155: 7.56 | Q155: 0.02
D156: Anglesey | E156: Isle of Anglesey 009C | F156: W00000132 | G156: W01000027 | H156: 0 | I156: 0 | J156: 12,195 | K156: 159 | L156: 1,939,018 | M156: 1,939 | N156: 1,551 | O156: 0.18 | P156: 9.29 | Q156: 0.02
D157: Anglesey | E157: Isle of Anglesey 001D | F157: W00000139 | G157: W01000028 | H157: 2,014,319 | I157: 128 | J157: 15,737 | K157: 187 | L157: 2,942,819 | M157: 2,943 | N157: 2,354 | O157: 0.27 | P157: 0.20 | Q157: 1.34
D158: Anglesey | E158: Isle of Anglesey 001D | F158: W00000138 | G158: W01000028 | H158: 2,014,319 | I158: 128 | J158: 15,737 | K158: 151 | L158: 2,376,287 | M158: 2,376 | N158: 1,901 | O158: 0.22 | P158: 0.32 | Q158: 0.68
D159: Anglesey | E159: Isle of Anglesey 001D | F159: W00000140 | G159: W01000028 | H159: 2,014,319 | I159: 128 | J159: 15,737 | K159: 182 | L159: 2,864,134 | M159: 2,864 | N159: 2,291 | O159: 0.26 | P159: 12.88 | Q159: 0.02
D160: Anglesey | E160: Isle of Anglesey 001D | F160: W00000141 | G160: W01000028 | H160: 2,014,319 | I160: 128 | J160: 15,737 | K160: 122 | L160: 1,919,914 | M160: 1,920 | N160: 1,536 | O160: 0.18 | P160: 8.96 | Q160: 0.02
D161: Anglesey | E161: Isle of Anglesey 001D | F161: W00000137 | G161: W01000028 | H161: 2,014,319 | I161: 128 | J161: 15,737 | K161: 93 | L161: 1,463,541 | M161: 1,464 | N161: 1,171 | O161: 0.13 | P161: 15.12 | Q161: 0.01
D162: Anglesey | E162: Isle of Anglesey 001D | F162: W00000142 | G162: W01000028 | H162: 2,014,319 | I162: 128 | J162: 15,737 | K162: 131 | L162: 2,061,547 | M162: 2,062 | N162: 1,649 | O162: 0.19 | P162: 26.46 | Q162: 0.01
D163: Anglesey | E163: Isle of Anglesey 003C | F163: W00000146 | G163: W01000029 | H163: 7,521,832 | I163: 731 | J163: 10,290 | K163: 150 | L163: 1,543,500 | M163: 1,544 | N163: 1,235 | O163: 0.14 | P163: 0.02 | Q163: 6.02
D164: Anglesey | E164: Isle of Anglesey 003C | F164: W00000147 | G164: W01000029 | H164: 7,521,832 | I164: 731 | J164: 10,290 | K164: 145 | L164: 1,492,050 | M164: 1,492 | N164: 1,194 | O164: 0.14 | P164: 0.07 | Q164: 2.00
D165: Anglesey | E165: Isle of Anglesey 003C | F165: W00000144 | G165: W01000029 | H165: 7,521,832 | I165: 731 | J165: 10,290 | K165: 141 | L165: 1,450,890 | M165: 1,451 | N165: 1,161 | O165: 0.13 | P165: 0.08 | Q165: 1.60
D166: Anglesey | E166: Isle of Anglesey 003C | F166: W00000145 | G166: W01000029 | H166: 7,521,832 | I166: 731 | J166: 10,290 | K166: 157 | L166: 1,615,530 | M166: 1,616 | N166: 1,292 | O166: 0.15 | P166: 0.09 | Q166: 1.58
D167: Anglesey | E167: Isle of Anglesey 003C | F167: W00000143 | G167: W01000029 | H167: 7,521,832 | I167: 731 | J167: 10,290 | K167: 138 | L167: 1,420,020 | M167: 1,420 | N167: 1,136 | O167: 0.13 | P167: 0.23 | Q167: 0.57
D168: Anglesey | E168: Isle of Anglesey 003D | F168: W00000152 | G168: W01000030 | H168: 9,752,956 | I168: 958 | J168: 10,181 | K168: 140 | L168: 1,425,340 | M168: 1,425 | N168: 1,140 | O168: 0.13 | P168: 0.03 | Q168: 4.32
D169: Anglesey | E169: Isle of Anglesey 003D | F169: W00000151 | G169: W01000030 | H169: 9,752,956 | I169: 958 | J169: 10,181 | K169: 135 | L169: 1,374,435 | M169: 1,374 | N169: 1,100 | O169: 0.13 | P169: 0.03 | Q169: 3.83
D170: Anglesey | E170: Isle of Anglesey 003D | F170: W00000148 | G170: W01000030 | H170: 9,752,956 | I170: 958 | J170: 10,181 | K170: 98 | L170: 997,738 | M170: 998 | N170: 798 | O170: 0.09 | P170: 0.03 | Q170: 3.13
D171: Anglesey | E171: Isle of Anglesey 003D | F171: W00000155 | G171: W01000030 | H171: 9,752,956 | I171: 958 | J171: 10,181 | K171: 122 | L171: 1,242,082 | M171: 1,242 | N171: 994 | O171: 0.11 | P171: 0.07 | Q171: 1.60
D172: Anglesey | E172: Isle of Anglesey 003D | F172: W00000150 | G172: W01000030 | H172: 9,752,956 | I172: 958 | J172: 10,181 | K172: 160 | L172: 1,628,960 | M172: 1,629 | N172: 1,303 | O172: 0.15 | P172: 0.13 | Q172: 1.14
D173: Anglesey | E173: Isle of Anglesey 003D | F173: W00000154 | G173: W01000030 | H173: 9,752,956 | I173: 958 | J173: 10,181 | K173: 125 | L173: 1,272,625 | M173: 1,273 | N173: 1,018 | O173: 0.12 | P173: 0.20 | Q173: 0.59
D174: Anglesey | E174: Isle of Anglesey 003D | F174: W00000153 | G174: W01000030 | H174: 9,752,956 | I174: 958 | J174: 10,181 | K174: 135 | L174: 1,374,435 | M174: 1,374 | N174: 1,100 | O174: 0.13 | P174: 0.41 | Q174: 0.30
D175: Anglesey | E175: Isle of Anglesey 003D | F175: W00000149 | G175: W01000030 | H175: 9,752,956 | I175: 958 | J175: 10,181 | K175: 133 | L175: 1,354,073 | M175: 1,354 | N175: 1,083 | O175: 0.12 | P175: 0.46 | Q175: 0.27
D176: Anglesey | E176: Isle of Anglesey 001E | F176: W00000160 | G176: W01000031 | H176: 0 | I176: 0 | J176: 12,195 | K176: 142 | L176: 1,731,702 | M176: 1,732 | N176: 1,385 | O176: 0.16 | P176: 0.30 | Q176: 0.52
D177: Anglesey | E177: Isle of Anglesey 001E | F177: W00000159 | G177: W01000031 | H177: 0 | I177: 0 | J177: 12,195 | K177: 136 | L177: 1,658,531 | M177: 1,659 | N177: 1,327 | O177: 0.15 | P177: 0.97 | Q177: 0.16
D178: Anglesey | E178: Isle of Anglesey 001E | F178: W00000158 | G178: W01000031 | H178: 0 | I178: 0 | J178: 12,195 | K178: 153 | L178: 1,865,848 | M178: 1,866 | N178: 1,493 | O178: 0.17 | P178: 8.97 | Q178: 0.02
D179: Anglesey | E179: Isle of Anglesey 001E | F179: W00000157 | G179: W01000031 | H179: 0 | I179: 0 | J179: 12,195 | K179: 173 | L179: 2,109,749 | M179: 2,110 | N179: 1,688 | O179: 0.19 | P179: 13.29 | Q179: 0.01
D180: Anglesey | E180: Isle of Anglesey 001E | F180: W00000156 | G180: W01000031 | H180: 0 | I180: 0 | J180: 12,195 | K180: 134 | L180: 1,634,141 | M180: 1,634 | N180: 1,307 | O180: 0.15 | P180: 14.42 | Q180: 0.01
D181: Anglesey | E181: Isle of Anglesey 002D | F181: W00000162 | G181: W01000032 | H181: 0 | I181: 0 | J181: 12,195 | K181: 128 | L181: 1,560,971 | M181: 1,561 | N181: 1,249 | O181: 0.14 | P181: 0.11 | Q181: 1.32
D182: Anglesey | E182: Isle of Anglesey 002D | F182: W00000161 | G182: W01000032 | H182: 0 | I182: 0 | J182: 12,195 | K182: 141 | L182: 1,719,507 | M182: 1,720 | N182: 1,376 | O182: 0.16 | P182: 0.23 | Q182: 0.69
D183: Anglesey | E183: Isle of Anglesey 002D | F183: W00000164 | G183: W01000032 | H183: 0 | I183: 0 | J183: 12,195 | K183: 194 | L183: 2,365,846 | M183: 2,366 | N183: 1,893 | O183: 0.22 | P183: 0.33 | Q183: 0.65
D184: Anglesey | E184: Isle of Anglesey 002D | F184: W00000163 | G184: W01000032 | H184: 0 | I184: 0 | J184: 12,195 | K184: 199 | L184: 2,426,821 | M184: 2,427 | N184: 1,941 | O184: 0.22 | P184: 13.24 | Q184: 0.02
D185: Anglesey | E185: Isle of Anglesey 003E | F185: W00000166 | G185: W01000033 | H185: 5,720,075 | I185: 693 | J185: 8,254 | K185: 138 | L185: 1,139,052 | M185: 1,139 | N185: 911 | O185: 0.10 | P185: 0.04 | Q185: 2.61
D186: Anglesey | E186: Isle of Anglesey 003E | F186: W00000169 | G186: W01000033 | H186: 5,720,075 | I186: 693 | J186: 8,254 | K186: 142 | L186: 1,172,068 | M186: 1,172 | N186: 938 | O186: 0.11 | P186: 0.04 | Q186: 2.54
D187: Anglesey | E187: Isle of Anglesey 003E | F187: W00000165 | G187: W01000033 | H187: 5,720,075 | I187: 693 | J187: 8,254 | K187: 138 | L187: 1,139,052 | M187: 1,139 | N187: 911 | O187: 0.10 | P187: 0.14 | Q187: 0.76
D188: Anglesey | E188: Isle of Anglesey 003E | F188: W00000167 | G188: W01000033 | H188: 5,720,075 | I188: 693 | J188: 8,254 | K188: 140 | L188: 1,155,560 | M188: 1,156 | N188: 924 | O188: 0.11 | P188: 0.21 | Q188: 0.51
D189: Anglesey | E189: Isle of Anglesey 003E | F189: W00000168 | G189: W01000033 | H189: 5,720,075 | I189: 693 | J189: 8,254 | K189: 156 | L189: 1,287,624 | M189: 1,288 | N189: 1,030 | O189: 0.12 | P189: 0.25 | Q189: 0.47
D190: Anglesey | E190: Isle of Anglesey 004B | F190: W00000170 | G190: W01000034 | H190: 5,863,247 | I190: 495 | J190: 11,845 | K190: 123 | L190: 1,456,935 | M190: 1,457 | N190: 1,166 | O190: 0.13 | P190: 0.16 | Q190: 0.82
D191: Anglesey | E191: Isle of Anglesey 004B | F191: W00000172 | G191: W01000034 | H191: 5,863,247 | I191: 495 | J191: 11,845 | K191: 122 | L191: 1,445,090 | M191: 1,445 | N191: 1,156 | O191: 0.13 | P191: 0.31 | Q191: 0.42
D192: Anglesey | E192: Isle of Anglesey 004B | F192: W00000171 | G192: W01000034 | H192: 5,863,247 | I192: 495 | J192: 11,845 | K192: 167 | L192: 1,978,115 | M192: 1,978 | N192: 1,582 | O192: 0.18 | P192: 0.64 | Q192: 0.28
D193: Anglesey | E193: Isle of Anglesey 004B | F193: W00000173 | G193: W01000034 | H193: 5,863,247 | I193: 495 | J193: 11,845 | K193: 130 | L193: 1,539,850 | M193: 1,540 | N193: 1,232 | O193: 0.14 | P193: 0.98 | Q193: 0.14
D194: Anglesey | E194: Isle of Anglesey 005E | F194: W00000177 | G194: W01000035 | H194: 0 | I194: 0 | J194: 12,195 | K194: 115 | L194: 1,402,434 | M194: 1,402 | N194: 1,122 | O194: 0.13 | P194: 0.08 | Q194: 1.56
D195: Anglesey | E195: Isle of Anglesey 005E | F195: W00000174 | G195: W01000035 | H195: 0 | I195: 0 | J195: 12,195 | K195: 138 | L195: 1,682,921 | M195: 1,683 | N195: 1,346 | O195: 0.15 | P195: 0.59 | Q195: 0.26
D196: Anglesey | E196: Isle of Anglesey 005E | F196: W00000176 | G196: W01000035 | H196: 0 | I196: 0 | J196: 12,195 | K196: 131 | L196: 1,597,556 | M196: 1,598 | N196: 1,278 | O196: 0.15 | P196: 0.67 | Q196: 0.22
D197: Anglesey | E197: Isle of Anglesey 005E | F197: W00000179 | G197: W01000035 | H197: 0 | I197: 0 | J197: 12,195 | K197: 162 | L197: 1,975,603 | M197: 1,976 | N197: 1,580 | O197: 0.18 | P197: 3.98 | Q197: 0.05
D198: Anglesey | E198: Isle of Anglesey 005E | F198: W00000178 | G198: W01000035 | H198: 0 | I198: 0 | J198: 12,195 | K198: 149 | L198: 1,817,067 | M198: 1,817 | N198: 1,454 | O198: 0.17 | P198: 9.91 | Q198: 0.02
D199: Anglesey | E199: Isle of Anglesey 005E | F199: W00000175 | G199: W01000035 | H199: 0 | I199: 0 | J199: 12,195 | K199: 221 | L199: 2,695,113 | M199: 2,695 | N199: 2,156 | O199: 0.25 | P199: 15.62 | Q199: 0.02
D200: Anglesey | E200: Isle of Anglesey 003F | F200: W00000180 | G200: W01000036 | H200: 4,983,307 | I200: 534 | J200: 9,332 | K200: 132 | L200: 1,231,824 | M200: 1,232 | N200: 985 | O200: 0.11 | P200: 0.04 | Q200: 3.07
D201: Anglesey | E201: Isle of Anglesey 003F | F201: W00000186 | G201: W01000036 | H201: 4,983,307 | I201: 534 | J201: 9,332 | K201: 134 | L201: 1,250,488 | M201: 1,250 | N201: 1,000 | O201: 0.11 | P201: 0.04 | Q201: 2.71
D202: Anglesey | E202: Isle of Anglesey 003F | F202: W00000187 | G202: W01000036 | H202: 4,983,307 | I202: 534 | J202: 9,332 | K202: 143 | L202: 1,334,476 | M202: 1,334 | N202: 1,068 | O202: 0.12 | P202: 0.06 | Q202: 2.11
D203: Anglesey | E203: Isle of Anglesey 003F | F203: W00000182 | G203: W01000036 | H203: 4,983,307 | I203: 534 | J203: 9,332 | K203: 137 | L203: 1,278,484 | M203: 1,278 | N203: 1,023 | O203: 0.12 | P203: 0.14 | Q203: 0.81
D204: Anglesey | E204: Isle of Anglesey 003G | F204: W00000181 | G204: W01000037 | H204: 6,984,715 | I204: 533 | J204: 13,105 | K204: 138 | L204: 1,808,490 | M204: 1,808 | N204: 1,447 | O204: 0.17 | P204: 0.04 | Q204: 4.01
D205: Anglesey | E205: Isle of Anglesey 003G | F205: W00000183 | G205: W01000037 | H205: 6,984,715 | I205: 533 | J205: 13,105 | K205: 126 | L205: 1,651,230 | M205: 1,651 | N205: 1,321 | O205: 0.15 | P205: 0.07 | Q205: 2.11
... 4295 more rows

Sheet LA - Wales (hidden)
C1: Lower Layer Super Output Area (LSOA) domestic gas consumption, 2013
B2: AECOM Name | C2: Local Authority Name | D2: Lower Layer Super Output Area (LSOA) Code | E2: Consumption (kWh) | F2: Number of meters | G2: Mean consumption (kWh per meter) | H2: Median consumption (kWh per meter)
A3: Anglesey | B3: Blaenau Gwent | C3: Blaenau Gwent | D3: W01001435 | E3: 10,101,100 | F3: 731 | G3: 13,818 | H3: 13,016
A4: Blaenau Gwent | B4: Blaenau Gwent | C4: Blaenau Gwent | D4: W01001436 | E4: 8,516,198 | F4: 698 | G4: 12,201 | H4: 11,202
A5: Bridgend | B5: Blaenau Gwent | C5: Blaenau Gwent | D5: W01001437 | E5: 9,790,518 | F5: 662 | G5: 14,789 | H5: 14,471
A6: Caerphilly | B6: Blaenau Gwent | C6: Blaenau Gwent | D6: W01001438 | E6: 9,659,359 | F6: 616 | G6: 15,681 | H6: 14,665
A7: Cardiff | B7: Blaenau Gwent | C7: Blaenau Gwent | D7: W01001439 | E7: 12,138,029 | F7: 727 | G7: 16,696 | H7: 15,639
A8: Carmarthenshire | B8: Blaenau Gwent | C8: Blaenau Gwent | D8: W01001440 | E8: 9,738,493 | F8: 619 | G8: 15,733 | H8: 15,172
A9: Ceredigion | B9: Blaenau Gwent | C9: Blaenau Gwent | D9: W01001441 | E9: 7,207,632 | F9: 534 | G9: 13,497 | H9: 12,569
A10: Conwy | B10: Blaenau Gwent | C10: Blaenau Gwent | D10: W01001442 | E10: 8,959,565 | F10: 508 | G10: 17,637 | H10: 16,664
A11: Denbighshire | B11: Blaenau Gwent | C11: Blaenau Gwent | D11: W01001443 | E11: 8,565,240 | F11: 643 | G11: 13,321 | H11: 12,045
A12: Flintshire | B12: Blaenau Gwent | C12: Blaenau Gwent | D12: W01001444 | E12: 11,714,940 | F12: 799 | G12: 14,662 | H12: 14,097
A13: Gwynedd | B13: Blaenau Gwent | C13: Blaenau Gwent | D13: W01001445 | E13: 10,374,381 | F13: 672 | G13: 15,438 | H13: 14,427
A14: Merthyr Tydfil | B14: Blaenau Gwent | C14: Blaenau Gwent | D14: W01001446 | E14: 7,741,761 | F14: 480 | G14: 16,129 | H14: 15,247
A15: Monmouthshire | B15: Blaenau Gwent | C15: Blaenau Gwent | D15: W01001447 | E15: 8,558,076 | F15: 623 | G15: 13,737 | H15: 13,690
A16: Neath Port Talbot | B16: Blaenau Gwent | C16: Blaenau Gwent | D16: W01001448 | E16: 10,314,021 | F16: 697 | G16: 14,798 | H16: 13,312
A17: Newport | B17: Blaenau Gwent | C17: Blaenau Gwent | D17: W01001449 | E17: 9,986,861 | F17: 689 | G17: 14,495 | H17: 13,177
A18: Pembrokeshire | B18: Blaenau Gwent | C18: Blaenau Gwent | D18: W01001450 | E18: 8,342,290 | F18: 559 | G18: 14,924 | H18: 14,241
A19: Powys | B19: Blaenau Gwent | C19: Blaenau Gwent | D19: W01001451 | E19: 8,771,201 | F19: 679 | G19: 12,918 | H19: 12,338
A20: Rhonnda Cynon Taff | B20: Blaenau Gwent | C20: Blaenau Gwent | D20: W01001452 | E20: 8,274,340 | F20: 586 | G20: 14,120 | H20: 13,786
A21: Swansea | B21: Blaenau Gwent | C21: Blaenau Gwent | D21: W01001453 | E21: 10,020,656 | F21: 688 | G21: 14,565 | H21: 14,189
A22: The Vale of Glamorgan | B22: Blaenau Gwent | C22: Blaenau Gwent | D22: W01001454 | E22: 9,002,900 | F22: 613 | G22: 14,687 | H22: 13,936
A23: Torfaen | B23: Blaenau Gwent | C23: Blaenau Gwent | D23: W01001455 | E23: 9,560,055 | F23: 767 | G23: 12,464 | H23: 12,301
A24: Wrexham | B24: Blaenau Gwent | C24: Blaenau Gwent | D24: W01001456 | E24: 8,686,423 | F24: 644 | G24: 13,488 | H24: 12,131
B25: Blaenau Gwent | C25: Blaenau Gwent | D25: W01001457 | E25: 9,043,427 | F25: 768 | G25: 11,775 | H25: 11,688
B26: Blaenau Gwent | C26: Blaenau Gwent | D26: W01001458 | E26: 10,288,103 | F26: 691 | G26: 14,889 | H26: 14,548
B27: Blaenau Gwent | C27: Blaenau Gwent | D27: W01001459 | E27: 7,090,903 | F27: 473 | G27: 14,991 | H27: 14,649
B28: Blaenau Gwent | C28: Blaenau Gwent | D28: W01001460 | E28: 11,962,050 | F28: 849 | G28: 14,090 | H28: 13,129
B29: Blaenau Gwent | C29: Blaenau Gwent | D29: W01001461 | E29: 9,807,739 | F29: 632 | G29: 15,519 | H29: 14,259
B30: Blaenau Gwent | C30: Blaenau Gwent | D30: W01001462 | E30: 10,119,891 | F30: 688 | G30: 14,709 | H30: 13,526
B31: Blaenau Gwent | C31: Blaenau Gwent | D31: W01001463 | E31: 13,268,074 | F31: 915 | G31: 14,501 | H31: 14,006
B32: Blaenau Gwent | C32: Blaenau Gwent | D32: W01001464 | E32: 7,966,083 | F32: 665 | G32: 11,979 | H32: 11,326
B33: Blaenau Gwent | C33: Blaenau Gwent | D33: W01001465 | E33: 8,542,252 | F33: 689 | G33: 12,398 | H33: 12,291
B34: Blaenau Gwent | C34: Blaenau Gwent | D34: W01001466 | E34: 9,427,148 | F34: 775 | G34: 12,164 | H34: 11,784
B35: Blaenau Gwent | C35: Blaenau Gwent | D35: W01001467 | E35: 10,729,936 | F35: 818 | G35: 13,117 | H35: 12,748
B36: Blaenau Gwent | C36: Blaenau Gwent | D36: W01001468 | E36: 9,173,407 | F36: 625 | G36: 14,677 | H36: 14,563
B37: Blaenau Gwent | C37: Blaenau Gwent | D37: W01001469 | E37: 7,202,614 | F37: 514 | G37: 14,013 | H37: 13,181
B38: Blaenau Gwent | C38: Blaenau Gwent | D38: W01001470 | E38: 11,359,943 | F38: 652 | G38: 17,423 | H38: 16,782
B39: Blaenau Gwent | C39: Blaenau Gwent | D39: W01001471 | E39: 10,206,234 | F39: 793 | G39: 12,870 | H39: 12,219
B40: Blaenau Gwent | C40: Blaenau Gwent | D40: W01001472 | E40: 11,621,003 | F40: 666 | G40: 17,449 | H40: 16,909
B41: Blaenau Gwent | C41: Blaenau Gwent | D41: W01001473 | E41: 8,666,869 | F41: 592 | G41: 14,640 | H41: 14,356
B42: Blaenau Gwent | C42: Blaenau Gwent | D42: W01001474 | E42: 10,352,861 | F42: 657 | G42: 15,758 | H42: 15,213
B43: Blaenau Gwent | C43: Blaenau Gwent | D43: W01001475 | E43: 7,977,905 | F43: 530 | G43: 15,053 | H43: 14,899
B44: Blaenau Gwent | C44: Blaenau Gwent | D44: W01001476 | E44: 6,024,916 | F44: 466 | G44: 12,929 | H44: 12,197
B45: Blaenau Gwent | C45: Blaenau Gwent | D45: W01001477 | E45: 9,484,814 | F45: 678 | G45: 13,989 | H45: 13,338
B46: Blaenau Gwent | C46: Blaenau Gwent | D46: W01001478 | E46: 9,382,069 | F46: 612 | G46: 15,330 | H46: 14,212
B47: Blaenau Gwent | C47: Blaenau Gwent | D47: W01001479 | E47: 9,141,668 | F47: 655 | G47: 13,957 | H47: 13,977
B48: Blaenau Gwent | C48: Blaenau Gwent | D48: W01001480 | E48: 9,563,112 | F48: 644 | G48: 14,850 | H48: 14,350
B49: Blaenau Gwent | C49: Blaenau Gwent | D49: W01001481 | E49: 12,307,026 | F49: 961 | G49: 12,806 | H49: 11,003
B50: Bridgend | C50: Bridgend | D50: W01000974 | E50: 12,958,122 | F50: 926 | G50: 13,994 | H50: 12,650
B51: Bridgend | C51: Bridgend | D51: W01000975 | E51: 10,946,604 | F51: 861 | G51: 12,714 | H51: 12,019
B52: Bridgend | C52: Bridgend | D52: W01000976 | E52: 5,663,412 | F52: 402 | G52: 14,088 | H52: 13,121
B53: Bridgend | C53: Bridgend | D53: W01000977 | E53: 5,463,076 | F53: 433 | G53: 12,617 | H53: 11,228
B54: Bridgend | C54: Bridgend | D54: W01000978 | E54: 11,015,584 | F54: 804 | G54: 13,701 | H54: 13,362
B55: Bridgend | C55: Bridgend | D55: W01000979 | E55: 7,196,209 | F55: 718 | G55: 10,023 | H55: 9,438
B56: Bridgend | C56: Bridgend | D56: W01000980 | E56: 5,999,270 | F56: 568 | G56: 10,562 | H56: 9,854
B57: Bridgend | C57: Bridgend | D57: W01000981 | E57: 4,450,717 | F57: 488 | G57: 9,120 | H57: 8,833
B58: Bridgend | C58: Bridgend | D58: W01000982 | E58: 7,678,872 | F58: 588 | G58: 13,059 | H58: 11,846
B59: Bridgend | C59: Bridgend | D59: W01000983 | E59: 6,786,476 | F59: 655 | G59: 10,361 | H59: 9,822
B60: Bridgend | C60: Bridgend | D60: W01000984 | E60: 9,623,223 | F60: 909 | G60: 10,587 | H60: 9,673
B61: Bridgend | C61: Bridgend | D61: W01000985 | E61: 7,516,898 | F61: 517 | G61: 14,539 | H61: 14,363
B62: Bridgend | C62: Bridgend | D62: W01000986 | E62: 7,465,170 | F62: 584 | G62: 12,783 | H62: 11,350
B63: Bridgend | C63: Bridgend | D63: W01000987 | E63: 10,719,343 | F63: 910 | G63: 11,779 | H63: 11,056
B64: Bridgend | C64: Bridgend | D64: W01000989 | E64: 7,621,498 | F64: 463 | G64: 16,461 | H64: 14,965
B65: Bridgend | C65: Bridgend | D65: W01000990 | E65: 8,341,437 | F65: 731 | G65: 11,411 | H65: 10,592
B66: Bridgend | C66: Bridgend | D66: W01000991 | E66: 5,854,930 | F66: 485 | G66: 12,072 | H66: 11,403
B67: Bridgend | C67: Bridgend | D67: W01000992 | E67: 9,033,097 | F67: 692 | G67: 13,054 | H67: 12,507
B68: Bridgend | C68: Bridgend | D68: W01000993 | E68: 9,248,635 | F68: 645 | G68: 14,339 | H68: 13,822
B69: Bridgend | C69: Bridgend | D69: W01000994 | E69: 7,570,623 | F69: 570 | G69: 13,282 | H69: 12,871
B70: Bridgend | C70: Bridgend | D70: W01000995 | E70: 9,422,117 | F70: 681 | G70: 13,836 | H70: 13,320
B71: Bridgend | C71: Bridgend | D71: W01000996 | E71: 8,219,485 | F71: 592 | G71: 13,884 | H71: 13,257
B72: Bridgend | C72: Bridgend | D72: W01000997 | E72: 8,258,433 | F72: 657 | G72: 12,570 | H72: 12,283
B73: Bridgend | C73: Bridgend | D73: W01000998 | E73: 10,044,175 | F73: 747 | G73: 13,446 | H73: 11,624
B74: Bridgend | C74: Bridgend | D74: W01000999 | E74: 7,989,058 | F74: 626 | G74: 12,762 | H74: 12,060
B75: Bridgend | C75: Bridgend | D75: W01001000 | E75: 9,185,553 | F75: 717 | G75: 12,811 | H75: 11,972
B76: Bridgend | C76: Bridgend | D76: W01001001 | E76: 8,077,983 | F76: 638 | G76: 12,661 | H76: 11,738
B77: Bridgend | C77: Bridgend | D77: W01001002 | E77: 10,163,859 | F77: 1,013 | G77: 10,033 | H77: 9,375
B78: Bridgend | C78: Bridgend | D78: W01001003 | E78: 10,980,213 | F78: 648 | G78: 16,945 | H78: 15,415
B79: Bridgend | C79: Bridgend | D79: W01001004 | E79: 5,833,224 | F79: 461 | G79: 12,653 | H79: 11,425
B80: Bridgend | C80: Bridgend | D80: W01001005 | E80: 9,409,895 | F80: 710 | G80: 13,253 | H80: 11,999
B81: Bridgend | C81: Bridgend | D81: W01001006 | E81: 13,615,007 | F81: 963 | G81: 14,138 | H81: 13,713
B82: Bridgend | C82: Bridgend | D82: W01001007 | E82: 8,448,623 | F82: 668 | G82: 12,648 | H82: 12,228
B83: Bridgend | C83: Bridgend | D83: W01001008 | E83: 13,552,960 | F83: 921 | G83: 14,715 | H83: 14,108
B84: Bridgend | C84: Bridgend | D84: W01001009 | E84: 7,330,257 | F84: 488 | G84: 15,021 | H84: 14,117
B85: Bridgend | C85: Bridgend | D85: W01001010 | E85: 6,338,468 | F85: 601 | G85: 10,547 | H85: 9,906
B86: Bridgend | C86: Bridgend | D86: W01001011 | E86: 6,256,277 | F86: 530 | G86: 11,804 | H86: 11,365
B87: Bridgend | C87: Bridgend | D87: W01001012 | E87: 8,385,865 | F87: 524 | G87: 16,004 | H87: 15,941
B88: Bridgend | C88: Bridgend | D88: W01001013 | E88: 8,414,732 | F88: 555 | G88: 15,162 | H88: 14,349
B89: Bridgend | C89: Bridgend | D89: W01001014 | E89: 10,651,967 | F89: 826 | G89: 12,896 | H89: 12,059
B90: Bridgend | C90: Bridgend | D90: W01001015 | E90: 8,175,037 | F90: 612 | G90: 13,358 | H90: 12,700
B91: Bridgend | C91: Bridgend | D91: W01001016 | E91: 11,304,464 | F91: 761 | G91: 14,855 | H91: 14,247
B92: Bridgend | C92: Bridgend | D92: W01001017 | E92: 11,138,655 | F92: 636 | G92: 17,514 | H92: 16,730
B93: Bridgend | C93: Bridgend | D93: W01001018 | E93: 9,886,227 | F93: 737 | G93: 13,414 | H93: 12,692
B94: Bridgend | C94: Bridgend | D94: W01001019 | E94: 9,095,172 | F94: 615 | G94: 14,789 | H94: 14,113
B95: Bridgend | C95: Bridgend | D95: W01001020 | E95: 7,830,101 | F95: 624 | G95: 12,548 | H95: 11,351
B96: Bridgend | C96: Bridgend | D96: W01001021 | E96: 10,004,280 | F96: 831 | G96: 12,039 | H96: 10,178
B97: Bridgend | C97: Bridgend | D97: W01001022 | E97: 7,172,024 | F97: 651 | G97: 11,017 | H97: 10,220
B98: Bridgend | C98: Bridgend | D98: W01001023 | E98: 9,484,988 | F98: 876 | G98: 10,828 | H98: 10,108
B99: Bridgend | C99: Bridgend | D99: W01001024 | E99: 7,215,911 | F99: 564 | G99: 12,794 | H99: 11,795
B100: Bridgend | C100: Bridgend | D100: W01001025 | E100: 7,507,289 | F100: 548 | G100: 13,699 | H100: 12,872
B101: Bridgend | C101: Bridgend | D101: W01001026 | E101: 9,705,220 | F101: 826 | G101: 11,750 | H101: 10,533
B102: Bridgend | C102: Bridgend | D102: W01001027 | E102: 9,736,460 | F102: 727 | G102: 13,393 | H102: 12,671
B103: Bridgend | C103: Bridgend | D103: W01001028 | E103: 12,970,628 | F103: 873 | G103: 14,858 | H103: 13,508
B104: Bridgend | C104: Bridgend | D104: W01001029 | E104: 10,664,616 | F104: 702 | G104: 15,192 | H104: 14,034
B105: Bridgend | C105: Bridgend | D105: W01001030 | E105: 13,019,935 | F105: 791 | G105: 16,460 | H105: 14,831
B106: Bridgend | C106: Bridgend | D106: W01001031 | E106: 10,240,028 | F106: 656 | G106: 15,610 | H106: 14,411
B107: Bridgend | C107: Bridgend | D107: W01001032 | E107: 11,923,419 | F107: 851 | G107: 14,011 | H107: 13,127
B108: Bridgend | C108: Bridgend | D108: W01001033 | E108: 11,566,508 | F108: 769 | G108: 15,041 | H108: 14,832
B109: Bridgend | C109: Bridgend | D109: W01001034 | E109: 8,587,242 | F109: 679 | G109: 12,647 | H109: 11,905
B110: Bridgend | C110: Bridgend | D110: W01001035 | E110: 10,322,810 | F110: 849 | G110: 12,159 | H110: 10,872
B111: Bridgend | C111: Bridgend | D111: W01001036 | E111: 12,018,086 | F111: 642 | G111: 18,720 | H111: 17,269
B112: Bridgend | C112: Bridgend | D112: W01001037 | E112: 10,644,848 | F112: 675 | G112: 15,770 | H112: 14,247
B113: Bridgend | C113: Bridgend | D113: W01001038 | E113: 11,112,360 | F113: 980 | G113: 11,339 | H113: 10,754
B114: Bridgend | C114: Bridgend | D114: W01001039 | E114: 9,254,266 | F114: 655 | G114: 14,129 | H114: 13,266
B115: Bridgend | C115: Bridgend | D115: W01001040 | E115: 7,868,605 | F115: 553 | G115: 14,229 | H115: 12,913
B116: Bridgend | C116: Bridgend | D116: W01001041 | E116: 14,376,082 | F116: 873 | G116: 16,467 | H116: 15,763
B117: Bridgend | C117: Bridgend | D117: W01001042 | E117: 8,198,963 | F117: 600 | G117: 13,665 | H117: 13,363
B118: Bridgend | C118: Bridgend | D118: W01001043 | E118: 7,314,029 | F118: 565 | G118: 12,945 | H118: 12,540
B119: Bridgend | C119: Bridgend | D119: W01001044 | E119: 8,171,591 | F119: 753 | G119: 10,852 | H119: 10,271
B120: Bridgend | C120: Bridgend | D120: W01001045 | E120: 9,949,439 | F120: 794 | G120: 12,531 | H120: 11,722
B121: Bridgend | C121: Bridgend | D121: W01001046 | E121: 11,352,641 | F121: 884 | G121: 12,842 | H121: 10,501
B122: Bridgend | C122: Bridgend | D122: W01001047 | E122: 12,582,305 | F122: 811 | G122: 15,515 | H122: 14,776
B123: Bridgend | C123: Bridgend | D123: W01001048 | E123: 8,258,345 | F123: 636 | G123: 12,985 | H123: 12,193
B124: Bridgend | C124: Bridgend | D124: W01001049 | E124: 6,149,728 | F124: 527 | G124: 11,669 | H124: 11,169
B125: Bridgend | C125: Bridgend | D125: W01001050 | E125: 9,573,006 | F125: 731 | G125: 13,096 | H125: 11,623
B126: Bridgend | C126: Bridgend | D126: W01001051 | E126: 8,876,932 | F126: 669 | G126: 13,269 | H126: 12,483
B127: Bridgend | C127: Bridgend | D127: W01001052 | E127: 6,418,258 | F127: 556 | G127: 11,544 | H127: 10,787
B128: Bridgend | C128: Bridgend | D128: W01001053 | E128: 6,988,284 | F128: 455 | G128: 15,359 | H128: 14,952
B129: Bridgend | C129: Bridgend | D129: W01001054 | E129: 10,357,521 | F129: 559 | G129: 18,529 | H129: 17,192
B130: Bridgend | C130: Bridgend | D130: W01001055 | E130: 6,358,283 | F130: 536 | G130: 11,862 | H130: 11,346
B131: Bridgend | C131: Bridgend | D131: W01001056 | E131: 6,952,894 | F131: 503 | G131: 13,823 | H131: 13,435
B132: Bridgend | C132: Bridgend | D132: W01001057 | E132: 6,926,281 | F132: 677 | G132: 10,231 | H132: 9,203
B133: Bridgend | C133: Bridgend | D133: W01001058 | E133: 10,961,869 | F133: 799 | G133: 13,719 | H133: 12,959
B134: Bridgend | C134: Bridgend | D134: W01001918 | E134: 6,905,306 | F134: 559 | G134: 12,353 | H134: 11,978
B135: Bridgend | C135: Bridgend | D135: W01001919 | E135: 6,433,148 | F135: 510 | G135: 12,614 | H135: 12,033
B136: Bridgend | C136: Bridgend | D136: W01001920 | E136: 6,041,173 | F136: 440 | G136: 13,730 | H136: 13,108
B137: Bridgend | C137: Bridgend | D137: W01001921 | E137: 7,231,588 | F137: 585 | G137: 12,362 | H137: 12,228
B138: Bridgend | C138: Bridgend | D138: Unallocated | E138: 1,052,111 | F138: 74 | G138: 14,218 | H138: 13,030
B139: Caerphilly | C139: Caerphilly | D139: W01001325 | E139: 8,489,966 | F139: 591 | G139: 14,365 | H139: 14,259
B140: Caerphilly | C140: Caerphilly | D140: W01001326 | E140: 12,401,415 | F140: 910 | G140: 13,628 | H140: 12,785
B141: Caerphilly | C141: Caerphilly | D141: W01001327 | E141: 12,665,598 | F141: 1,020 | G141: 12,417 | H141: 11,371
B142: Caerphilly | C142: Caerphilly | D142: W01001328 | E142: 9,212,815 | F142: 658 | G142: 14,001 | H142: 13,390
B143: Caerphilly | C143: Caerphilly | D143: W01001329 | E143: 8,878,897 | F143: 702 | G143: 12,648 | H143: 12,244
B144: Caerphilly | C144: Caerphilly | D144: W01001330 | E144: 8,229,884 | F144: 605 | G144: 13,603 | H144: 12,820
B145: Caerphilly | C145: Caerphilly | D145: W01001331 | E145: 10,273,626 | F145: 753 | G145: 13,644 | H145: 13,182
B146: Caerphilly | C146: Caerphilly | D146: W01001332 | E146: 10,818,975 | F146: 832 | G146: 13,004 | H146: 12,049
B147: Caerphilly | C147: Caerphilly | D147: W01001333 | E147: 8,138,453 | F147: 630 | G147: 12,918 | H147: 11,891
B148: Caerphilly | C148: Caerphilly | D148: W01001334 | E148: 7,934,354 | F148: 605 | G148: 13,115 | H148: 12,449
B149: Caerphilly | C149: Caerphilly | D149: W01001335 | E149: 6,901,829 | F149: 431 | G149: 16,014 | H149: 16,500
B150: Caerphilly | C150: Caerphilly | D150: W01001336 | E150: 8,895,397 | F150: 609 | G150: 14,607 | H150: 14,034
B151: Caerphilly | C151: Caerphilly | D151: W01001337 | E151: 10,455,295 | F151: 682 | G151: 15,330 | H151: 14,846
B152: Caerphilly | C152: Caerphilly | D152: W01001338 | E152: 11,819,468 | F152: 840 | G152: 14,071 | H152: 13,599
B153: Caerphilly | C153: Caerphilly | D153: W01001339 | E153: 8,309,414 | F153: 627 | G153: 13,253 | H153: 12,168
B154: Caerphilly | C154: Caerphilly | D154: W01001340 | E154: 11,036,027 | F154: 706 | G154: 15,632 | H154: 14,711
B155: Caerphilly | C155: Caerphilly | D155: W01001341 | E155: 9,000,593 | F155: 803 | G155: 11,209 | H155: 10,497
B156: Caerphilly | C156: Caerphilly | D156: W01001342 | E156: 6,957,164 | F156: 504 | G156: 13,804 | H156: 12,742
B157: Caerphilly | C157: Caerphilly | D157: W01001343 | E157: 6,565,561 | F157: 474 | G157: 13,851 | H157: 12,928
B158: Caerphilly | C158: Caerphilly | D158: W01001344 | E158: 10,686,463 | F158: 732 | G158: 14,599 | H158: 13,327
B159: Caerphilly | C159: Caerphilly | D159: W01001345 | E159: 6,638,733 | F159: 599 | G159: 11,083 | H159: 10,836
B160: Caerphilly | C160: Caerphilly | D160: W01001346 | E160: 8,316,701 | F160: 661 | G160: 12,582 | H160: 12,026
B161: Caerphilly | C161: Caerphilly | D161: W01001347 | E161: 10,803,749 | F161: 636 | G161: 16,987 | H161: 15,719
B162: Caerphilly | C162: Caerphilly | D162: W01001348 | E162: 8,991,449 | F162: 685 | G162: 13,126 | H162: 12,748
B163: Caerphilly | C163: Caerphilly | D163: W01001349 | E163: 10,789,991 | F163: 688 | G163: 15,683 | H163: 15,101
B164: Caerphilly | C164: Caerphilly | D164: W01001350 | E164: 13,494,695 | F164: 876 | G164: 15,405 | H164: 14,367
B165: Caerphilly | C165: Caerphilly | D165: W01001351 | E165: 10,305,172 | F165: 638 | G165: 16,152 | H165: 15,518
B166: Caerphilly | C166: Caerphilly | D166: W01001352 | E166: 11,547,576 | F166: 769 | G166: 15,016 | H166: 14,473
B167: Caerphilly | C167: Caerphilly | D167: W01001353 | E167: 9,630,631 | F167: 698 | G167: 13,797 | H167: 13,307
B168: Caerphilly | C168: Caerphilly | D168: W01001354 | E168: 9,927,404 | F168: 728 | G168: 13,637 | H168: 12,629
B169: Caerphilly | C169: Caerphilly | D169: W01001355 | E169: 8,795,236 | F169: 716 | G169: 12,284 | H169: 11,091
B170: Caerphilly | C170: Caerphilly | D170: W01001356 | E170: 7,895,940 | F170: 495 | G170: 15,951 | H170: 15,993
B171: Caerphilly | C171: Caerphilly | D171: W01001357 | E171: 9,370,738 | F171: 605 | G171: 15,489 | H171: 14,847
B172: Caerphilly | C172: Caerphilly | D172: W01001358 | E172: 7,799,408 | F172: 577 | G172: 13,517 | H172: 13,098
B173: Caerphilly | C173: Caerphilly | D173: W01001359 | E173: 9,499,000 | F173: 650 | G173: 14,614 | H173: 13,763
B174: Caerphilly | C174: Caerphilly | D174: W01001360 | E174: 9,223,542 | F174: 557 | G174: 16,559 | H174: 16,733
B175: Caerphilly | C175: Caerphilly | D175: W01001361 | E175: 6,820,384 | F175: 507 | G175: 13,452 | H175: 12,208
B176: Caerphilly | C176: Caerphilly | D176: W01001362 | E176: 13,312,069 | F176: 918 | G176: 14,501 | H176: 13,716
B177: Caerphilly | C177: Caerphilly | D177: W01001363 | E177: 8,354,628 | F177: 597 | G177: 13,994 | H177: 13,358
B178: Caerphilly | C178: Caerphilly | D178: W01001364 | E178: 9,013,147 | F178: 712 | G178: 12,659 | H178: 12,533
B179: Caerphilly | C179: Caerphilly | D179: W01001365 | E179: 12,509,925 | F179: 845 | G179: 14,805 | H179: 13,986
B180: Caerphilly | C180: Caerphilly | D180: W01001366 | E180: 8,892,095 | F180: 692 | G180: 12,850 | H180: 12,282
B181: Caerphilly | C181: Caerphilly | D181: W01001367 | E181: 8,308,952 | F181: 643 | G181: 12,922 | H181: 12,445
B182: Caerphilly | C182: Caerphilly | D182: W01001368 | E182: 8,624,087 | F182: 655 | G182: 13,167 | H182: 11,964
B183: Caerphilly | C183: Caerphilly | D183: W01001369 | E183: 14,740,832 | F183: 960 | G183: 15,355 | H183: 14,453
B184: Caerphilly | C184: Caerphilly | D184: W01001370 | E184: 10,562,684 | F184: 800 | G184: 13,203 | H184: 12,506
B185: Caerphilly | C185: Caerphilly | D185: W01001371 | E185: 7,919,176 | F185: 642 | G185: 12,335 | H185: 11,196
B186: Caerphilly | C186: Caerphilly | D186: W01001372 | E186: 10,791,462 | F186: 848 | G186: 12,726 | H186: 11,707
B187: Caerphilly | C187: Caerphilly | D187: W01001373 | E187: 9,769,680 | F187: 737 | G187: 13,256 | H187: 12,691
B188: Caerphilly | C188: Caerphilly | D188: W01001374 | E188: 8,779,817 | F188: 610 | G188: 14,393 | H188: 13,726
B189: Caerphilly | C189: Caerphilly | D189: W01001375 | E189: 10,851,577 | F189: 769 | G189: 14,111 | H189: 13,204
B190: Caerphilly | C190: Caerphilly | D190: W01001376 | E190: 7,993,626 | F190: 679 | G190: 11,773 | H190: 10,803
B191: Caerphilly | C191: Caerphilly | D191: W01001377 | E191: 10,187,880 | F191: 659 | G191: 15,460 | H191: 14,549
B192: Caerphilly | C192: Caerphilly | D192: W01001378 | E192: 9,812,981 | F192: 669 | G192: 14,668 | H192: 13,471
B193: Caerphilly | C193: Caerphilly | D193: W01001379 | E193: 8,966,282 | F193: 643 | G193: 13,944 | H193: 13,048
B194: Caerphilly | C194: Caerphilly | D194: W01001380 | E194: 11,429,188 | F194: 777 | G194: 14,709 | H194: 13,545
B195: Caerphilly | C195: Caerphilly | D195: W01001381 | E195: 7,524,126 | F195: 632 | G195: 11,905 | H195: 11,477
B196: Caerphilly | C196: Caerphilly | D196: W01001382 | E196: 10,089,706 | F196: 669 | G196: 15,082 | H196: 14,426
B197: Caerphilly | C197: Caerphilly | D197: W01001383 | E197: 9,896,866 | F197: 694 | G197: 14,261 | H197: 13,393
B198: Caerphilly | C198: Caerphilly | D198: W01001384 | E198: 10,016,149 | F198: 716 | G198: 13,989 | H198: 13,385
B199: Caerphilly | C199: Caerphilly | D199: W01001385 | E199: 9,008,277 | F199: 741 | G199: 12,157 | H199: 11,507
B200: Caerphilly | C200: Caerphilly | D200: W01001386 | E200: 9,302,827 | F200: 718 | G200: 12,957 | H200: 12,289
... 1579 more rows

Sheet no dwellings per OA (hidden)
A1: KS401EW - Dwellings, household spaces and accommodation type
A2: ONS Crown Copyright Reserved [from Nomis on 12 February 2015]
A4: population | B4: All dwellings; all household spaces
A5: units | B5: Household spaces and Dwellings
A6: rural urban | B6: Total
A7: dwelling type | B7: All categories: Dwelling type
A9: 2011 output area | B9: 2011
A10: W00000005 | B10: 233
A11: W00000006 | B11: 175
A12: W00000008 | B12: 131
A13: W00000009 | B13: 193
A14: W00009977 | B14: 121
A15: W00009978 | B15: 129
A16: W00009979 | B16: 122
A17: W00009980 | B17: 130
A18: W00000010 | B18: 144
A19: W00000011 | B19: 135
A20: W00000012 | B20: 148
A21: W00000013 | B21: 177
A22: W00000084 | B22: 112
A23: W00000086 | B23: 111
A24: W00000087 | B24: 144
A25: W00000088 | B25: 152
A26: W00000090 | B26: 72
A27: W00009981 | B27: 161
A28: W00000137 | B28: 93
A29: W00000138 | B29: 151
A30: W00000139 | B30: 187
A31: W00000140 | B31: 182
A32: W00000141 | B32: 122
A33: W00000142 | B33: 131
A34: W00000156 | B34: 134
A35: W00000157 | B35: 173
A36: W00000158 | B36: 153
A37: W00000159 | B37: 136
A38: W00000160 | B38: 142
A39: W00000042 | B39: 147
A40: W00000043 | B40: 161
A41: W00000044 | B41: 261
A42: W00000045 | B42: 152
A43: W00000046 | B43: 140
A44: W00000047 | B44: 148
A45: W00000097 | B45: 168
A46: W00000098 | B46: 140
A47: W00000099 | B47: 157
A48: W00000100 | B48: 164
A49: W00000101 | B49: 141
A50: W00000102 | B50: 151
A51: W00000103 | B51: 147
A52: W00000104 | B52: 149
A53: W00000105 | B53: 171
A54: W00000106 | B54: 146
A55: W00000107 | B55: 170
A56: W00000161 | B56: 141
A57: W00000162 | B57: 128
A58: W00000163 | B58: 199
A59: W00000164 | B59: 194
A60: W00000075 | B60: 140
A61: W00000076 | B61: 181
A62: W00000077 | B62: 190
A63: W00000078 | B63: 131
A64: W00000079 | B64: 135
A65: W00000080 | B65: 123
A66: W00000081 | B66: 140
A67: W00000082 | B67: 120
A68: W00000083 | B68: 146
A69: W00000143 | B69: 138
A70: W00000144 | B70: 141
A71: W00000145 | B71: 157
A72: W00000146 | B72: 150
A73: W00000147 | B73: 145
A74: W00000148 | B74: 98
A75: W00000149 | B75: 133
A76: W00000150 | B76: 160
A77: W00000151 | B77: 135
A78: W00000152 | B78: 140
A79: W00000153 | B79: 135
A80: W00000154 | B80: 125
A81: W00000155 | B81: 122
A82: W00000165 | B82: 138
A83: W00000166 | B83: 138
A84: W00000167 | B84: 140
A85: W00000168 | B85: 156
A86: W00000169 | B86: 142
A87: W00000180 | B87: 132
A88: W00000182 | B88: 137
A89: W00000186 | B89: 134
A90: W00000187 | B90: 143
A91: W00000181 | B91: 138
A92: W00000183 | B92: 126
A93: W00000184 | B93: 154
A94: W00000185 | B94: 128
A95: W00000108 | B95: 274
A96: W00000109 | B96: 110
A97: W00000110 | B97: 136
A98: W00000111 | B98: 151
A99: W00000112 | B99: 131
A100: W00000170 | B100: 123
A101: W00000171 | B101: 167
A102: W00000172 | B102: 122
A103: W00000173 | B103: 130
A104: W00000199 | B104: 163
A105: W00000200 | B105: 172
A106: W00000206 | B106: 239
A107: W00000207 | B107: 132
A108: W00000201 | B108: 76
A109: W00000202 | B109: 206
A110: W00000203 | B110: 156
A111: W00000204 | B111: 172
A112: W00000205 | B112: 159
A113: W00000220 | B113: 153
A114: W00000221 | B114: 132
A115: W00000222 | B115: 130
A116: W00000226 | B116: 140
A117: W00000223 | B117: 136
A118: W00000224 | B118: 132
A119: W00000225 | B119: 140
A120: W00000227 | B120: 111
A121: W00000014 | B121: 117
A122: W00000015 | B122: 138
A123: W00000016 | B123: 121
A124: W00000017 | B124: 165
A125: W00000018 | B125: 136
A126: W00000019 | B126: 170
A127: W00000020 | B127: 132
A128: W00000021 | B128: 153
A129: W00000057 | B129: 152
A130: W00000058 | B130: 175
A131: W00000059 | B131: 131
A132: W00000060 | B132: 144
A133: W00000061 | B133: 139
A134: W00000062 | B134: 170
A135: W00000063 | B135: 135
A136: W00000091 | B136: 151
A137: W00000092 | B137: 127
A138: W00000093 | B138: 139
A139: W00000094 | B139: 159
A140: W00000095 | B140: 139
A141: W00000096 | B141: 128
A142: W00000127 | B142: 165
A143: W00000128 | B143: 123
A144: W00000129 | B144: 151
A145: W00000130 | B145: 100
A146: W00000131 | B146: 150
A147: W00000174 | B147: 138
A148: W00000175 | B148: 221
A149: W00000176 | B149: 131
A150: W00000177 | B150: 115
A151: W00000178 | B151: 149
A152: W00000179 | B152: 162
A153: W00000022 | B153: 151
A154: W00000023 | B154: 141
A155: W00000024 | B155: 165
A156: W00000025 | B156: 113
A157: W00000026 | B157: 126
A158: W00000052 | B158: 122
A159: W00000053 | B159: 179
A160: W00000054 | B160: 130
A161: W00000055 | B161: 145
A162: W00000056 | B162: 145
A163: W00000064 | B163: 107
A164: W00000065 | B164: 141
A165: W00000066 | B165: 132
A166: W00000067 | B166: 214
A167: W00000068 | B167: 185
A168: W00000069 | B168: 151
A169: W00000208 | B169: 174
A170: W00000209 | B170: 98
A171: W00000210 | B171: 186
A172: W00000211 | B172: 71
A173: W00000212 | B173: 124
A174: W00000001 | B174: 189
A175: W00000002 | B175: 156
A176: W00000190 | B176: 249
A177: W00000191 | B177: 279
A178: W00000003 | B178: 172
A179: W00000004 | B179: 201
A180: W00000188 | B180: 181
A181: W00000189 | B181: 144
A182: W00000037 | B182: 202
A183: W00000038 | B183: 197
A184: W00000039 | B184: 161
A185: W00000040 | B185: 141
A186: W00000041 | B186: 124
A187: W00000113 | B187: 146
A188: W00000114 | B188: 136
A189: W00000115 | B189: 181
A190: W00000120 | B190: 163
A191: W00000116 | B191: 148
A192: W00000117 | B192: 154
A193: W00000118 | B193: 146
A194: W00000119 | B194: 96
A195: W00000032 | B195: 121
A196: W00000033 | B196: 138
A197: W00000034 | B197: 123
A198: W00000035 | B198: 146
A199: W00000036 | B199: 118
A200: W00000048 | B200: 187
A201: W00000049 | B201: 168
A202: W00000050 | B202: 146
... 9844 more rows

Sheet OA to LSOA (hidden)
A2: Taken from OA11_LSOA11_MSOA11_LAD11_EW_LUv2.csv
A4: OA Code | B4: LSOA Code | C4: LSOA Name
A5: OA11CD | B5: LSOA11CD | C5: LSOA11NM | D5: MSOA11CD | E5: MSOA11NM | F5: LAD11CD | G5: LAD11NM | H5: LAD11NMW
A6: W00000001 | B6: W01000001 | C6: Isle of Anglesey 007A | D6: W02000007 | E6: Isle of Anglesey 007 | F6: W06000001 | G6: Isle of Anglesey | H6: Ynys Môn
A7: W00000002 | B7: W01000001 | C7: Isle of Anglesey 007A | D7: W02000007 | E7: Isle of Anglesey 007 | F7: W06000001 | G7: Isle of Anglesey | H7: Ynys Môn
A8: W00000003 | B8: W01000002 | C8: Isle of Anglesey 007B | D8: W02000007 | E8: Isle of Anglesey 007 | F8: W06000001 | G8: Isle of Anglesey | H8: Ynys Môn
A9: W00000004 | B9: W01000002 | C9: Isle of Anglesey 007B | D9: W02000007 | E9: Isle of Anglesey 007 | F9: W06000001 | G9: Isle of Anglesey | H9: Ynys Môn
A10: W00000005 | B10: W01000003 | C10: Isle of Anglesey 001A | D10: W02000001 | E10: Isle of Anglesey 001 | F10: W06000001 | G10: Isle of Anglesey | H10: Ynys Môn
A11: W00000006 | B11: W01000003 | C11: Isle of Anglesey 001A | D11: W02000001 | E11: Isle of Anglesey 001 | F11: W06000001 | G11: Isle of Anglesey | H11: Ynys Môn
A12: W00000008 | B12: W01000003 | C12: Isle of Anglesey 001A | D12: W02000001 | E12: Isle of Anglesey 001 | F12: W06000001 | G12: Isle of Anglesey | H12: Ynys Môn
A13: W00000009 | B13: W01000003 | C13: Isle of Anglesey 001A | D13: W02000001 | E13: Isle of Anglesey 001 | F13: W06000001 | G13: Isle of Anglesey | H13: Ynys Môn
A14: W00000010 | B14: W01000004 | C14: Isle of Anglesey 001B | D14: W02000001 | E14: Isle of Anglesey 001 | F14: W06000001 | G14: Isle of Anglesey | H14: Ynys Môn
A15: W00000011 | B15: W01000004 | C15: Isle of Anglesey 001B | D15: W02000001 | E15: Isle of Anglesey 001 | F15: W06000001 | G15: Isle of Anglesey | H15: Ynys Môn
A16: W00000012 | B16: W01000004 | C16: Isle of Anglesey 001B | D16: W02000001 | E16: Isle of Anglesey 001 | F16: W06000001 | G16: Isle of Anglesey | H16: Ynys Môn
A17: W00000013 | B17: W01000004 | C17: Isle of Anglesey 001B | D17: W02000001 | E17: Isle of Anglesey 001 | F17: W06000001 | G17: Isle of Anglesey | H17: Ynys Môn
A18: W00000014 | B18: W01000005 | C18: Isle of Anglesey 005A | D18: W02000005 | E18: Isle of Anglesey 005 | F18: W06000001 | G18: Isle of Anglesey | H18: Ynys Môn
A19: W00000015 | B19: W01000005 | C19: Isle of Anglesey 005A | D19: W02000005 | E19: Isle of Anglesey 005 | F19: W06000001 | G19: Isle of Anglesey | H19: Ynys Môn
A20: W00000016 | B20: W01000005 | C20: Isle of Anglesey 005A | D20: W02000005 | E20: Isle of Anglesey 005 | F20: W06000001 | G20: Isle of Anglesey | H20: Ynys Môn
A21: W00000017 | B21: W01000005 | C21: Isle of Anglesey 005A | D21: W02000005 | E21: Isle of Anglesey 005 | F21: W06000001 | G21: Isle of Anglesey | H21: Ynys Môn
A22: W00000018 | B22: W01000005 | C22: Isle of Anglesey 005A | D22: W02000005 | E22: Isle of Anglesey 005 | F22: W06000001 | G22: Isle of Anglesey | H22: Ynys Môn
A23: W00000019 | B23: W01000005 | C23: Isle of Anglesey 005A | D23: W02000005 | E23: Isle of Anglesey 005 | F23: W06000001 | G23: Isle of Anglesey | H23: Ynys Môn
A24: W00000020 | B24: W01000005 | C24: Isle of Anglesey 005A | D24: W02000005 | E24: Isle of Anglesey 005 | F24: W06000001 | G24: Isle of Anglesey | H24: Ynys Môn
A25: W00000021 | B25: W01000005 | C25: Isle of Anglesey 005A | D25: W02000005 | E25: Isle of Anglesey 005 | F25: W06000001 | G25: Isle of Anglesey | H25: Ynys Môn
A26: W00000022 | B26: W01000006 | C26: Isle of Anglesey 006A | D26: W02000006 | E26: Isle of Anglesey 006 | F26: W06000001 | G26: Isle of Anglesey | H26: Ynys Môn
A27: W00000023 | B27: W01000006 | C27: Isle of Anglesey 006A | D27: W02000006 | E27: Isle of Anglesey 006 | F27: W06000001 | G27: Isle of Anglesey | H27: Ynys Môn
A28: W00000024 | B28: W01000006 | C28: Isle of Anglesey 006A | D28: W02000006 | E28: Isle of Anglesey 006 | F28: W06000001 | G28: Isle of Anglesey | H28: Ynys Môn
A29: W00000025 | B29: W01000006 | C29: Isle of Anglesey 006A | D29: W02000006 | E29: Isle of Anglesey 006 | F29: W06000001 | G29: Isle of Anglesey | H29: Ynys Môn
A30: W00000026 | B30: W01000006 | C30: Isle of Anglesey 006A | D30: W02000006 | E30: Isle of Anglesey 006 | F30: W06000001 | G30: Isle of Anglesey | H30: Ynys Môn
A31: W00000027 | B31: W01000007 | C31: Isle of Anglesey 009A | D31: W02000009 | E31: Isle of Anglesey 009 | F31: W06000001 | G31: Isle of Anglesey | H31: Ynys Môn
A32: W00000028 | B32: W01000007 | C32: Isle of Anglesey 009A | D32: W02000009 | E32: Isle of Anglesey 009 | F32: W06000001 | G32: Isle of Anglesey | H32: Ynys Môn
A33: W00000029 | B33: W01000007 | C33: Isle of Anglesey 009A | D33: W02000009 | E33: Isle of Anglesey 009 | F33: W06000001 | G33: Isle of Anglesey | H33: Ynys Môn
A34: W00000030 | B34: W01000007 | C34: Isle of Anglesey 009A | D34: W02000009 | E34: Isle of Anglesey 009 | F34: W06000001 | G34: Isle of Anglesey | H34: Ynys Môn
A35: W00000031 | B35: W01000007 | C35: Isle of Anglesey 009A | D35: W02000009 | E35: Isle of Anglesey 009 | F35: W06000001 | G35: Isle of Anglesey | H35: Ynys Môn
A36: W00000032 | B36: W01000008 | C36: Isle of Anglesey 008A | D36: W02000008 | E36: Isle of Anglesey 008 | F36: W06000001 | G36: Isle of Anglesey | H36: Ynys Môn
A37: W00000033 | B37: W01000008 | C37: Isle of Anglesey 008A | D37: W02000008 | E37: Isle of Anglesey 008 | F37: W06000001 | G37: Isle of Anglesey | H37: Ynys Môn
A38: W00000034 | B38: W01000008 | C38: Isle of Anglesey 008A | D38: W02000008 | E38: Isle of Anglesey 008 | F38: W06000001 | G38: Isle of Anglesey | H38: Ynys Môn
A39: W00000035 | B39: W01000008 | C39: Isle of Anglesey 008A | D39: W02000008 | E39: Isle of Anglesey 008 | F39: W06000001 | G39: Isle of Anglesey | H39: Ynys Môn
A40: W00000036 | B40: W01000008 | C40: Isle of Anglesey 008A | D40: W02000008 | E40: Isle of Anglesey 008 | F40: W06000001 | G40: Isle of Anglesey | H40: Ynys Môn
A41: W00000037 | B41: W01000009 | C41: Isle of Anglesey 007C | D41: W02000007 | E41: Isle of Anglesey 007 | F41: W06000001 | G41: Isle of Anglesey | H41: Ynys Môn
A42: W00000038 | B42: W01000009 | C42: Isle of Anglesey 007C | D42: W02000007 | E42: Isle of Anglesey 007 | F42: W06000001 | G42: Isle of Anglesey | H42: Ynys Môn
A43: W00000039 | B43: W01000009 | C43: Isle of Anglesey 007C | D43: W02000007 | E43: Isle of Anglesey 007 | F43: W06000001 | G43: Isle of Anglesey | H43: Ynys Môn
A44: W00000040 | B44: W01000009 | C44: Isle of Anglesey 007C | D44: W02000007 | E44: Isle of Anglesey 007 | F44: W06000001 | G44: Isle of Anglesey | H44: Ynys Môn
A45: W00000041 | B45: W01000009 | C45: Isle of Anglesey 007C | D45: W02000007 | E45: Isle of Anglesey 007 | F45: W06000001 | G45: Isle of Anglesey | H45: Ynys Môn
A46: W00000042 | B46: W01000010 | C46: Isle of Anglesey 002A | D46: W02000002 | E46: Isle of Anglesey 002 | F46: W06000001 | G46: Isle of Anglesey | H46: Ynys Môn
A47: W00000043 | B47: W01000010 | C47: Isle of Anglesey 002A | D47: W02000002 | E47: Isle of Anglesey 002 | F47: W06000001 | G47: Isle of Anglesey | H47: Ynys Môn
A48: W00000044 | B48: W01000010 | C48: Isle of Anglesey 002A | D48: W02000002 | E48: Isle of Anglesey 002 | F48: W06000001 | G48: Isle of Anglesey | H48: Ynys Môn
A49: W00000045 | B49: W01000010 | C49: Isle of Anglesey 002A | D49: W02000002 | E49: Isle of Anglesey 002 | F49: W06000001 | G49: Isle of Anglesey | H49: Ynys Môn
A50: W00000046 | B50: W01000010 | C50: Isle of Anglesey 002A | D50: W02000002 | E50: Isle of Anglesey 002 | F50: W06000001 | G50: Isle of Anglesey | H50: Ynys Môn
A51: W00000047 | B51: W01000010 | C51: Isle of Anglesey 002A | D51: W02000002 | E51: Isle of Anglesey 002 | F51: W06000001 | G51: Isle of Anglesey | H51: Ynys Môn
A52: W00000048 | B52: W01000011 | C52: Isle of Anglesey 008B | D52: W02000008 | E52: Isle of Anglesey 008 | F52: W06000001 | G52: Isle of Anglesey | H52: Ynys Môn
A53: W00000049 | B53: W01000011 | C53: Isle of Anglesey 008B | D53: W02000008 | E53: Isle of Anglesey 008 | F53: W06000001 | G53: Isle of Anglesey | H53: Ynys Môn
A54: W00000050 | B54: W01000011 | C54: Isle of Anglesey 008B | D54: W02000008 | E54: Isle of Anglesey 008 | F54: W06000001 | G54: Isle of Anglesey | H54: Ynys Môn
A55: W00000051 | B55: W01000011 | C55: Isle of Anglesey 008B | D55: W02000008 | E55: Isle of Anglesey 008 | F55: W06000001 | G55: Isle of Anglesey | H55: Ynys Môn
A56: W00000052 | B56: W01000012 | C56: Isle of Anglesey 006B | D56: W02000006 | E56: Isle of Anglesey 006 | F56: W06000001 | G56: Isle of Anglesey | H56: Ynys Môn
A57: W00000053 | B57: W01000012 | C57: Isle of Anglesey 006B | D57: W02000006 | E57: Isle of Anglesey 006 | F57: W06000001 | G57: Isle of Anglesey | H57: Ynys Môn
A58: W00000054 | B58: W01000012 | C58: Isle of Anglesey 006B | D58: W02000006 | E58: Isle of Anglesey 006 | F58: W06000001 | G58: Isle of Anglesey | H58: Ynys Môn
A59: W00000055 | B59: W01000012 | C59: Isle of Anglesey 006B | D59: W02000006 | E59: Isle of Anglesey 006 | F59: W06000001 | G59: Isle of Anglesey | H59: Ynys Môn
A60: W00000056 | B60: W01000012 | C60: Isle of Anglesey 006B | D60: W02000006 | E60: Isle of Anglesey 006 | F60: W06000001 | G60: Isle of Anglesey | H60: Ynys Môn
A61: W00000057 | B61: W01000013 | C61: Isle of Anglesey 005B | D61: W02000005 | E61: Isle of Anglesey 005 | F61: W06000001 | G61: Isle of Anglesey | H61: Ynys Môn
A62: W00000058 | B62: W01000013 | C62: Isle of Anglesey 005B | D62: W02000005 | E62: Isle of Anglesey 005 | F62: W06000001 | G62: Isle of Anglesey | H62: Ynys Môn
A63: W00000059 | B63: W01000013 | C63: Isle of Anglesey 005B | D63: W02000005 | E63: Isle of Anglesey 005 | F63: W06000001 | G63: Isle of Anglesey | H63: Ynys Môn
A64: W00000060 | B64: W01000013 | C64: Isle of Anglesey 005B | D64: W02000005 | E64: Isle of Anglesey 005 | F64: W06000001 | G64: Isle of Anglesey | H64: Ynys Môn
A65: W00000061 | B65: W01000013 | C65: Isle of Anglesey 005B | D65: W02000005 | E65: Isle of Anglesey 005 | F65: W06000001 | G65: Isle of Anglesey | H65: Ynys Môn
A66: W00000062 | B66: W01000013 | C66: Isle of Anglesey 005B | D66: W02000005 | E66: Isle of Anglesey 005 | F66: W06000001 | G66: Isle of Anglesey | H66: Ynys Môn
A67: W00000063 | B67: W01000013 | C67: Isle of Anglesey 005B | D67: W02000005 | E67: Isle of Anglesey 005 | F67: W06000001 | G67: Isle of Anglesey | H67: Ynys Môn
A68: W00000064 | B68: W01000014 | C68: Isle of Anglesey 006C | D68: W02000006 | E68: Isle of Anglesey 006 | F68: W06000001 | G68: Isle of Anglesey | H68: Ynys Môn
A69: W00000065 | B69: W01000014 | C69: Isle of Anglesey 006C | D69: W02000006 | E69: Isle of Anglesey 006 | F69: W06000001 | G69: Isle of Anglesey | H69: Ynys Môn
A70: W00000066 | B70: W01000014 | C70: Isle of Anglesey 006C | D70: W02000006 | E70: Isle of Anglesey 006 | F70: W06000001 | G70: Isle of Anglesey | H70: Ynys Môn
A71: W00000067 | B71: W01000014 | C71: Isle of Anglesey 006C | D71: W02000006 | E71: Isle of Anglesey 006 | F71: W06000001 | G71: Isle of Anglesey | H71: Ynys Môn
A72: W00000068 | B72: W01000014 | C72: Isle of Anglesey 006C | D72: W02000006 | E72: Isle of Anglesey 006 | F72: W06000001 | G72: Isle of Anglesey | H72: Ynys Môn
A73: W00000069 | B73: W01000014 | C73: Isle of Anglesey 006C | D73: W02000006 | E73: Isle of Anglesey 006 | F73: W06000001 | G73: Isle of Anglesey | H73: Ynys Môn
A74: W00000070 | B74: W01000015 | C74: Isle of Anglesey 008C | D74: W02000008 | E74: Isle of Anglesey 008 | F74: W06000001 | G74: Isle of Anglesey | H74: Ynys Môn
A75: W00000071 | B75: W01000015 | C75: Isle of Anglesey 008C | D75: W02000008 | E75: Isle of Anglesey 008 | F75: W06000001 | G75: Isle of Anglesey | H75: Ynys Môn
A76: W00000072 | B76: W01000015 | C76: Isle of Anglesey 008C | D76: W02000008 | E76: Isle of Anglesey 008 | F76: W06000001 | G76: Isle of Anglesey | H76: Ynys Môn
A77: W00000073 | B77: W01000015 | C77: Isle of Anglesey 008C | D77: W02000008 | E77: Isle of Anglesey 008 | F77: W06000001 | G77: Isle of Anglesey | H77: Ynys Môn
A78: W00000074 | B78: W01000015 | C78: Isle of Anglesey 008C | D78: W02000008 | E78: Isle of Anglesey 008 | F78: W06000001 | G78: Isle of Anglesey | H78: Ynys Môn
A79: W00000075 | B79: W01000016 | C79: Isle of Anglesey 003A | D79: W02000003 | E79: Isle of Anglesey 003 | F79: W06000001 | G79: Isle of Anglesey | H79: Ynys Môn
A80: W00000076 | B80: W01000016 | C80: Isle of Anglesey 003A | D80: W02000003 | E80: Isle of Anglesey 003 | F80: W06000001 | G80: Isle of Anglesey | H80: Ynys Môn
A81: W00000077 | B81: W01000016 | C81: Isle of Anglesey 003A | D81: W02000003 | E81: Isle of Anglesey 003 | F81: W06000001 | G81: Isle of Anglesey | H81: Ynys Môn
A82: W00000078 | B82: W01000016 | C82: Isle of Anglesey 003A | D82: W02000003 | E82: Isle of Anglesey 003 | F82: W06000001 | G82: Isle of Anglesey | H82: Ynys Môn
A83: W00000079 | B83: W01000017 | C83: Isle of Anglesey 003B | D83: W02000003 | E83: Isle of Anglesey 003 | F83: W06000001 | G83: Isle of Anglesey | H83: Ynys Môn
A84: W00000080 | B84: W01000017 | C84: Isle of Anglesey 003B | D84: W02000003 | E84: Isle of Anglesey 003 | F84: W06000001 | G84: Isle of Anglesey | H84: Ynys Môn
A85: W00000081 | B85: W01000017 | C85: Isle of Anglesey 003B | D85: W02000003 | E85: Isle of Anglesey 003 | F85: W06000001 | G85: Isle of Anglesey | H85: Ynys Môn
A86: W00000082 | B86: W01000017 | C86: Isle of Anglesey 003B | D86: W02000003 | E86: Isle of Anglesey 003 | F86: W06000001 | G86: Isle of Anglesey | H86: Ynys Môn
A87: W00000083 | B87: W01000017 | C87: Isle of Anglesey 003B | D87: W02000003 | E87: Isle of Anglesey 003 | F87: W06000001 | G87: Isle of Anglesey | H87: Ynys Môn
A88: W00000084 | B88: W01000018 | C88: Isle of Anglesey 001C | D88: W02000001 | E88: Isle of Anglesey 001 | F88: W06000001 | G88: Isle of Anglesey | H88: Ynys Môn
A89: W00000086 | B89: W01000018 | C89: Isle of Anglesey 001C | D89: W02000001 | E89: Isle of Anglesey 001 | F89: W06000001 | G89: Isle of Anglesey | H89: Ynys Môn
A90: W00000087 | B90: W01000018 | C90: Isle of Anglesey 001C | D90: W02000001 | E90: Isle of Anglesey 001 | F90: W06000001 | G90: Isle of Anglesey | H90: Ynys Môn
A91: W00000088 | B91: W01000018 | C91: Isle of Anglesey 001C | D91: W02000001 | E91: Isle of Anglesey 001 | F91: W06000001 | G91: Isle of Anglesey | H91: Ynys Môn
A92: W00000090 | B92: W01000018 | C92: Isle of Anglesey 001C | D92: W02000001 | E92: Isle of Anglesey 001 | F92: W06000001 | G92: Isle of Anglesey | H92: Ynys Môn
A93: W00000091 | B93: W01000019 | C93: Isle of Anglesey 005C | D93: W02000005 | E93: Isle of Anglesey 005 | F93: W06000001 | G93: Isle of Anglesey | H93: Ynys Môn
A94: W00000092 | B94: W01000019 | C94: Isle of Anglesey 005C | D94: W02000005 | E94: Isle of Anglesey 005 | F94: W06000001 | G94: Isle of Anglesey | H94: Ynys Môn
A95: W00000093 | B95: W01000019 | C95: Isle of Anglesey 005C | D95: W02000005 | E95: Isle of Anglesey 005 | F95: W06000001 | G95: Isle of Anglesey | H95: Ynys Môn
A96: W00000094 | B96: W01000019 | C96: Isle of Anglesey 005C | D96: W02000005 | E96: Isle of Anglesey 005 | F96: W06000001 | G96: Isle of Anglesey | H96: Ynys Môn
A97: W00000095 | B97: W01000019 | C97: Isle of Anglesey 005C | D97: W02000005 | E97: Isle of Anglesey 005 | F97: W06000001 | G97: Isle of Anglesey | H97: Ynys Môn
A98: W00000096 | B98: W01000019 | C98: Isle of Anglesey 005C | D98: W02000005 | E98: Isle of Anglesey 005 | F98: W06000001 | G98: Isle of Anglesey | H98: Ynys Môn
A99: W00000097 | B99: W01000020 | C99: Isle of Anglesey 002B | D99: W02000002 | E99: Isle of Anglesey 002 | F99: W06000001 | G99: Isle of Anglesey | H99: Ynys Môn
A100: W00000098 | B100: W01000020 | C100: Isle of Anglesey 002B | D100: W02000002 | E100: Isle of Anglesey 002 | F100: W06000001 | G100: Isle of Anglesey | H100: Ynys Môn
A101: W00000099 | B101: W01000020 | C101: Isle of Anglesey 002B | D101: W02000002 | E101: Isle of Anglesey 002 | F101: W06000001 | G101: Isle of Anglesey | H101: Ynys Môn
A102: W00000100 | B102: W01000020 | C102: Isle of Anglesey 002B | D102: W02000002 | E102: Isle of Anglesey 002 | F102: W06000001 | G102: Isle of Anglesey | H102: Ynys Môn
A103: W00000101 | B103: W01000021 | C103: Isle of Anglesey 002C | D103: W02000002 | E103: Isle of Anglesey 002 | F103: W06000001 | G103: Isle of Anglesey | H103: Ynys Môn
A104: W00000102 | B104: W01000021 | C104: Isle of Anglesey 002C | D104: W02000002 | E104: Isle of Anglesey 002 | F104: W06000001 | G104: Isle of Anglesey | H104: Ynys Môn
A105: W00000103 | B105: W01000021 | C105: Isle of Anglesey 002C | D105: W02000002 | E105: Isle of Anglesey 002 | F105: W06000001 | G105: Isle of Anglesey | H105: Ynys Môn
A106: W00000104 | B106: W01000021 | C106: Isle of Anglesey 002C | D106: W02000002 | E106: Isle of Anglesey 002 | F106: W06000001 | G106: Isle of Anglesey | H106: Ynys Môn
A107: W00000105 | B107: W01000021 | C107: Isle of Anglesey 002C | D107: W02000002 | E107: Isle of Anglesey 002 | F107: W06000001 | G107: Isle of Anglesey | H107: Ynys Môn
A108: W00000106 | B108: W01000021 | C108: Isle of Anglesey 002C | D108: W02000002 | E108: Isle of Anglesey 002 | F108: W06000001 | G108: Isle of Anglesey | H108: Ynys Môn
A109: W00000107 | B109: W01000021 | C109: Isle of Anglesey 002C | D109: W02000002 | E109: Isle of Anglesey 002 | F109: W06000001 | G109: Isle of Anglesey | H109: Ynys Môn
A110: W00000108 | B110: W01000022 | C110: Isle of Anglesey 004A | D110: W02000004 | E110: Isle of Anglesey 004 | F110: W06000001 | G110: Isle of Anglesey | H110: Ynys Môn
A111: W00000109 | B111: W01000022 | C111: Isle of Anglesey 004A | D111: W02000004 | E111: Isle of Anglesey 004 | F111: W06000001 | G111: Isle of Anglesey | H111: Ynys Môn
A112: W00000110 | B112: W01000022 | C112: Isle of Anglesey 004A | D112: W02000004 | E112: Isle of Anglesey 004 | F112: W06000001 | G112: Isle of Anglesey | H112: Ynys Môn
A113: W00000111 | B113: W01000022 | C113: Isle of Anglesey 004A | D113: W02000004 | E113: Isle of Anglesey 004 | F113: W06000001 | G113: Isle of Anglesey | H113: Ynys Môn
A114: W00000112 | B114: W01000022 | C114: Isle of Anglesey 004A | D114: W02000004 | E114: Isle of Anglesey 004 | F114: W06000001 | G114: Isle of Anglesey | H114: Ynys Môn
A115: W00000113 | B115: W01000023 | C115: Isle of Anglesey 007D | D115: W02000007 | E115: Isle of Anglesey 007 | F115: W06000001 | G115: Isle of Anglesey | H115: Ynys Môn
A116: W00000114 | B116: W01000023 | C116: Isle of Anglesey 007D | D116: W02000007 | E116: Isle of Anglesey 007 | F116: W06000001 | G116: Isle of Anglesey | H116: Ynys Môn
A117: W00000115 | B117: W01000023 | C117: Isle of Anglesey 007D | D117: W02000007 | E117: Isle of Anglesey 007 | F117: W06000001 | G117: Isle of Anglesey | H117: Ynys Môn
A118: W00000116 | B118: W01000024 | C118: Isle of Anglesey 007E | D118: W02000007 | E118: Isle of Anglesey 007 | F118: W06000001 | G118: Isle of Anglesey | H118: Ynys Môn
A119: W00000117 | B119: W01000024 | C119: Isle of Anglesey 007E | D119: W02000007 | E119: Isle of Anglesey 007 | F119: W06000001 | G119: Isle of Anglesey | H119: Ynys Môn
A120: W00000118 | B120: W01000024 | C120: Isle of Anglesey 007E | D120: W02000007 | E120: Isle of Anglesey 007 | F120: W06000001 | G120: Isle of Anglesey | H120: Ynys Môn
A121: W00000119 | B121: W01000024 | C121: Isle of Anglesey 007E | D121: W02000007 | E121: Isle of Anglesey 007 | F121: W06000001 | G121: Isle of Anglesey | H121: Ynys Môn
A122: W00000120 | B122: W01000023 | C122: Isle of Anglesey 007D | D122: W02000007 | E122: Isle of Anglesey 007 | F122: W06000001 | G122: Isle of Anglesey | H122: Ynys Môn
A123: W00000121 | B123: W01000025 | C123: Isle of Anglesey 009B | D123: W02000009 | E123: Isle of Anglesey 009 | F123: W06000001 | G123: Isle of Anglesey | H123: Ynys Môn
A124: W00000122 | B124: W01000025 | C124: Isle of Anglesey 009B | D124: W02000009 | E124: Isle of Anglesey 009 | F124: W06000001 | G124: Isle of Anglesey | H124: Ynys Môn
A125: W00000123 | B125: W01000025 | C125: Isle of Anglesey 009B | D125: W02000009 | E125: Isle of Anglesey 009 | F125: W06000001 | G125: Isle of Anglesey | H125: Ynys Môn
A126: W00000124 | B126: W01000025 | C126: Isle of Anglesey 009B | D126: W02000009 | E126: Isle of Anglesey 009 | F126: W06000001 | G126: Isle of Anglesey | H126: Ynys Môn
A127: W00000125 | B127: W01000025 | C127: Isle of Anglesey 009B | D127: W02000009 | E127: Isle of Anglesey 009 | F127: W06000001 | G127: Isle of Anglesey | H127: Ynys Môn
A128: W00000126 | B128: W01000025 | C128: Isle of Anglesey 009B | D128: W02000009 | E128: Isle of Anglesey 009 | F128: W06000001 | G128: Isle of Anglesey | H128: Ynys Môn
A129: W00000127 | B129: W01000026 | C129: Isle of Anglesey 005D | D129: W02000005 | E129: Isle of Anglesey 005 | F129: W06000001 | G129: Isle of Anglesey | H129: Ynys Môn
A130: W00000128 | B130: W01000026 | C130: Isle of Anglesey 005D | D130: W02000005 | E130: Isle of Anglesey 005 | F130: W06000001 | G130: Isle of Anglesey | H130: Ynys Môn
A131: W00000129 | B131: W01000026 | C131: Isle of Anglesey 005D | D131: W02000005 | E131: Isle of Anglesey 005 | F131: W06000001 | G131: Isle of Anglesey | H131: Ynys Môn
A132: W00000130 | B132: W01000026 | C132: Isle of Anglesey 005D | D132: W02000005 | E132: Isle of Anglesey 005 | F132: W06000001 | G132: Isle of Anglesey | H132: Ynys Môn
A133: W00000131 | B133: W01000026 | C133: Isle of Anglesey 005D | D133: W02000005 | E133: Isle of Anglesey 005 | F133: W06000001 | G133: Isle of Anglesey | H133: Ynys Môn
A134: W00000132 | B134: W01000027 | C134: Isle of Anglesey 009C | D134: W02000009 | E134: Isle of Anglesey 009 | F134: W06000001 | G134: Isle of Anglesey | H134: Ynys Môn
A135: W00000133 | B135: W01000027 | C135: Isle of Anglesey 009C | D135: W02000009 | E135: Isle of Anglesey 009 | F135: W06000001 | G135: Isle of Anglesey | H135: Ynys Môn
A136: W00000134 | B136: W01000027 | C136: Isle of Anglesey 009C | D136: W02000009 | E136: Isle of Anglesey 009 | F136: W06000001 | G136: Isle of Anglesey | H136: Ynys Môn
A137: W00000135 | B137: W01000027 | C137: Isle of Anglesey 009C | D137: W02000009 | E137: Isle of Anglesey 009 | F137: W06000001 | G137: Isle of Anglesey | H137: Ynys Môn
A138: W00000136 | B138: W01000027 | C138: Isle of Anglesey 009C | D138: W02000009 | E138: Isle of Anglesey 009 | F138: W06000001 | G138: Isle of Anglesey | H138: Ynys Môn
A139: W00000137 | B139: W01000028 | C139: Isle of Anglesey 001D | D139: W02000001 | E139: Isle of Anglesey 001 | F139: W06000001 | G139: Isle of Anglesey | H139: Ynys Môn
A140: W00000138 | B140: W01000028 | C140: Isle of Anglesey 001D | D140: W02000001 | E140: Isle of Anglesey 001 | F140: W06000001 | G140: Isle of Anglesey | H140: Ynys Môn
A141: W00000139 | B141: W01000028 | C141: Isle of Anglesey 001D | D141: W02000001 | E141: Isle of Anglesey 001 | F141: W06000001 | G141: Isle of Anglesey | H141: Ynys Môn
A142: W00000140 | B142: W01000028 | C142: Isle of Anglesey 001D | D142: W02000001 | E142: Isle of Anglesey 001 | F142: W06000001 | G142: Isle of Anglesey | H142: Ynys Môn
A143: W00000141 | B143: W01000028 | C143: Isle of Anglesey 001D | D143: W02000001 | E143: Isle of Anglesey 001 | F143: W06000001 | G143: Isle of Anglesey | H143: Ynys Môn
A144: W00000142 | B144: W01000028 | C144: Isle of Anglesey 001D | D144: W02000001 | E144: Isle of Anglesey 001 | F144: W06000001 | G144: Isle of Anglesey | H144: Ynys Môn
A145: W00000143 | B145: W01000029 | C145: Isle of Anglesey 003C | D145: W02000003 | E145: Isle of Anglesey 003 | F145: W06000001 | G145: Isle of Anglesey | H145: Ynys Môn
A146: W00000144 | B146: W01000029 | C146: Isle of Anglesey 003C | D146: W02000003 | E146: Isle of Anglesey 003 | F146: W06000001 | G146: Isle of Anglesey | H146: Ynys Môn
A147: W00000145 | B147: W01000029 | C147: Isle of Anglesey 003C | D147: W02000003 | E147: Isle of Anglesey 003 | F147: W06000001 | G147: Isle of Anglesey | H147: Ynys Môn
A148: W00000146 | B148: W01000029 | C148: Isle of Anglesey 003C | D148: W02000003 | E148: Isle of Anglesey 003 | F148: W06000001 | G148: Isle of Anglesey | H148: Ynys Môn
A149: W00000147 | B149: W01000029 | C149: Isle of Anglesey 003C | D149: W02000003 | E149: Isle of Anglesey 003 | F149: W06000001 | G149: Isle of Anglesey | H149: Ynys Môn
A150: W00000148 | B150: W01000030 | C150: Isle of Anglesey 003D | D150: W02000003 | E150: Isle of Anglesey 003 | F150: W06000001 | G150: Isle of Anglesey | H150: Ynys Môn
A151: W00000149 | B151: W01000030 | C151: Isle of Anglesey 003D | D151: W02000003 | E151: Isle of Anglesey 003 | F151: W06000001 | G151: Isle of Anglesey | H151: Ynys Môn
A152: W00000150 | B152: W01000030 | C152: Isle of Anglesey 003D | D152: W02000003 | E152: Isle of Anglesey 003 | F152: W06000001 | G152: Isle of Anglesey | H152: Ynys Môn
A153: W00000151 | B153: W01000030 | C153: Isle of Anglesey 003D | D153: W02000003 | E153: Isle of Anglesey 003 | F153: W06000001 | G153: Isle of Anglesey | H153: Ynys Môn
A154: W00000152 | B154: W01000030 | C154: Isle of Anglesey 003D | D154: W02000003 | E154: Isle of Anglesey 003 | F154: W06000001 | G154: Isle of Anglesey | H154: Ynys Môn
A155: W00000153 | B155: W01000030 | C155: Isle of Anglesey 003D | D155: W02000003 | E155: Isle of Anglesey 003 | F155: W06000001 | G155: Isle of Anglesey | H155: Ynys Môn
A156: W00000154 | B156: W01000030 | C156: Isle of Anglesey 003D | D156: W02000003 | E156: Isle of Anglesey 003 | F156: W06000001 | G156: Isle of Anglesey | H156: Ynys Môn
A157: W00000155 | B157: W01000030 | C157: Isle of Anglesey 003D | D157: W02000003 | E157: Isle of Anglesey 003 | F157: W06000001 | G157: Isle of Anglesey | H157: Ynys Môn
A158: W00000156 | B158: W01000031 | C158: Isle of Anglesey 001E | D158: W02000001 | E158: Isle of Anglesey 001 | F158: W06000001 | G158: Isle of Anglesey | H158: Ynys Môn
A159: W00000157 | B159: W01000031 | C159: Isle of Anglesey 001E | D159: W02000001 | E159: Isle of Anglesey 001 | F159: W06000001 | G159: Isle of Anglesey | H159: Ynys Môn
A160: W00000158 | B160: W01000031 | C160: Isle of Anglesey 001E | D160: W02000001 | E160: Isle of Anglesey 001 | F160: W06000001 | G160: Isle of Anglesey | H160: Ynys Môn
A161: W00000159 | B161: W01000031 | C161: Isle of Anglesey 001E | D161: W02000001 | E161: Isle of Anglesey 001 | F161: W06000001 | G161: Isle of Anglesey | H161: Ynys Môn
A162: W00000160 | B162: W01000031 | C162: Isle of Anglesey 001E | D162: W02000001 | E162: Isle of Anglesey 001 | F162: W06000001 | G162: Isle of Anglesey | H162: Ynys Môn
A163: W00000161 | B163: W01000032 | C163: Isle of Anglesey 002D | D163: W02000002 | E163: Isle of Anglesey 002 | F163: W06000001 | G163: Isle of Anglesey | H163: Ynys Môn
A164: W00000162 | B164: W01000032 | C164: Isle of Anglesey 002D | D164: W02000002 | E164: Isle of Anglesey 002 | F164: W06000001 | G164: Isle of Anglesey | H164: Ynys Môn
A165: W00000163 | B165: W01000032 | C165: Isle of Anglesey 002D | D165: W02000002 | E165: Isle of Anglesey 002 | F165: W06000001 | G165: Isle of Anglesey | H165: Ynys Môn
A166: W00000164 | B166: W01000032 | C166: Isle of Anglesey 002D | D166: W02000002 | E166: Isle of Anglesey 002 | F166: W06000001 | G166: Isle of Anglesey | H166: Ynys Môn
A167: W00000165 | B167: W01000033 | C167: Isle of Anglesey 003E | D167: W02000003 | E167: Isle of Anglesey 003 | F167: W06000001 | G167: Isle of Anglesey | H167: Ynys Môn
A168: W00000166 | B168: W01000033 | C168: Isle of Anglesey 003E | D168: W02000003 | E168: Isle of Anglesey 003 | F168: W06000001 | G168: Isle of Anglesey | H168: Ynys Môn
A169: W00000167 | B169: W01000033 | C169: Isle of Anglesey 003E | D169: W02000003 | E169: Isle of Anglesey 003 | F169: W06000001 | G169: Isle of Anglesey | H169: Ynys Môn
A170: W00000168 | B170: W01000033 | C170: Isle of Anglesey 003E | D170: W02000003 | E170: Isle of Anglesey 003 | F170: W06000001 | G170: Isle of Anglesey | H170: Ynys Môn
A171: W00000169 | B171: W01000033 | C171: Isle of Anglesey 003E | D171: W02000003 | E171: Isle of Anglesey 003 | F171: W06000001 | G171: Isle of Anglesey | H171: Ynys Môn
A172: W00000170 | B172: W01000034 | C172: Isle of Anglesey 004B | D172: W02000004 | E172: Isle of Anglesey 004 | F172: W06000001 | G172: Isle of Anglesey | H172: Ynys Môn
A173: W00000171 | B173: W01000034 | C173: Isle of Anglesey 004B | D173: W02000004 | E173: Isle of Anglesey 004 | F173: W06000001 | G173: Isle of Anglesey | H173: Ynys Môn
A174: W00000172 | B174: W01000034 | C174: Isle of Anglesey 004B | D174: W02000004 | E174: Isle of Anglesey 004 | F174: W06000001 | G174: Isle of Anglesey | H174: Ynys Môn
A175: W00000173 | B175: W01000034 | C175: Isle of Anglesey 004B | D175: W02000004 | E175: Isle of Anglesey 004 | F175: W06000001 | G175: Isle of Anglesey | H175: Ynys Môn
A176: W00000174 | B176: W01000035 | C176: Isle of Anglesey 005E | D176: W02000005 | E176: Isle of Anglesey 005 | F176: W06000001 | G176: Isle of Anglesey | H176: Ynys Môn
A177: W00000175 | B177: W01000035 | C177: Isle of Anglesey 005E | D177: W02000005 | E177: Isle of Anglesey 005 | F177: W06000001 | G177: Isle of Anglesey | H177: Ynys Môn
A178: W00000176 | B178: W01000035 | C178: Isle of Anglesey 005E | D178: W02000005 | E178: Isle of Anglesey 005 | F178: W06000001 | G178: Isle of Anglesey | H178: Ynys Môn
A179: W00000177 | B179: W01000035 | C179: Isle of Anglesey 005E | D179: W02000005 | E179: Isle of Anglesey 005 | F179: W06000001 | G179: Isle of Anglesey | H179: Ynys Môn
A180: W00000178 | B180: W01000035 | C180: Isle of Anglesey 005E | D180: W02000005 | E180: Isle of Anglesey 005 | F180: W06000001 | G180: Isle of Anglesey | H180: Ynys Môn
A181: W00000179 | B181: W01000035 | C181: Isle of Anglesey 005E | D181: W02000005 | E181: Isle of Anglesey 005 | F181: W06000001 | G181: Isle of Anglesey | H181: Ynys Môn
A182: W00000180 | B182: W01000036 | C182: Isle of Anglesey 003F | D182: W02000003 | E182: Isle of Anglesey 003 | F182: W06000001 | G182: Isle of Anglesey | H182: Ynys Môn
A183: W00000181 | B183: W01000037 | C183: Isle of Anglesey 003G | D183: W02000003 | E183: Isle of Anglesey 003 | F183: W06000001 | G183: Isle of Anglesey | H183: Ynys Môn
A184: W00000182 | B184: W01000036 | C184: Isle of Anglesey 003F | D184: W02000003 | E184: Isle of Anglesey 003 | F184: W06000001 | G184: Isle of Anglesey | H184: Ynys Môn
A185: W00000183 | B185: W01000037 | C185: Isle of Anglesey 003G | D185: W02000003 | E185: Isle of Anglesey 003 | F185: W06000001 | G185: Isle of Anglesey | H185: Ynys Môn
A186: W00000184 | B186: W01000037 | C186: Isle of Anglesey 003G | D186: W02000003 | E186: Isle of Anglesey 003 | F186: W06000001 | G186: Isle of Anglesey | H186: Ynys Môn
A187: W00000185 | B187: W01000037 | C187: Isle of Anglesey 003G | D187: W02000003 | E187: Isle of Anglesey 003 | F187: W06000001 | G187: Isle of Anglesey | H187: Ynys Môn
A188: W00000186 | B188: W01000036 | C188: Isle of Anglesey 003F | D188: W02000003 | E188: Isle of Anglesey 003 | F188: W06000001 | G188: Isle of Anglesey | H188: Ynys Môn
A189: W00000187 | B189: W01000036 | C189: Isle of Anglesey 003F | D189: W02000003 | E189: Isle of Anglesey 003 | F189: W06000001 | G189: Isle of Anglesey | H189: Ynys Môn
A190: W00000188 | B190: W01000002 | C190: Isle of Anglesey 007B | D190: W02000007 | E190: Isle of Anglesey 007 | F190: W06000001 | G190: Isle of Anglesey | H190: Ynys Môn
A191: W00000189 | B191: W01000002 | C191: Isle of Anglesey 007B | D191: W02000007 | E191: Isle of Anglesey 007 | F191: W06000001 | G191: Isle of Anglesey | H191: Ynys Môn
A192: W00000190 | B192: W01000001 | C192: Isle of Anglesey 007A | D192: W02000007 | E192: Isle of Anglesey 007 | F192: W06000001 | G192: Isle of Anglesey | H192: Ynys Môn
A193: W00000191 | B193: W01000001 | C193: Isle of Anglesey 007A | D193: W02000007 | E193: Isle of Anglesey 007 | F193: W06000001 | G193: Isle of Anglesey | H193: Ynys Môn
A194: W00000192 | B194: W01000038 | C194: Isle of Anglesey 009D | D194: W02000009 | E194: Isle of Anglesey 009 | F194: W06000001 | G194: Isle of Anglesey | H194: Ynys Môn
A195: W00000193 | B195: W01000038 | C195: Isle of Anglesey 009D | D195: W02000009 | E195: Isle of Anglesey 009 | F195: W06000001 | G195: Isle of Anglesey | H195: Ynys Môn
A196: W00000194 | B196: W01000038 | C196: Isle of Anglesey 009D | D196: W02000009 | E196: Isle of Anglesey 009 | F196: W06000001 | G196: Isle of Anglesey | H196: Ynys Môn
A197: W00000195 | B197: W01000038 | C197: Isle of Anglesey 009D | D197: W02000009 | E197: Isle of Anglesey 009 | F197: W06000001 | G197: Isle of Anglesey | H197: Ynys Môn
A198: W00000196 | B198: W01000038 | C198: Isle of Anglesey 009D | D198: W02000009 | E198: Isle of Anglesey 009 | F198: W06000001 | G198: Isle of Anglesey | H198: Ynys Môn
A199: W00000197 | B199: W01000038 | C199: Isle of Anglesey 009D | D199: W02000009 | E199: Isle of Anglesey 009 | F199: W06000001 | G199: Isle of Anglesey | H199: Ynys Môn
A200: W00000198 | B200: W01000038 | C200: Isle of Anglesey 009D | D200: W02000009 | E200: Isle of Anglesey 009 | F200: W06000001 | G200: Isle of Anglesey | H200: Ynys Môn
A201: W00000199 | B201: W01000039 | C201: Isle of Anglesey 004C | D201: W02000004 | E201: Isle of Anglesey 004 | F201: W06000001 | G201: Isle of Anglesey | H201: Ynys Môn
A202: W00000200 | B202: W01000039 | C202: Isle of Anglesey 004C | D202: W02000004 | E202: Isle of Anglesey 004 | F202: W06000001 | G202: Isle of Anglesey | H202: Ynys Môn
... 9839 more rows

Sheet OA_Areas (hidden)
A1: 1 | B1: 2 | C1: 3 | D1: 4 | E1: 5 | F1: 6 | G1: 7 | H1: 8 | I1: 9 | J1: 10
A2: 2011 OA Code | B2: Extent of the realm measurements in hectares | E2: Land only measurement in hectares
A3: OA11CD | B3: AREAEHECT | C3: AREACHECT | D3: AREAIHECT | E3: AREALHECT | F3: LAD11CD | G3: LAD11NM | H3: LAD11NMW | J3: km2
A4: W00000001 | B4: 2983.26 | C4: 2902.48 | D4: 0 | E4: 2902.48 | F4: W06000001 | G4: Isle of Anglesey | H4: Ynys M¶n | J4: =E4/100 -> 29.0248
A5: W00000002 | B5: 51.99 | C5: 51.99 | D5: 0 | E5: 51.99 | F5: W06000001 | G5: Isle of Anglesey | H5: Ynys M¶n | J5: =E5/100 -> 0.5199
A6: W00000003 | B6: 213.39 | C6: 213.39 | D6: 0 | E6: 213.39 | F6: W06000001 | G6: Isle of Anglesey | H6: Ynys M¶n | J6: 2.1339
A7: W00000004 | B7: 755.78 | C7: 755.78 | D7: 0 | E7: 755.78 | F7: W06000001 | G7: Isle of Anglesey | H7: Ynys M¶n | J7: 7.5578
A8: W00000005 | B8: 107.19 | C8: 103.65 | D8: 0 | E8: 103.65 | F8: W06000001 | G8: Isle of Anglesey | H8: Ynys M¶n | J8: 1.0365
A9: W00000006 | B9: 10.87 | C9: 10.87 | D9: 0 | E9: 10.87 | F9: W06000001 | G9: Isle of Anglesey | H9: Ynys M¶n | J9: 0.1087
A10: W00000008 | B10: 28.52 | C10: 28.52 | D10: 0 | E10: 28.52 | F10: W06000001 | G10: Isle of Anglesey | H10: Ynys M¶n | J10: 0.2852
A11: W00000009 | B11: 34.94 | C11: 34.94 | D11: 0 | E11: 34.94 | F11: W06000001 | G11: Isle of Anglesey | H11: Ynys M¶n | J11: 0.3494
A12: W00000010 | B12: 116.6 | C12: 116.6 | D12: 0 | E12: 116.6 | F12: W06000001 | G12: Isle of Anglesey | H12: Ynys M¶n | J12: 1.166
A13: W00000011 | B13: 1218.18 | C13: 1215.59 | D13: 0 | E13: 1215.59 | F13: W06000001 | G13: Isle of Anglesey | H13: Ynys M¶n | J13: 12.1559
A14: W00000012 | B14: 96.42 | C14: 92.9 | D14: 0 | E14: 92.9 | F14: W06000001 | G14: Isle of Anglesey | H14: Ynys M¶n | J14: 0.929
A15: W00000013 | B15: 125.88 | C15: 125.88 | D15: 0 | E15: 125.88 | F15: W06000001 | G15: Isle of Anglesey | H15: Ynys M¶n | J15: 1.2588
A16: W00000014 | B16: 538.01 | C16: 526.05 | D16: 0 | E16: 526.05 | F16: W06000001 | G16: Isle of Anglesey | H16: Ynys M¶n | J16: 5.2605
A17: W00000015 | B17: 263.83 | C17: 240.97 | D17: 0 | E17: 240.97 | F17: W06000001 | G17: Isle of Anglesey | H17: Ynys M¶n | J17: 2.4097
A18: W00000016 | B18: 15.47 | C18: 15.47 | D18: 0 | E18: 15.47 | F18: W06000001 | G18: Isle of Anglesey | H18: Ynys M¶n | J18: 0.1547
A19: W00000017 | B19: 4.62 | C19: 4.62 | D19: 0 | E19: 4.62 | F19: W06000001 | G19: Isle of Anglesey | H19: Ynys M¶n | J19: 0.0462
A20: W00000018 | B20: 17.42 | C20: 17.42 | D20: 0 | E20: 17.42 | F20: W06000001 | G20: Isle of Anglesey | H20: Ynys M¶n | J20: 0.1742
A21: W00000019 | B21: 25.66 | C21: 13.18 | D21: 0 | E21: 13.18 | F21: W06000001 | G21: Isle of Anglesey | H21: Ynys M¶n | J21: 0.1318
A22: W00000020 | B22: 4.51 | C22: 4.51 | D22: 0 | E22: 4.51 | F22: W06000001 | G22: Isle of Anglesey | H22: Ynys M¶n | J22: 0.0451
A23: W00000021 | B23: 66.48 | C23: 33.5 | D23: 0 | E23: 33.5 | F23: W06000001 | G23: Isle of Anglesey | H23: Ynys M¶n | J23: 0.335
A24: W00000022 | B24: 243.98 | C24: 243.98 | D24: 0 | E24: 243.98 | F24: W06000001 | G24: Isle of Anglesey | H24: Ynys M¶n | J24: 2.4398
A25: W00000023 | B25: 863.2 | C25: 863.2 | D25: 0 | E25: 863.2 | F25: W06000001 | G25: Isle of Anglesey | H25: Ynys M¶n | J25: 8.632
A26: W00000024 | B26: 1422.9 | C26: 1422.9 | D26: 0 | E26: 1422.9 | F26: W06000001 | G26: Isle of Anglesey | H26: Ynys M¶n | J26: 14.229
A27: W00000025 | B27: 222.06 | C27: 222.06 | D27: 0 | E27: 222.06 | F27: W06000001 | G27: Isle of Anglesey | H27: Ynys M¶n | J27: 2.2206
A28: W00000026 | B28: 755.26 | C28: 755.26 | D28: 0 | E28: 755.26 | F28: W06000001 | G28: Isle of Anglesey | H28: Ynys M¶n | J28: 7.5526
A29: W00000027 | B29: 762.44 | C29: 758.76 | D29: 0 | E29: 758.76 | F29: W06000001 | G29: Isle of Anglesey | H29: Ynys M¶n | J29: 7.5876
A30: W00000028 | B30: 1581.82 | C30: 1495.4 | D30: 0 | E30: 1495.4 | F30: W06000001 | G30: Isle of Anglesey | H30: Ynys M¶n | J30: 14.954
A31: W00000029 | B31: 281.5 | C31: 270.92 | D31: 0 | E31: 270.92 | F31: W06000001 | G31: Isle of Anglesey | H31: Ynys M¶n | J31: 2.7092
A32: W00000030 | B32: 1284.41 | C32: 1282.26 | D32: 0 | E32: 1282.26 | F32: W06000001 | G32: Isle of Anglesey | H32: Ynys M¶n | J32: 12.8226
A33: W00000031 | B33: 281.14 | C33: 281.14 | D33: 0 | E33: 281.14 | F33: W06000001 | G33: Isle of Anglesey | H33: Ynys M¶n | J33: 2.8114
A34: W00000032 | B34: 5.56 | C34: 5.56 | D34: 0 | E34: 5.56 | F34: W06000001 | G34: Isle of Anglesey | H34: Ynys M¶n | J34: 0.0556
A35: W00000033 | B35: 52.73 | C35: 52.73 | D35: 0 | E35: 52.73 | F35: W06000001 | G35: Isle of Anglesey | H35: Ynys M¶n | J35: 0.5273
A36: W00000034 | B36: 10.14 | C36: 10.14 | D36: 0 | E36: 10.14 | F36: W06000001 | G36: Isle of Anglesey | H36: Ynys M¶n | J36: 0.1014
A37: W00000035 | B37: 114.19 | C37: 114.19 | D37: 0 | E37: 114.19 | F37: W06000001 | G37: Isle of Anglesey | H37: Ynys M¶n | J37: 1.1419
A38: W00000036 | B38: 6.14 | C38: 6.14 | D38: 0 | E38: 6.14 | F38: W06000001 | G38: Isle of Anglesey | H38: Ynys M¶n | J38: 0.0614
A39: W00000037 | B39: 1610.05 | C39: 1610.05 | D39: 0 | E39: 1610.05 | F39: W06000001 | G39: Isle of Anglesey | H39: Ynys M¶n | J39: 16.1005
A40: W00000038 | B40: 82.38 | C40: 82.38 | D40: 0 | E40: 82.38 | F40: W06000001 | G40: Isle of Anglesey | H40: Ynys M¶n | J40: 0.8238
A41: W00000039 | B41: 427.07 | C41: 427.07 | D41: 0 | E41: 427.07 | F41: W06000001 | G41: Isle of Anglesey | H41: Ynys M¶n | J41: 4.2707
A42: W00000040 | B42: 236.62 | C42: 236.62 | D42: 0 | E42: 236.62 | F42: W06000001 | G42: Isle of Anglesey | H42: Ynys M¶n | J42: 2.3662
A43: W00000041 | B43: 11.32 | C43: 11.32 | D43: 0 | E43: 11.32 | F43: W06000001 | G43: Isle of Anglesey | H43: Ynys M¶n | J43: 0.1132
A44: W00000042 | B44: 15.73 | C44: 15.73 | D44: 0 | E44: 15.73 | F44: W06000001 | G44: Isle of Anglesey | H44: Ynys M¶n | J44: 0.1573
A45: W00000043 | B45: 37.08 | C45: 37.08 | D45: 0 | E45: 37.08 | F45: W06000001 | G45: Isle of Anglesey | H45: Ynys M¶n | J45: 0.3708
A46: W00000044 | B46: 333.84 | C46: 333.84 | D46: 0 | E46: 333.84 | F46: W06000001 | G46: Isle of Anglesey | H46: Ynys M¶n | J46: 3.3384
A47: W00000045 | B47: 49.64 | C47: 49.64 | D47: 0 | E47: 49.64 | F47: W06000001 | G47: Isle of Anglesey | H47: Ynys M¶n | J47: 0.4964
A48: W00000046 | B48: 67.3 | C48: 67.3 | D48: 0 | E48: 67.3 | F48: W06000001 | G48: Isle of Anglesey | H48: Ynys M¶n | J48: 0.673
A49: W00000047 | B49: 23.79 | C49: 23.79 | D49: 0 | E49: 23.79 | F49: W06000001 | G49: Isle of Anglesey | H49: Ynys M¶n | J49: 0.2379
A50: W00000048 | B50: 12.57 | C50: 10.57 | D50: 0 | E50: 10.57 | F50: W06000001 | G50: Isle of Anglesey | H50: Ynys M¶n | J50: 0.1057
A51: W00000049 | B51: 30.73 | C51: 17.98 | D51: 0 | E51: 17.98 | F51: W06000001 | G51: Isle of Anglesey | H51: Ynys M¶n | J51: 0.1798
A52: W00000050 | B52: 7.54 | C52: 7.54 | D52: 0 | E52: 7.54 | F52: W06000001 | G52: Isle of Anglesey | H52: Ynys M¶n | J52: 0.0754
A53: W00000051 | B53: 73.65 | C53: 62.61 | D53: 0 | E53: 62.61 | F53: W06000001 | G53: Isle of Anglesey | H53: Ynys M¶n | J53: 0.6261
A54: W00000052 | B54: 62.72 | C54: 62.72 | D54: 0 | E54: 62.72 | F54: W06000001 | G54: Isle of Anglesey | H54: Ynys M¶n | J54: 0.6272
A55: W00000053 | B55: 20.33 | C55: 20.33 | D55: 0 | E55: 20.33 | F55: W06000001 | G55: Isle of Anglesey | H55: Ynys M¶n | J55: 0.2033
A56: W00000054 | B56: 19.36 | C56: 19.36 | D56: 0 | E56: 19.36 | F56: W06000001 | G56: Isle of Anglesey | H56: Ynys M¶n | J56: 0.1936
A57: W00000055 | B57: 209.49 | C57: 209.49 | D57: 0 | E57: 209.49 | F57: W06000001 | G57: Isle of Anglesey | H57: Ynys M¶n | J57: 2.0949
A58: W00000056 | B58: 61.76 | C58: 61.76 | D58: 0 | E58: 61.76 | F58: W06000001 | G58: Isle of Anglesey | H58: Ynys M¶n | J58: 0.6176
A59: W00000057 | B59: 12.43 | C59: 12.43 | D59: 0 | E59: 12.43 | F59: W06000001 | G59: Isle of Anglesey | H59: Ynys M¶n | J59: 0.1243
A60: W00000058 | B60: 153.83 | C60: 143.43 | D60: 0 | E60: 143.43 | F60: W06000001 | G60: Isle of Anglesey | H60: Ynys M¶n | J60: 1.4343
A61: W00000059 | B61: 5.46 | C61: 5.46 | D61: 0 | E61: 5.46 | F61: W06000001 | G61: Isle of Anglesey | H61: Ynys M¶n | J61: 0.0546
A62: W00000060 | B62: 58.06 | C62: 42.88 | D62: 0 | E62: 42.88 | F62: W06000001 | G62: Isle of Anglesey | H62: Ynys M¶n | J62: 0.4288
A63: W00000061 | B63: 59.7 | C63: 59.64 | D63: 0 | E63: 59.64 | F63: W06000001 | G63: Isle of Anglesey | H63: Ynys M¶n | J63: 0.5964
A64: W00000062 | B64: 1536.32 | C64: 1532.96 | D64: 0 | E64: 1532.96 | F64: W06000001 | G64: Isle of Anglesey | H64: Ynys M¶n | J64: 15.3296
A65: W00000063 | B65: 515.79 | C65: 515.79 | D65: 0 | E65: 515.79 | F65: W06000001 | G65: Isle of Anglesey | H65: Ynys M¶n | J65: 5.1579
A66: W00000064 | B66: 319.71 | C66: 319.71 | D66: 0 | E66: 319.71 | F66: W06000001 | G66: Isle of Anglesey | H66: Ynys M¶n | J66: 3.1971
A67: W00000065 | B67: 12.03 | C67: 12.03 | D67: 0 | E67: 12.03 | F67: W06000001 | G67: Isle of Anglesey | H67: Ynys M¶n | J67: 0.1203
A68: W00000066 | B68: 8.3 | C68: 8.3 | D68: 0 | E68: 8.3 | F68: W06000001 | G68: Isle of Anglesey | H68: Ynys M¶n | J68: 0.083
A69: W00000067 | B69: 134.75 | C69: 134.75 | D69: 0 | E69: 134.75 | F69: W06000001 | G69: Isle of Anglesey | H69: Ynys M¶n | J69: =E69/100 -> 1.3475
A70: W00000068 | B70: 45.36 | C70: 45.36 | D70: 0 | E70: 45.36 | F70: W06000001 | G70: Isle of Anglesey | H70: Ynys M¶n | J70: 0.4536
A71: W00000069 | B71: 6.05 | C71: 6.05 | D71: 0 | E71: 6.05 | F71: W06000001 | G71: Isle of Anglesey | H71: Ynys M¶n | J71: 0.0605
A72: W00000070 | B72: 8.53 | C72: 8.53 | D72: 0 | E72: 8.53 | F72: W06000001 | G72: Isle of Anglesey | H72: Ynys M¶n | J72: 0.0853
A73: W00000071 | B73: 118.73 | C73: 109.85 | D73: 0 | E73: 109.85 | F73: W06000001 | G73: Isle of Anglesey | H73: Ynys M¶n | J73: 1.0985
A74: W00000072 | B74: 10.69 | C74: 10.69 | D74: 0 | E74: 10.69 | F74: W06000001 | G74: Isle of Anglesey | H74: Ynys M¶n | J74: 0.1069
A75: W00000073 | B75: 43.92 | C75: 40.99 | D75: 0 | E75: 40.99 | F75: W06000001 | G75: Isle of Anglesey | H75: Ynys M¶n | J75: 0.4099
A76: W00000074 | B76: 7.71 | C76: 7.71 | D76: 0 | E76: 7.71 | F76: W06000001 | G76: Isle of Anglesey | H76: Ynys M¶n | J76: 0.0771
A77: W00000075 | B77: 3.36 | C77: 3.36 | D77: 0 | E77: 3.36 | F77: W06000001 | G77: Isle of Anglesey | H77: Ynys M¶n | J77: 0.0336
A78: W00000076 | B78: 5.04 | C78: 5.04 | D78: 0 | E78: 5.04 | F78: W06000001 | G78: Isle of Anglesey | H78: Ynys M¶n | J78: 0.0504
A79: W00000077 | B79: 13.83 | C79: 13.83 | D79: 0 | E79: 13.83 | F79: W06000001 | G79: Isle of Anglesey | H79: Ynys M¶n | J79: 0.1383
A80: W00000078 | B80: 3.31 | C80: 3.31 | D80: 0 | E80: 3.31 | F80: W06000001 | G80: Isle of Anglesey | H80: Ynys M¶n | J80: 0.0331
A81: W00000079 | B81: 8.53 | C81: 8.53 | D81: 0 | E81: 8.53 | F81: W06000001 | G81: Isle of Anglesey | H81: Ynys M¶n | J81: 0.0853
A82: W00000080 | B82: 5.58 | C82: 5.58 | D82: 0 | E82: 5.58 | F82: W06000001 | G82: Isle of Anglesey | H82: Ynys M¶n | J82: 0.0558
A83: W00000081 | B83: 6.24 | C83: 6.24 | D83: 0 | E83: 6.24 | F83: W06000001 | G83: Isle of Anglesey | H83: Ynys M¶n | J83: 0.0624
A84: W00000082 | B84: 49.48 | C84: 49.48 | D84: 0 | E84: 49.48 | F84: W06000001 | G84: Isle of Anglesey | H84: Ynys M¶n | J84: 0.4948
A85: W00000083 | B85: 48.87 | C85: 48.87 | D85: 0 | E85: 48.87 | F85: W06000001 | G85: Isle of Anglesey | H85: Ynys M¶n | J85: 0.4887
A86: W00000084 | B86: 5.2 | C86: 5.2 | D86: 0 | E86: 5.2 | F86: W06000001 | G86: Isle of Anglesey | H86: Ynys M¶n | J86: 0.052
A87: W00000086 | B87: 13 | C87: 13 | D87: 0 | E87: 13 | F87: W06000001 | G87: Isle of Anglesey | H87: Ynys M¶n | J87: 0.13
A88: W00000087 | B88: 54.74 | C88: 43.36 | D88: 0 | E88: 43.36 | F88: W06000001 | G88: Isle of Anglesey | H88: Ynys M¶n | J88: 0.4336
A89: W00000088 | B89: 250.7 | C89: 242.44 | D89: 0 | E89: 242.44 | F89: W06000001 | G89: Isle of Anglesey | H89: Ynys M¶n | J89: 2.4244
A90: W00000090 | B90: 32.82 | C90: 32.82 | D90: 0 | E90: 32.82 | F90: W06000001 | G90: Isle of Anglesey | H90: Ynys M¶n | J90: 0.3282
A91: W00000091 | B91: 476.33 | C91: 476.33 | D91: 0 | E91: 476.33 | F91: W06000001 | G91: Isle of Anglesey | H91: Ynys M¶n | J91: 4.7633
A92: W00000092 | B92: 13.72 | C92: 13.72 | D92: 0 | E92: 13.72 | F92: W06000001 | G92: Isle of Anglesey | H92: Ynys M¶n | J92: 0.1372
A93: W00000093 | B93: 34.03 | C93: 17.31 | D93: 0 | E93: 17.31 | F93: W06000001 | G93: Isle of Anglesey | H93: Ynys M¶n | J93: 0.1731
A94: W00000094 | B94: 469.55 | C94: 368.6 | D94: 0 | E94: 368.6 | F94: W06000001 | G94: Isle of Anglesey | H94: Ynys M¶n | J94: 3.686
A95: W00000095 | B95: 21.13 | C95: 21.13 | D95: 0 | E95: 21.13 | F95: W06000001 | G95: Isle of Anglesey | H95: Ynys M¶n | J95: 0.2113
A96: W00000096 | B96: 100.69 | C96: 88.1 | D96: 0 | E96: 88.1 | F96: W06000001 | G96: Isle of Anglesey | H96: Ynys M¶n | J96: 0.881
A97: W00000097 | B97: 1282.14 | C97: 1282.14 | D97: 0 | E97: 1282.14 | F97: W06000001 | G97: Isle of Anglesey | H97: Ynys M¶n | J97: 12.8214
A98: W00000098 | B98: 1692.65 | C98: 1692.65 | D98: 0 | E98: 1692.65 | F98: W06000001 | G98: Isle of Anglesey | H98: Ynys M¶n | J98: 16.9265
A99: W00000099 | B99: 1347.84 | C99: 1347.84 | D99: 0 | E99: 1347.84 | F99: W06000001 | G99: Isle of Anglesey | H99: Ynys M¶n | J99: 13.4784
A100: W00000100 | B100: 1151.53 | C100: 1140.81 | D100: 0 | E100: 1140.81 | F100: W06000001 | G100: Isle of Anglesey | H100: Ynys M¶n | J100: 11.4081
A101: W00000101 | B101: 31.42 | C101: 31.42 | D101: 0 | E101: 31.42 | F101: W06000001 | G101: Isle of Anglesey | H101: Ynys M¶n | J101: 0.3142
A102: W00000102 | B102: 535.49 | C102: 529.99 | D102: 0 | E102: 529.99 | F102: W06000001 | G102: Isle of Anglesey | H102: Ynys M¶n | J102: 5.2999
A103: W00000103 | B103: 1099.77 | C103: 1022.37 | D103: 0 | E103: 1022.37 | F103: W06000001 | G103: Isle of Anglesey | H103: Ynys M¶n | J103: 10.2237
A104: W00000104 | B104: 84.78 | C104: 84.78 | D104: 0 | E104: 84.78 | F104: W06000001 | G104: Isle of Anglesey | H104: Ynys M¶n | J104: 0.8478
A105: W00000105 | B105: 1282.78 | C105: 1282.78 | D105: 78 | E105: 1204.16 | F105: W06000001 | G105: Isle of Anglesey | H105: Ynys M¶n | J105: 12.0416
A106: W00000106 | B106: 279.29 | C106: 279.29 | D106: 0 | E106: 279.29 | F106: W06000001 | G106: Isle of Anglesey | H106: Ynys M¶n | J106: 2.7929
A107: W00000107 | B107: 1455.67 | C107: 1455.67 | D107: 0 | E107: 1455.67 | F107: W06000001 | G107: Isle of Anglesey | H107: Ynys M¶n | J107: 14.5567
A108: W00000108 | B108: 1045.03 | C108: 1030.82 | D108: 0 | E108: 1030.82 | F108: W06000001 | G108: Isle of Anglesey | H108: Ynys M¶n | J108: 10.3082
A109: W00000109 | B109: 475.73 | C109: 254.52 | D109: 0 | E109: 254.52 | F109: W06000001 | G109: Isle of Anglesey | H109: Ynys M¶n | J109: 2.5452
A110: W00000110 | B110: 589.35 | C110: 589.35 | D110: 0 | E110: 589.35 | F110: W06000001 | G110: Isle of Anglesey | H110: Ynys M¶n | J110: 5.8935
A111: W00000111 | B111: 1214.41 | C111: 1086.63 | D111: 0 | E111: 1086.63 | F111: W06000001 | G111: Isle of Anglesey | H111: Ynys M¶n | J111: 10.8663
A112: W00000112 | B112: 593.97 | C112: 593.97 | D112: 0 | E112: 593.97 | F112: W06000001 | G112: Isle of Anglesey | H112: Ynys M¶n | J112: 5.9397
A113: W00000113 | B113: 14.61 | C113: 14.61 | D113: 0 | E113: 14.61 | F113: W06000001 | G113: Isle of Anglesey | H113: Ynys M¶n | J113: 0.1461
A114: W00000114 | B114: 1145.65 | C114: 1145.65 | D114: 0 | E114: 1145.65 | F114: W06000001 | G114: Isle of Anglesey | H114: Ynys M¶n | J114: 11.4565
A115: W00000115 | B115: 772.2 | C115: 772.2 | D115: 0 | E115: 772.2 | F115: W06000001 | G115: Isle of Anglesey | H115: Ynys M¶n | J115: 7.722
A116: W00000116 | B116: 26.85 | C116: 26.85 | D116: 0 | E116: 26.85 | F116: W06000001 | G116: Isle of Anglesey | H116: Ynys M¶n | J116: 0.2685
A117: W00000117 | B117: 270.01 | C117: 270.01 | D117: 0 | E117: 270.01 | F117: W06000001 | G117: Isle of Anglesey | H117: Ynys M¶n | J117: 2.7001
A118: W00000118 | B118: 257.73 | C118: 257.73 | D118: 0 | E118: 257.73 | F118: W06000001 | G118: Isle of Anglesey | H118: Ynys M¶n | J118: 2.5773
A119: W00000119 | B119: 990.9 | C119: 821.69 | D119: 0 | E119: 821.69 | F119: W06000001 | G119: Isle of Anglesey | H119: Ynys M¶n | J119: 8.2169
A120: W00000120 | B120: 229.41 | C120: 229.41 | D120: 0 | E120: 229.41 | F120: W06000001 | G120: Isle of Anglesey | H120: Ynys M¶n | J120: 2.2941
A121: W00000121 | B121: 405.44 | C121: 405.44 | D121: 0 | E121: 405.44 | F121: W06000001 | G121: Isle of Anglesey | H121: Ynys M¶n | J121: 4.0544
A122: W00000122 | B122: 129.33 | C122: 129.33 | D122: 0 | E122: 129.33 | F122: W06000001 | G122: Isle of Anglesey | H122: Ynys M¶n | J122: 1.2933
A123: W00000123 | B123: 220.97 | C123: 220.97 | D123: 0 | E123: 220.97 | F123: W06000001 | G123: Isle of Anglesey | H123: Ynys M¶n | J123: 2.2097
A124: W00000124 | B124: 1297.33 | C124: 1295.07 | D124: 0 | E124: 1295.07 | F124: W06000001 | G124: Isle of Anglesey | H124: Ynys M¶n | J124: 12.9507
A125: W00000125 | B125: 33.16 | C125: 33.16 | D125: 0 | E125: 33.16 | F125: W06000001 | G125: Isle of Anglesey | H125: Ynys M¶n | J125: 0.3316
A126: W00000126 | B126: 1300.36 | C126: 1300.36 | D126: 0 | E126: 1300.36 | F126: W06000001 | G126: Isle of Anglesey | H126: Ynys M¶n | J126: 13.0036
A127: W00000127 | B127: 84.6 | C127: 84.6 | D127: 0 | E127: 84.6 | F127: W06000001 | G127: Isle of Anglesey | H127: Ynys M¶n | J127: 0.846
A128: W00000128 | B128: 36.74 | C128: 36.74 | D128: 0 | E128: 36.74 | F128: W06000001 | G128: Isle of Anglesey | H128: Ynys M¶n | J128: 0.3674
A129: W00000129 | B129: 217.82 | C129: 168.1 | D129: 0 | E129: 168.1 | F129: W06000001 | G129: Isle of Anglesey | H129: Ynys M¶n | J129: 1.681
A130: W00000130 | B130: 132.84 | C130: 132.84 | D130: 0 | E130: 132.84 | F130: W06000001 | G130: Isle of Anglesey | H130: Ynys M¶n | J130: 1.3284
A131: W00000131 | B131: 584.11 | C131: 503.43 | D131: 0 | E131: 503.43 | F131: W06000001 | G131: Isle of Anglesey | H131: Ynys M¶n | J131: 5.0343
A132: W00000132 | B132: 969.36 | C132: 929.47 | D132: 0 | E132: 929.47 | F132: W06000001 | G132: Isle of Anglesey | H132: Ynys M¶n | J132: 9.2947
A133: W00000133 | B133: 419.54 | C133: 419.54 | D133: 0 | E133: 419.54 | F133: W06000001 | G133: Isle of Anglesey | H133: Ynys M¶n | J133: =E133/100 -> 4.1954
A134: W00000134 | B134: 649.89 | C134: 635.77 | D134: 0 | E134: 635.77 | F134: W06000001 | G134: Isle of Anglesey | H134: Ynys M¶n | J134: 6.3577
A135: W00000135 | B135: 763.95 | C135: 756.07 | D135: 0 | E135: 756.07 | F135: W06000001 | G135: Isle of Anglesey | H135: Ynys M¶n | J135: 7.5607
A136: W00000136 | B136: 6.73 | C136: 6.73 | D136: 0 | E136: 6.73 | F136: W06000001 | G136: Isle of Anglesey | H136: Ynys M¶n | J136: 0.0673
A137: W00000137 | B137: 1645.12 | C137: 1645.12 | D137: 133 | E137: 1511.73 | F137: W06000001 | G137: Isle of Anglesey | H137: Ynys M¶n | J137: 15.1173
A138: W00000138 | B138: 32.14 | C138: 32.14 | D138: 0 | E138: 32.14 | F138: W06000001 | G138: Isle of Anglesey | H138: Ynys M¶n | J138: 0.3214
A139: W00000139 | B139: 20.07 | C139: 20.07 | D139: 0 | E139: 20.07 | F139: W06000001 | G139: Isle of Anglesey | H139: Ynys M¶n | J139: 0.2007
A140: W00000140 | B140: 1288.24 | C140: 1288.24 | D140: 0 | E140: 1288.24 | F140: W06000001 | G140: Isle of Anglesey | H140: Ynys M¶n | J140: 12.8824
A141: W00000141 | B141: 895.86 | C141: 895.86 | D141: 0 | E141: 895.86 | F141: W06000001 | G141: Isle of Anglesey | H141: Ynys M¶n | J141: 8.9586
A142: W00000142 | B142: 2748.48 | C142: 2748.48 | D142: 102 | E142: 2645.94 | F142: W06000001 | G142: Isle of Anglesey | H142: Ynys M¶n | J142: 26.4594
A143: W00000143 | B143: 22.68 | C143: 22.68 | D143: 0 | E143: 22.68 | F143: W06000001 | G143: Isle of Anglesey | H143: Ynys M¶n | J143: 0.2268
A144: W00000144 | B144: 8.29 | C144: 8.29 | D144: 0 | E144: 8.29 | F144: W06000001 | G144: Isle of Anglesey | H144: Ynys M¶n | J144: 0.0829
A145: W00000145 | B145: 9.33 | C145: 9.33 | D145: 0 | E145: 9.33 | F145: W06000001 | G145: Isle of Anglesey | H145: Ynys M¶n | J145: 0.0933
A146: W00000146 | B146: 2.34 | C146: 2.34 | D146: 0 | E146: 2.34 | F146: W06000001 | G146: Isle of Anglesey | H146: Ynys M¶n | J146: 0.0234
A147: W00000147 | B147: 6.83 | C147: 6.83 | D147: 0 | E147: 6.83 | F147: W06000001 | G147: Isle of Anglesey | H147: Ynys M¶n | J147: 0.0683
A148: W00000148 | B148: 2.91 | C148: 2.91 | D148: 0 | E148: 2.91 | F148: W06000001 | G148: Isle of Anglesey | H148: Ynys M¶n | J148: 0.0291
A149: W00000149 | B149: 46.45 | C149: 46.45 | D149: 0 | E149: 46.45 | F149: W06000001 | G149: Isle of Anglesey | H149: Ynys M¶n | J149: 0.4645
A150: W00000150 | B150: 13.01 | C150: 13.01 | D150: 0 | E150: 13.01 | F150: W06000001 | G150: Isle of Anglesey | H150: Ynys M¶n | J150: 0.1301
A151: W00000151 | B151: 3.28 | C151: 3.28 | D151: 0 | E151: 3.28 | F151: W06000001 | G151: Isle of Anglesey | H151: Ynys M¶n | J151: 0.0328
A152: W00000152 | B152: 3.01 | C152: 3.01 | D152: 0 | E152: 3.01 | F152: W06000001 | G152: Isle of Anglesey | H152: Ynys M¶n | J152: 0.0301
A153: W00000153 | B153: 41.16 | C153: 41.16 | D153: 0 | E153: 41.16 | F153: W06000001 | G153: Isle of Anglesey | H153: Ynys M¶n | J153: 0.4116
A154: W00000154 | B154: 19.56 | C154: 19.56 | D154: 0 | E154: 19.56 | F154: W06000001 | G154: Isle of Anglesey | H154: Ynys M¶n | J154: 0.1956
A155: W00000155 | B155: 7.07 | C155: 7.07 | D155: 0 | E155: 7.07 | F155: W06000001 | G155: Isle of Anglesey | H155: Ynys M¶n | J155: 0.0707
A156: W00000156 | B156: 1509 | C156: 1441.5 | D156: 0 | E156: 1441.5 | F156: W06000001 | G156: Isle of Anglesey | H156: Ynys M¶n | J156: 14.415
A157: W00000157 | B157: 1328.55 | C157: 1328.55 | D157: 0 | E157: 1328.55 | F157: W06000001 | G157: Isle of Anglesey | H157: Ynys M¶n | J157: 13.2855
A158: W00000158 | B158: 899.36 | C158: 896.73 | D158: 0 | E158: 896.73 | F158: W06000001 | G158: Isle of Anglesey | H158: Ynys M¶n | J158: 8.9673
A159: W00000159 | B159: 96.75 | C159: 96.75 | D159: 0 | E159: 96.75 | F159: W06000001 | G159: Isle of Anglesey | H159: Ynys M¶n | J159: 0.9675
A160: W00000160 | B160: 30.28 | C160: 30.28 | D160: 0 | E160: 30.28 | F160: W06000001 | G160: Isle of Anglesey | H160: Ynys M¶n | J160: 0.3028
A161: W00000161 | B161: 25.68 | C161: 22.62 | D161: 0 | E161: 22.62 | F161: W06000001 | G161: Isle of Anglesey | H161: Ynys M¶n | J161: 0.2262
A162: W00000162 | B162: 10.83 | C162: 10.83 | D162: 0 | E162: 10.83 | F162: W06000001 | G162: Isle of Anglesey | H162: Ynys M¶n | J162: 0.1083
A163: W00000163 | B163: 1431.75 | C163: 1323.71 | D163: 0 | E163: 1323.71 | F163: W06000001 | G163: Isle of Anglesey | H163: Ynys M¶n | J163: 13.2371
A164: W00000164 | B164: 40.58 | C164: 33.29 | D164: 0 | E164: 33.29 | F164: W06000001 | G164: Isle of Anglesey | H164: Ynys M¶n | J164: 0.3329
A165: W00000165 | B165: 13.66 | C165: 13.66 | D165: 0 | E165: 13.66 | F165: W06000001 | G165: Isle of Anglesey | H165: Ynys M¶n | J165: 0.1366
A166: W00000166 | B166: 3.99 | C166: 3.99 | D166: 0 | E166: 3.99 | F166: W06000001 | G166: Isle of Anglesey | H166: Ynys M¶n | J166: 0.0399
A167: W00000167 | B167: 36.07 | C167: 20.64 | D167: 0 | E167: 20.64 | F167: W06000001 | G167: Isle of Anglesey | H167: Ynys M¶n | J167: 0.2064
A168: W00000168 | B168: 30.33 | C168: 24.82 | D168: 0 | E168: 24.82 | F168: W06000001 | G168: Isle of Anglesey | H168: Ynys M¶n | J168: 0.2482
A169: W00000169 | B169: 4.22 | C169: 4.22 | D169: 0 | E169: 4.22 | F169: W06000001 | G169: Isle of Anglesey | H169: Ynys M¶n | J169: 0.0422
A170: W00000170 | B170: 16.28 | C170: 16.28 | D170: 0 | E170: 16.28 | F170: W06000001 | G170: Isle of Anglesey | H170: Ynys M¶n | J170: 0.1628
A171: W00000171 | B171: 64.89 | C171: 64.38 | D171: 0 | E171: 64.38 | F171: W06000001 | G171: Isle of Anglesey | H171: Ynys M¶n | J171: 0.6438
A172: W00000172 | B172: 31.22 | C172: 31.22 | D172: 0 | E172: 31.22 | F172: W06000001 | G172: Isle of Anglesey | H172: Ynys M¶n | J172: 0.3122
A173: W00000173 | B173: 111.74 | C173: 98.17 | D173: 0 | E173: 98.17 | F173: W06000001 | G173: Isle of Anglesey | H173: Ynys M¶n | J173: 0.9817
A174: W00000174 | B174: 58.68 | C174: 58.68 | D174: 0 | E174: 58.68 | F174: W06000001 | G174: Isle of Anglesey | H174: Ynys M¶n | J174: 0.5868
A175: W00000175 | B175: 1668.98 | C175: 1562.28 | D175: 0 | E175: 1562.28 | F175: W06000001 | G175: Isle of Anglesey | H175: Ynys M¶n | J175: 15.6228
A176: W00000176 | B176: 67.39 | C176: 67.39 | D176: 0 | E176: 67.39 | F176: W06000001 | G176: Isle of Anglesey | H176: Ynys M¶n | J176: 0.6739
A177: W00000177 | B177: 8.19 | C177: 8.19 | D177: 0 | E177: 8.19 | F177: W06000001 | G177: Isle of Anglesey | H177: Ynys M¶n | J177: 0.0819
A178: W00000178 | B178: 991.06 | C178: 991.06 | D178: 0 | E178: 991.06 | F178: W06000001 | G178: Isle of Anglesey | H178: Ynys M¶n | J178: 9.9106
A179: W00000179 | B179: 683.57 | C179: 398.4 | D179: 0 | E179: 398.4 | F179: W06000001 | G179: Isle of Anglesey | H179: Ynys M¶n | J179: 3.984
A180: W00000180 | B180: 3.66 | C180: 3.66 | D180: 0 | E180: 3.66 | F180: W06000001 | G180: Isle of Anglesey | H180: Ynys M¶n | J180: 0.0366
A181: W00000181 | B181: 4.12 | C181: 4.12 | D181: 0 | E181: 4.12 | F181: W06000001 | G181: Isle of Anglesey | H181: Ynys M¶n | J181: 0.0412
A182: W00000182 | B182: 18.78 | C182: 14.41 | D182: 0 | E182: 14.41 | F182: W06000001 | G182: Isle of Anglesey | H182: Ynys M¶n | J182: 0.1441
A183: W00000183 | B183: 7.14 | C183: 7.14 | D183: 0 | E183: 7.14 | F183: W06000001 | G183: Isle of Anglesey | H183: Ynys M¶n | J183: 0.0714
A184: W00000184 | B184: 15.75 | C184: 13.48 | D184: 0 | E184: 13.48 | F184: W06000001 | G184: Isle of Anglesey | H184: Ynys M¶n | J184: 0.1348
A185: W00000185 | B185: 8.19 | C185: 8.19 | D185: 0 | E185: 8.19 | F185: W06000001 | G185: Isle of Anglesey | H185: Ynys M¶n | J185: 0.0819
A186: W00000186 | B186: 4.21 | C186: 4.21 | D186: 0 | E186: 4.21 | F186: W06000001 | G186: Isle of Anglesey | H186: Ynys M¶n | J186: 0.0421
A187: W00000187 | B187: 7.69 | C187: 5.77 | D187: 0 | E187: 5.77 | F187: W06000001 | G187: Isle of Anglesey | H187: Ynys M¶n | J187: 0.0577
A188: W00000188 | B188: 98.95 | C188: 95.93 | D188: 0 | E188: 95.93 | F188: W06000001 | G188: Isle of Anglesey | H188: Ynys M¶n | J188: 0.9593
A189: W00000189 | B189: 20.06 | C189: 19.63 | D189: 0 | E189: 19.63 | F189: W06000001 | G189: Isle of Anglesey | H189: Ynys M¶n | J189: 0.1963
A190: W00000190 | B190: 160.94 | C190: 114.49 | D190: 0 | E190: 114.49 | F190: W06000001 | G190: Isle of Anglesey | H190: Ynys M¶n | J190: 1.1449
A191: W00000191 | B191: 21.67 | C191: 11.77 | D191: 0 | E191: 11.77 | F191: W06000001 | G191: Isle of Anglesey | H191: Ynys M¶n | J191: 0.1177
A192: W00000192 | B192: 94.54 | C192: 94.23 | D192: 0 | E192: 94.23 | F192: W06000001 | G192: Isle of Anglesey | H192: Ynys M¶n | J192: 0.9423
A193: W00000193 | B193: 6.88 | C193: 6.88 | D193: 0 | E193: 6.88 | F193: W06000001 | G193: Isle of Anglesey | H193: Ynys M¶n | J193: 0.0688
A194: W00000194 | B194: 2254.1 | C194: 1839.28 | D194: 0 | E194: 1839.28 | F194: W06000001 | G194: Isle of Anglesey | H194: Ynys M¶n | J194: 18.3928
A195: W00000195 | B195: 695.76 | C195: 695.76 | D195: 0 | E195: 695.76 | F195: W06000001 | G195: Isle of Anglesey | H195: Ynys M¶n | J195: 6.9576
A196: W00000196 | B196: 1831.81 | C196: 1290.56 | D196: 0 | E196: 1290.56 | F196: W06000001 | G196: Isle of Anglesey | H196: Ynys M¶n | J196: 12.9056
A197: W00000197 | B197: 88.76 | C197: 88.76 | D197: 0 | E197: 88.76 | F197: W06000001 | G197: Isle of Anglesey | H197: Ynys M¶n | J197: =E197/100 -> 0.8876
A198: W00000198 | B198: 31.61 | C198: 31.61 | D198: 0 | E198: 31.61 | F198: W06000001 | G198: Isle of Anglesey | H198: Ynys M¶n | J198: 0.3161
A199: W00000199 | B199: 986.74 | C199: 875.57 | D199: 0 | E199: 875.57 | F199: W06000001 | G199: Isle of Anglesey | H199: Ynys M¶n | J199: 8.7557
A200: W00000200 | B200: 62.16 | C200: 49.7 | D200: 0 | E200: 49.7 | F200: W06000001 | G200: Isle of Anglesey | H200: Ynys M¶n | J200: 0.497
... 4300 more rows

Sheet county averages (hidden)
D2: Residential Heat Density
A4: Please select | D4: Filter the table below by local authority to provide an estimate for residential heat density across your study area.
D6: Input | E6: Cell requiring data input.
D7: Information | E7: Cell used in calculating output - displayed for information only.
D8: Output | E8: Result cell.
D10: The table should be filtered by column 1 only.
D12: 1 | E12: 2 | F12: 3 | G12: 4 | H12: 5 | I12: 6 | J12: 7 | K12: 8 | L12: 9 | M12: 10 | N12: 11
A13: Anglesey | F13: See Note A | N13: See Note A | O13: 12
A14: Blaenau Gwent | D14: Local Authority | E14: Lower Super Output Area Name | F14: Output Area Code | G14: Lower Super Output Area Code | H14: Consumption in Lower Super Output Area [kWh] | I14: Dwellings in LSOA | J14: Average Consumption /Dwelling [kWh] | K14: Dwellings in Output Area | L14: Total Consumption in Output Area [kWh] | M14: Total Consumption in Output Area [MWh] | N14: Total Heat in Output Area [MW] | O14: MW/km2 | S14: LA | T14: Average Average Consumption
D15: Anglesey | E15: Isle of Anglesey 002C | F15: W00000101 | G15: W01000021 | H15: =IFERROR(VLOOKUP($G15,RHD_LSOA_Lookup,2,FALSE),0) -> 207,679 | I15: =IFERROR(VLOOKUP($G15,RHD_LSOA_Lookup,3,FALSE),0) -> 14 | J15: =IFERROR(VLOOKUP($G15,RHD_LSOA_Lookup,4,FALSE),0) -> 14,834 | K15: =VLOOKUP($F15,dwellings_lookup,2,FALSE) -> 141 | L15: =J15*K15 -> 2,091,594 | M15: =L15/1000 -> 2,092 | N15: =M15/(24*365) -> 0.24 | O15: =N15/VLOOKUP($F15,lookup_area,10,FALSE) -> 0.8 | S15: Anglesey | T15: =J161 -> 12,195
D16: Anglesey | E16: Isle of Anglesey 002C | F16: W00000102 | G16: W01000021 | H16: 207,679 | I16: 14 | J16: 14,834 | K16: 151 | L16: 2,239,934 | M16: 2,240 | N16: 0.26 | O16: 0.0 | S16: Blaenau Gwent | T16: =J403 -> 14,315
D17: Anglesey | E17: Isle of Anglesey 002C | F17: W00000103 | G17: W01000021 | H17: 207,679 | I17: 14 | J17: 14,834 | K17: 147 | L17: 2,180,598 | M17: 2,181 | N17: 0.25 | O17: 0.0 | S17: Bridgend | T17: =J857 -> 13,313
D18: Anglesey | E18: Isle of Anglesey 002C | F18: W00000104 | G18: W01000021 | H18: 207,679 | I18: 14 | J18: 14,834 | K18: 149 | L18: 2,210,266 | M18: 2,210 | N18: 0.25 | O18: 0.3 | S18: Caerphilly | T18: =J1426 -> 13,753
D19: Anglesey | E19: Isle of Anglesey 002C | F19: W00000105 | G19: W01000021 | H19: 207,679 | I19: 14 | J19: 14,834 | K19: 171 | L19: 2,536,614 | M19: 2,537 | N19: 0.29 | O19: 0.0 | S19: Cardiff | T19: =J2504 -> 12,916
D20: Anglesey | E20: Isle of Anglesey 002C | F20: W00000106 | G20: W01000021 | H20: 207,679 | I20: 14 | J20: 14,834 | K20: 146 | L20: 2,165,764 | M20: 2,166 | N20: 0.25 | O20: 0.1 | S20: Carmarthenshire | T20: =J2976 -> 13,403
D21: Anglesey | E21: Isle of Anglesey 002C | F21: W00000107 | G21: W01000021 | H21: 207,679 | I21: 14 | J21: 14,834 | K21: 170 | L21: 2,521,780 | M21: 2,522 | N21: 0.29 | O21: 0.0 | S21: Ceredigion | T21: =J3075 -> 12,578
D22: Anglesey | E22: Isle of Anglesey 006A | F22: W00000022 | G22: W01000006 | H22: 396,957 | I22: 36 | J22: 11,027 | K22: 151 | L22: 1,665,077 | M22: 1,665 | N22: 0.19 | O22: 0.1 | S22: Conwy | T22: =J3439 -> 12,873
D23: Anglesey | E23: Isle of Anglesey 006A | F23: W00000023 | G23: W01000006 | H23: 396,957 | I23: 36 | J23: 11,027 | K23: 141 | L23: 1,554,807 | M23: 1,555 | N23: 0.18 | O23: 0.0 | S23: Denbighshire | T23: =J3750 -> 12,830
D24: Anglesey | E24: Isle of Anglesey 006A | F24: W00000024 | G24: W01000006 | H24: 396,957 | I24: 36 | J24: 11,027 | K24: 165 | L24: 1,819,455 | M24: 1,819 | N24: 0.21 | O24: 0.0 | S24: Flintshire | T24: =J4223 -> 13,155
D25: Anglesey | E25: Isle of Anglesey 006A | F25: W00000025 | G25: W01000006 | H25: 396,957 | I25: 36 | J25: 11,027 | K25: 113 | L25: 1,246,051 | M25: 1,246 | N25: 0.14 | O25: 0.1 | S25: Gwynedd | T25: =J4536 -> 11,902
D26: Anglesey | E26: Isle of Anglesey 006A | F26: W00000026 | G26: W01000006 | H26: 396,957 | I26: 36 | J26: 11,027 | K26: 126 | L26: 1,389,402 | M26: 1,389 | N26: 0.16 | O26: 0.0 | S26: Merthyr Tydfil | T26: =J4726 -> 14,298
D27: Anglesey | E27: Isle of Anglesey 001D | F27: W00000137 | G27: W01000028 | H27: 2,014,319 | I27: 128 | J27: 15,737 | K27: 93 | L27: 1,463,541 | M27: 1,464 | N27: 0.17 | O27: 0.0 | S27: Monmouthshire | T27: =J4990 -> 14,057
D28: Anglesey | E28: Isle of Anglesey 001D | F28: W00000138 | G28: W01000028 | H28: 2,014,319 | I28: 128 | J28: 15,737 | K28: 151 | L28: 2,376,287 | M28: 2,376 | N28: 0.27 | O28: 0.8 | S28: Neath Port Talbot | T28: =J5464 -> 13,053
D29: Anglesey | E29: Isle of Anglesey 001D | F29: W00000139 | G29: W01000028 | H29: 2,014,319 | I29: 128 | J29: 15,737 | K29: 187 | L29: 2,942,819 | M29: 2,943 | N29: 0.34 | O29: 1.7 | S29: Newport | T29: =J5940 -> 12,517
D30: Anglesey | E30: Isle of Anglesey 001D | F30: W00000140 | G30: W01000028 | H30: 2,014,319 | I30: 128 | J30: 15,737 | K30: 182 | L30: 2,864,134 | M30: 2,864 | N30: 0.33 | O30: 0.0 | S30: Pembrokeshire | T30: =J6240 -> 12,398
D31: Anglesey | E31: Isle of Anglesey 001D | F31: W00000141 | G31: W01000028 | H31: 2,014,319 | I31: 128 | J31: 15,737 | K31: 122 | L31: 1,919,914 | M31: 1,920 | N31: 0.22 | O31: 0.0 | S31: Powys | T31: =J6569 -> 12,989
D32: Anglesey | E32: Isle of Anglesey 001D | F32: W00000142 | G32: W01000028 | H32: 2,014,319 | I32: 128 | J32: 15,737 | K32: 131 | L32: 2,061,547 | M32: 2,062 | N32: 0.24 | O32: 0.0 | S32: Rhonnda Cynon Taff | T32: =J7344 -> 13,589
D33: Anglesey | E33: Isle of Anglesey 004C | F33: W00000199 | G33: W01000039 | H33: 2,459,872 | I33: 178 | J33: 13,820 | K33: 163 | L33: 2,252,660 | M33: 2,253 | N33: 0.26 | O33: 0.0 | S33: Swansea | T33: =J8120 -> 13,133
D34: Anglesey | E34: Isle of Anglesey 004C | F34: W00000200 | G34: W01000039 | H34: 2,459,872 | I34: 178 | J34: 13,820 | K34: 172 | L34: 2,377,040 | M34: 2,377 | N34: 0.27 | O34: 0.5 | S34: The Vale of Glamorgan | T34: =J8533 -> 13,701
D35: Anglesey | E35: Isle of Anglesey 004C | F35: W00000206 | G35: W01000039 | H35: 2,459,872 | I35: 178 | J35: 13,820 | K35: 239 | L35: 3,302,980 | M35: 3,303 | N35: 0.38 | O35: 0.2 | S35: Torfaen | T35: =J8839 -> 12,614
D36: Anglesey | E36: Isle of Anglesey 004C | F36: W00000207 | G36: W01000039 | H36: 2,459,872 | I36: 178 | J36: 13,820 | K36: 132 | L36: 1,824,240 | M36: 1,824 | N36: 0.21 | O36: 0.2 | S36: Wrexham | T36: =J9268 -> 12,666
D37: Anglesey | E37: Isle of Anglesey 007E | F37: W00000116 | G37: W01000024 | H37: 4,667,093 | I37: 452 | J37: 10,325 | K37: 148 | L37: 1,528,100 | M37: 1,528 | N37: 0.17 | O37: 0.6
D38: Anglesey | E38: Isle of Anglesey 007E | F38: W00000117 | G38: W01000024 | H38: 4,667,093 | I38: 452 | J38: 10,325 | K38: 154 | L38: 1,590,050 | M38: 1,590 | N38: 0.18 | O38: 0.1
D39: Anglesey | E39: Isle of Anglesey 007E | F39: W00000118 | G39: W01000024 | H39: 4,667,093 | I39: 452 | J39: 10,325 | K39: 146 | L39: 1,507,450 | M39: 1,507 | N39: 0.17 | O39: 0.1
D40: Anglesey | E40: Isle of Anglesey 007E | F40: W00000119 | G40: W01000024 | H40: 4,667,093 | I40: 452 | J40: 10,325 | K40: 96 | L40: 991,200 | M40: 991 | N40: 0.11 | O40: 0.0
D41: Anglesey | E41: Isle of Anglesey 006D | F41: W00000208 | G41: W01000041 | H41: 4,740,872 | I41: 590 | J41: 8,035 | K41: 174 | L41: 1,398,090 | M41: 1,398 | N41: 0.16 | O41: 0.1
D42: Anglesey | E42: Isle of Anglesey 006D | F42: W00000209 | G42: W01000041 | H42: 4,740,872 | I42: 590 | J42: 8,035 | K42: 98 | L42: 787,430 | M42: 787 | N42: 0.09 | O42: 2.6
D43: Anglesey | E43: Isle of Anglesey 006D | F43: W00000210 | G43: W01000041 | H43: 4,740,872 | I43: 590 | J43: 8,035 | K43: 186 | L43: 1,494,510 | M43: 1,495 | N43: 0.17 | O43: 1.7
D44: Anglesey | E44: Isle of Anglesey 006D | F44: W00000211 | G44: W01000041 | H44: 4,740,872 | I44: 590 | J44: 8,035 | K44: 71 | L44: 570,485 | M44: 570 | N44: 0.07 | O44: 1.6
D45: Anglesey | E45: Isle of Anglesey 006D | F45: W00000212 | G45: W01000041 | H45: 4,740,872 | I45: 590 | J45: 8,035 | K45: 124 | L45: 996,340 | M45: 996 | N45: 0.11 | O45: 1.4
D46: Anglesey | E46: Isle of Anglesey 003F | F46: W00000180 | G46: W01000036 | H46: 4,983,307 | I46: 534 | J46: 9,332 | K46: 132 | L46: 1,231,824 | M46: 1,232 | N46: 0.14 | O46: 3.8
D47: Anglesey | E47: Isle of Anglesey 003F | F47: W00000182 | G47: W01000036 | H47: =IFERROR(VLOOKUP($G47,RHD_LSOA_Lookup,2,FALSE),0) -> 4,983,307 | I47: =IFERROR(VLOOKUP($G47,RHD_LSOA_Lookup,3,FALSE),0) -> 534 | J47: =IFERROR(VLOOKUP($G47,RHD_LSOA_Lookup,4,FALSE),0) -> 9,332 | K47: =VLOOKUP($F47,dwellings_lookup,2,FALSE) -> 137 | L47: =J47*K47 -> 1,278,484 | M47: =L47/1000 -> 1,278 | N47: =M47/(24*365) -> 0.15 | O47: =N47/VLOOKUP($F47,lookup_area,10,FALSE) -> 1.0
D48: Anglesey | E48: Isle of Anglesey 003F | F48: W00000186 | G48: W01000036 | H48: 4,983,307 | I48: 534 | J48: 9,332 | K48: 134 | L48: 1,250,488 | M48: 1,250 | N48: 0.14 | O48: 3.4
D49: Anglesey | E49: Isle of Anglesey 003F | F49: W00000187 | G49: W01000036 | H49: 4,983,307 | I49: 534 | J49: 9,332 | K49: 143 | L49: 1,334,476 | M49: 1,334 | N49: 0.15 | O49: 2.6
D50: Anglesey | E50: Isle of Anglesey 004E | F50: W00000220 | G50: W01000043 | H50: 5,182,688 | I50: 476 | J50: 10,888 | K50: 153 | L50: 1,665,864 | M50: 1,666 | N50: 0.19 | O50: 2.8
D51: Anglesey | E51: Isle of Anglesey 004E | F51: W00000221 | G51: W01000043 | H51: 5,182,688 | I51: 476 | J51: 10,888 | K51: 132 | L51: 1,437,216 | M51: 1,437 | N51: 0.16 | O51: 0.2
D52: Anglesey | E52: Isle of Anglesey 004E | F52: W00000222 | G52: W01000043 | H52: 5,182,688 | I52: 476 | J52: 10,888 | K52: 130 | L52: 1,415,440 | M52: 1,415 | N52: 0.16 | O52: 0.4
D53: Anglesey | E53: Isle of Anglesey 004E | F53: W00000226 | G53: W01000043 | H53: 5,182,688 | I53: 476 | J53: 10,888 | K53: 140 | L53: 1,524,320 | M53: 1,524 | N53: 0.17 | O53: 0.1
D54: Anglesey | E54: Isle of Anglesey 007D | F54: W00000113 | G54: W01000023 | H54: 5,268,438 | I54: 465 | J54: 11,330 | K54: 146 | L54: 1,654,180 | M54: 1,654 | N54: 0.19 | O54: 1.3
D55: Anglesey | E55: Isle of Anglesey 007D | F55: W00000114 | G55: W01000023 | H55: 5,268,438 | I55: 465 | J55: 11,330 | K55: 136 | L55: 1,540,880 | M55: 1,541 | N55: 0.18 | O55: 0.0
D56: Anglesey | E56: Isle of Anglesey 007D | F56: W00000115 | G56: W01000023 | H56: 5,268,438 | I56: 465 | J56: 11,330 | K56: 181 | L56: 2,050,730 | M56: 2,051 | N56: 0.23 | O56: 0.0
D57: Anglesey | E57: Isle of Anglesey 007D | F57: W00000120 | G57: W01000023 | H57: 5,268,438 | I57: 465 | J57: 11,330 | K57: 163 | L57: 1,846,790 | M57: 1,847 | N57: 0.21 | O57: 0.1
D58: Anglesey | E58: Isle of Anglesey 001B | F58: W00000010 | G58: W01000004 | H58: 5,496,881 | I58: 399 | J58: 13,777 | K58: 144 | L58: 1,983,888 | M58: 1,984 | N58: 0.23 | O58: 0.2
D59: Anglesey | E59: Isle of Anglesey 001B | F59: W00000011 | G59: W01000004 | H59: 5,496,881 | I59: 399 | J59: 13,777 | K59: 135 | L59: 1,859,895 | M59: 1,860 | N59: 0.21 | O59: 0.0
D60: Anglesey | E60: Isle of Anglesey 001B | F60: W00000012 | G60: W01000004 | H60: 5,496,881 | I60: 399 | J60: 13,777 | K60: 148 | L60: 2,038,996 | M60: 2,039 | N60: 0.23 | O60: 0.3
D61: Anglesey | E61: Isle of Anglesey 001B | F61: W00000013 | G61: W01000004 | H61: 5,496,881 | I61: 399 | J61: 13,777 | K61: 177 | L61: 2,438,529 | M61: 2,439 | N61: 0.28 | O61: 0.2
D62: Anglesey | E62: Isle of Anglesey 003E | F62: W00000165 | G62: W01000033 | H62: 5,720,075 | I62: 693 | J62: 8,254 | K62: 138 | L62: 1,139,052 | M62: 1,139 | N62: 0.13 | O62: 1.0
D63: Anglesey | E63: Isle of Anglesey 003E | F63: W00000166 | G63: W01000033 | H63: 5,720,075 | I63: 693 | J63: 8,254 | K63: 138 | L63: 1,139,052 | M63: 1,139 | N63: 0.13 | O63: 3.3
D64: Anglesey | E64: Isle of Anglesey 003E | F64: W00000167 | G64: W01000033 | H64: 5,720,075 | I64: 693 | J64: 8,254 | K64: 140 | L64: 1,155,560 | M64: 1,156 | N64: 0.13 | O64: 0.6
D65: Anglesey | E65: Isle of Anglesey 003E | F65: W00000168 | G65: W01000033 | H65: 5,720,075 | I65: 693 | J65: 8,254 | K65: 156 | L65: 1,287,624 | M65: 1,288 | N65: 0.15 | O65: 0.6
D66: Anglesey | E66: Isle of Anglesey 003E | F66: W00000169 | G66: W01000033 | H66: 5,720,075 | I66: 693 | J66: 8,254 | K66: 142 | L66: 1,172,068 | M66: 1,172 | N66: 0.13 | O66: 3.2
D67: Anglesey | E67: Isle of Anglesey 004F | F67: W00000223 | G67: W01000044 | H67: 5,842,880 | I67: 450 | J67: 12,984 | K67: 136 | L67: 1,765,824 | M67: 1,766 | N67: 0.20 | O67: 0.0
D68: Anglesey | E68: Isle of Anglesey 004F | F68: W00000224 | G68: W01000044 | H68: 5,842,880 | I68: 450 | J68: 12,984 | K68: 132 | L68: 1,713,888 | M68: 1,714 | N68: 0.20 | O68: 0.3
D69: Anglesey | E69: Isle of Anglesey 004F | F69: W00000225 | G69: W01000044 | H69: 5,842,880 | I69: 450 | J69: 12,984 | K69: 140 | L69: 1,817,760 | M69: 1,818 | N69: 0.21 | O69: 1.7
D70: Anglesey | E70: Isle of Anglesey 004F | F70: W00000227 | G70: W01000044 | H70: 5,842,880 | I70: 450 | J70: 12,984 | K70: 111 | L70: 1,441,224 | M70: 1,441 | N70: 0.16 | O70: 3.3
D71: Anglesey | E71: Isle of Anglesey 004B | F71: W00000170 | G71: W01000034 | H71: 5,863,247 | I71: 495 | J71: 11,845 | K71: 123 | L71: 1,456,935 | M71: 1,457 | N71: 0.17 | O71: 1.0
D72: Anglesey | E72: Isle of Anglesey 004B | F72: W00000171 | G72: W01000034 | H72: 5,863,247 | I72: 495 | J72: 11,845 | K72: 167 | L72: 1,978,115 | M72: 1,978 | N72: 0.23 | O72: 0.4
D73: Anglesey | E73: Isle of Anglesey 004B | F73: W00000172 | G73: W01000034 | H73: 5,863,247 | I73: 495 | J73: 11,845 | K73: 122 | L73: 1,445,090 | M73: 1,445 | N73: 0.16 | O73: 0.5
D74: Anglesey | E74: Isle of Anglesey 004B | F74: W00000173 | G74: W01000034 | H74: 5,863,247 | I74: 495 | J74: 11,845 | K74: 130 | L74: 1,539,850 | M74: 1,540 | N74: 0.18 | O74: 0.2
D75: Anglesey | E75: Isle of Anglesey 008A | F75: W00000032 | G75: W01000008 | H75: 6,952,874 | I75: 518 | J75: 13,423 | K75: 121 | L75: 1,624,183 | M75: 1,624 | N75: 0.19 | O75: 3.3
D76: Anglesey | E76: Isle of Anglesey 008A | F76: W00000033 | G76: W01000008 | H76: 6,952,874 | I76: 518 | J76: 13,423 | K76: 138 | L76: 1,852,374 | M76: 1,852 | N76: 0.21 | O76: 0.4
D77: Anglesey | E77: Isle of Anglesey 008A | F77: W00000034 | G77: W01000008 | H77: 6,952,874 | I77: 518 | J77: 13,423 | K77: 123 | L77: 1,651,029 | M77: 1,651 | N77: 0.19 | O77: 1.9
D78: Anglesey | E78: Isle of Anglesey 008A | F78: W00000035 | G78: W01000008 | H78: 6,952,874 | I78: 518 | J78: 13,423 | K78: 146 | L78: 1,959,758 | M78: 1,960 | N78: 0.22 | O78: 0.2
D79: Anglesey | E79: Isle of Anglesey 008A | F79: W00000036 | G79: W01000008 | H79: =IFERROR(VLOOKUP($G79,RHD_LSOA_Lookup,2,FALSE),0) -> 6,952,874 | I79: =IFERROR(VLOOKUP($G79,RHD_LSOA_Lookup,3,FALSE),0) -> 518 | J79: =IFERROR(VLOOKUP($G79,RHD_LSOA_Lookup,4,FALSE),0) -> 13,423 | K79: =VLOOKUP($F79,dwellings_lookup,2,FALSE) -> 118 | L79: =J79*K79 -> 1,583,914 | M79: =L79/1000 -> 1,584 | N79: =M79/(24*365) -> 0.18 | O79: =N79/VLOOKUP($F79,lookup_area,10,FALSE) -> 2.9
D80: Anglesey | E80: Isle of Anglesey 003G | F80: W00000181 | G80: W01000037 | H80: 6,984,715 | I80: 533 | J80: 13,105 | K80: 138 | L80: 1,808,490 | M80: 1,808 | N80: 0.21 | O80: 5.0
D81: Anglesey | E81: Isle of Anglesey 003G | F81: W00000183 | G81: W01000037 | H81: 6,984,715 | I81: 533 | J81: 13,105 | K81: 126 | L81: 1,651,230 | M81: 1,651 | N81: 0.19 | O81: 2.6
D82: Anglesey | E82: Isle of Anglesey 003G | F82: W00000184 | G82: W01000037 | H82: 6,984,715 | I82: 533 | J82: 13,105 | K82: 154 | L82: 2,018,170 | M82: 2,018 | N82: 0.23 | O82: 1.7
D83: Anglesey | E83: Isle of Anglesey 003G | F83: W00000185 | G83: W01000037 | H83: 6,984,715 | I83: 533 | J83: 13,105 | K83: 128 | L83: 1,677,440 | M83: 1,677 | N83: 0.19 | O83: 2.3
D84: Anglesey | E84: Isle of Anglesey 003A | F84: W00000075 | G84: W01000016 | H84: 7,090,641 | I84: 634 | J84: 11,184 | K84: 140 | L84: 1,565,760 | M84: 1,566 | N84: 0.18 | O84: 5.3
D85: Anglesey | E85: Isle of Anglesey 003A | F85: W00000076 | G85: W01000016 | H85: 7,090,641 | I85: 634 | J85: 11,184 | K85: 181 | L85: 2,024,304 | M85: 2,024 | N85: 0.23 | O85: 4.6
D86: Anglesey | E86: Isle of Anglesey 003A | F86: W00000077 | G86: W01000016 | H86: 7,090,641 | I86: 634 | J86: 11,184 | K86: 190 | L86: 2,124,960 | M86: 2,125 | N86: 0.24 | O86: 1.8
D87: Anglesey | E87: Isle of Anglesey 003A | F87: W00000078 | G87: W01000016 | H87: 7,090,641 | I87: 634 | J87: 11,184 | K87: 131 | L87: 1,465,104 | M87: 1,465 | N87: 0.17 | O87: 5.1
D88: Anglesey | E88: Isle of Anglesey 004D | F88: W00000201 | G88: W01000040 | H88: 7,518,105 | I88: 500 | J88: 15,036 | K88: 76 | L88: 1,142,736 | M88: 1,143 | N88: 0.13 | O88: 0.0
D89: Anglesey | E89: Isle of Anglesey 004D | F89: W00000202 | G89: W01000040 | H89: 7,518,105 | I89: 500 | J89: 15,036 | K89: 206 | L89: 3,097,416 | M89: 3,097 | N89: 0.35 | O89: 0.1
D90: Anglesey | E90: Isle of Anglesey 004D | F90: W00000203 | G90: W01000040 | H90: 7,518,105 | I90: 500 | J90: 15,036 | K90: 156 | L90: 2,345,616 | M90: 2,346 | N90: 0.27 | O90: 0.2
D91: Anglesey | E91: Isle of Anglesey 004D | F91: W00000204 | G91: W01000040 | H91: 7,518,105 | I91: 500 | J91: 15,036 | K91: 172 | L91: 2,586,192 | M91: 2,586 | N91: 0.30 | O91: 0.3
D92: Anglesey | E92: Isle of Anglesey 004D | F92: W00000205 | G92: W01000040 | H92: 7,518,105 | I92: 500 | J92: 15,036 | K92: 159 | L92: 2,390,724 | M92: 2,391 | N92: 0.27 | O92: 0.9
D93: Anglesey | E93: Isle of Anglesey 003C | F93: W00000143 | G93: W01000029 | H93: 7,521,832 | I93: 731 | J93: 10,290 | K93: 138 | L93: 1,420,020 | M93: 1,420 | N93: 0.16 | O93: 0.7
D94: Anglesey | E94: Isle of Anglesey 003C | F94: W00000144 | G94: W01000029 | H94: 7,521,832 | I94: 731 | J94: 10,290 | K94: 141 | L94: 1,450,890 | M94: 1,451 | N94: 0.17 | O94: 2.0
D95: Anglesey | E95: Isle of Anglesey 003C | F95: W00000145 | G95: W01000029 | H95: 7,521,832 | I95: 731 | J95: 10,290 | K95: 157 | L95: 1,615,530 | M95: 1,616 | N95: 0.18 | O95: 2.0
D96: Anglesey | E96: Isle of Anglesey 003C | F96: W00000146 | G96: W01000029 | H96: 7,521,832 | I96: 731 | J96: 10,290 | K96: 150 | L96: 1,543,500 | M96: 1,544 | N96: 0.18 | O96: 7.5
D97: Anglesey | E97: Isle of Anglesey 003C | F97: W00000147 | G97: W01000029 | H97: 7,521,832 | I97: 731 | J97: 10,290 | K97: 145 | L97: 1,492,050 | M97: 1,492 | N97: 0.17 | O97: 2.5
D98: Anglesey | E98: Isle of Anglesey 008B | F98: W00000048 | G98: W01000011 | H98: 7,875,672 | I98: 572 | J98: 13,769 | K98: 187 | L98: 2,574,803 | M98: 2,575 | N98: 0.29 | O98: 2.8
D99: Anglesey | E99: Isle of Anglesey 008B | F99: W00000049 | G99: W01000011 | H99: 7,875,672 | I99: 572 | J99: 13,769 | K99: 168 | L99: 2,313,192 | M99: 2,313 | N99: 0.26 | O99: 1.5
D100: Anglesey | E100: Isle of Anglesey 008B | F100: W00000050 | G100: W01000011 | H100: 7,875,672 | I100: 572 | J100: 13,769 | K100: 146 | L100: 2,010,274 | M100: 2,010 | N100: 0.23 | O100: 3.0
D101: Anglesey | E101: Isle of Anglesey 008B | F101: W00000051 | G101: W01000011 | H101: 7,875,672 | I101: 572 | J101: 13,769 | K101: 151 | L101: 2,079,119 | M101: 2,079 | N101: 0.24 | O101: 0.4
D102: Anglesey | E102: Isle of Anglesey 003B | F102: W00000079 | G102: W01000017 | H102: 7,902,279 | I102: 737 | J102: 10,722 | K102: 135 | L102: 1,447,470 | M102: 1,447 | N102: 0.17 | O102: 1.9
D103: Anglesey | E103: Isle of Anglesey 003B | F103: W00000080 | G103: W01000017 | H103: 7,902,279 | I103: 737 | J103: 10,722 | K103: 123 | L103: 1,318,806 | M103: 1,319 | N103: 0.15 | O103: 2.7
D104: Anglesey | E104: Isle of Anglesey 003B | F104: W00000081 | G104: W01000017 | H104: 7,902,279 | I104: 737 | J104: 10,722 | K104: 140 | L104: 1,501,080 | M104: 1,501 | N104: 0.17 | O104: 2.7
D105: Anglesey | E105: Isle of Anglesey 003B | F105: W00000082 | G105: W01000017 | H105: 7,902,279 | I105: 737 | J105: 10,722 | K105: 120 | L105: 1,286,640 | M105: 1,287 | N105: 0.15 | O105: 0.3
D106: Anglesey | E106: Isle of Anglesey 003B | F106: W00000083 | G106: W01000017 | H106: 7,902,279 | I106: 737 | J106: 10,722 | K106: 146 | L106: 1,565,412 | M106: 1,565 | N106: 0.18 | O106: 0.4
D107: Anglesey | E107: Isle of Anglesey 008C | F107: W00000070 | G107: W01000015 | H107: 8,978,598 | I107: 660 | J107: 13,604 | K107: 175 | L107: 2,380,700 | M107: 2,381 | N107: 0.27 | O107: 3.2
D108: Anglesey | E108: Isle of Anglesey 008C | F108: W00000071 | G108: W01000015 | H108: 8,978,598 | I108: 660 | J108: 13,604 | K108: 148 | L108: 2,013,392 | M108: 2,013 | N108: 0.23 | O108: 0.2
D109: Anglesey | E109: Isle of Anglesey 008C | F109: W00000072 | G109: W01000015 | H109: 8,978,598 | I109: 660 | J109: 13,604 | K109: 121 | L109: 1,646,084 | M109: 1,646 | N109: 0.19 | O109: 1.8
D110: Anglesey | E110: Isle of Anglesey 008C | F110: W00000073 | G110: W01000015 | H110: 8,978,598 | I110: 660 | J110: 13,604 | K110: 122 | L110: 1,659,688 | M110: 1,660 | N110: 0.19 | O110: 0.5
D111: Anglesey | E111: Isle of Anglesey 008C | F111: W00000074 | G111: W01000015 | H111: =IFERROR(VLOOKUP($G111,RHD_LSOA_Lookup,2,FALSE),0) -> 8,978,598 | I111: =IFERROR(VLOOKUP($G111,RHD_LSOA_Lookup,3,FALSE),0) -> 660 | J111: =IFERROR(VLOOKUP($G111,RHD_LSOA_Lookup,4,FALSE),0) -> 13,604 | K111: =VLOOKUP($F111,dwellings_lookup,2,FALSE) -> 116 | L111: =J111*K111 -> 1,578,064 | M111: =L111/1000 -> 1,578 | N111: =M111/(24*365) -> 0.18 | O111: =N111/VLOOKUP($F111,lookup_area,10,FALSE) -> 2.3
D112: Anglesey | E112: Isle of Anglesey 006B | F112: W00000052 | G112: W01000012 | H112: 9,259,729 | I112: 676 | J112: 13,698 | K112: 122 | L112: 1,671,156 | M112: 1,671 | N112: 0.19 | O112: 0.3
D113: Anglesey | E113: Isle of Anglesey 006B | F113: W00000053 | G113: W01000012 | H113: 9,259,729 | I113: 676 | J113: 13,698 | K113: 179 | L113: 2,451,942 | M113: 2,452 | N113: 0.28 | O113: 1.4
D114: Anglesey | E114: Isle of Anglesey 006B | F114: W00000054 | G114: W01000012 | H114: 9,259,729 | I114: 676 | J114: 13,698 | K114: 130 | L114: 1,780,740 | M114: 1,781 | N114: 0.20 | O114: 1.1
D115: Anglesey | E115: Isle of Anglesey 006B | F115: W00000055 | G115: W01000012 | H115: 9,259,729 | I115: 676 | J115: 13,698 | K115: 145 | L115: 1,986,210 | M115: 1,986 | N115: 0.23 | O115: 0.1
D116: Anglesey | E116: Isle of Anglesey 006B | F116: W00000056 | G116: W01000012 | H116: 9,259,729 | I116: 676 | J116: 13,698 | K116: 145 | L116: 1,986,210 | M116: 1,986 | N116: 0.23 | O116: 0.4
D117: Anglesey | E117: Isle of Anglesey 008D | F117: W00000213 | G117: W01000042 | H117: 9,447,233 | I117: 833 | J117: 11,341 | K117: 148 | L117: 1,678,468 | M117: 1,678 | N117: 0.19 | O117: 0.4
D118: Anglesey | E118: Isle of Anglesey 008D | F118: W00000214 | G118: W01000042 | H118: 9,447,233 | I118: 833 | J118: 11,341 | K118: 141 | L118: 1,599,081 | M118: 1,599 | N118: 0.18 | O118: 2.0
D119: Anglesey | E119: Isle of Anglesey 008D | F119: W00000215 | G119: W01000042 | H119: 9,447,233 | I119: 833 | J119: 11,341 | K119: 137 | L119: 1,553,717 | M119: 1,554 | N119: 0.18 | O119: 0.1
D120: Anglesey | E120: Isle of Anglesey 008D | F120: W00000216 | G120: W01000042 | H120: 9,447,233 | I120: 833 | J120: 11,341 | K120: 136 | L120: 1,542,376 | M120: 1,542 | N120: 0.18 | O120: 2.5
D121: Anglesey | E121: Isle of Anglesey 008D | F121: W00000217 | G121: W01000042 | H121: 9,447,233 | I121: 833 | J121: 11,341 | K121: 127 | L121: 1,440,307 | M121: 1,440 | N121: 0.16 | O121: 2.3
D122: Anglesey | E122: Isle of Anglesey 008D | F122: W00000218 | G122: W01000042 | H122: 9,447,233 | I122: 833 | J122: 11,341 | K122: 128 | L122: 1,451,648 | M122: 1,452 | N122: 0.17 | O122: 3.0
D123: Anglesey | E123: Isle of Anglesey 008D | F123: W00000219 | G123: W01000042 | H123: 9,447,233 | I123: 833 | J123: 11,341 | K123: 129 | L123: 1,462,989 | M123: 1,463 | N123: 0.17 | O123: 2.6
D124: Anglesey | E124: Isle of Anglesey 003D | F124: W00000148 | G124: W01000030 | H124: 9,752,956 | I124: 958 | J124: 10,181 | K124: 98 | L124: 997,738 | M124: 998 | N124: 0.11 | O124: 3.9
D125: Anglesey | E125: Isle of Anglesey 003D | F125: W00000149 | G125: W01000030 | H125: 9,752,956 | I125: 958 | J125: 10,181 | K125: 133 | L125: 1,354,073 | M125: 1,354 | N125: 0.15 | O125: 0.3
D126: Anglesey | E126: Isle of Anglesey 003D | F126: W00000150 | G126: W01000030 | H126: 9,752,956 | I126: 958 | J126: 10,181 | K126: 160 | L126: 1,628,960 | M126: 1,629 | N126: 0.19 | O126: 1.4
D127: Anglesey | E127: Isle of Anglesey 003D | F127: W00000151 | G127: W01000030 | H127: 9,752,956 | I127: 958 | J127: 10,181 | K127: 135 | L127: 1,374,435 | M127: 1,374 | N127: 0.16 | O127: 4.8
D128: Anglesey | E128: Isle of Anglesey 003D | F128: W00000152 | G128: W01000030 | H128: 9,752,956 | I128: 958 | J128: 10,181 | K128: 140 | L128: 1,425,340 | M128: 1,425 | N128: 0.16 | O128: 5.4
D129: Anglesey | E129: Isle of Anglesey 003D | F129: W00000153 | G129: W01000030 | H129: 9,752,956 | I129: 958 | J129: 10,181 | K129: 135 | L129: 1,374,435 | M129: 1,374 | N129: 0.16 | O129: 0.4
D130: Anglesey | E130: Isle of Anglesey 003D | F130: W00000154 | G130: W01000030 | H130: 9,752,956 | I130: 958 | J130: 10,181 | K130: 125 | L130: 1,272,625 | M130: 1,273 | N130: 0.15 | O130: 0.7
D131: Anglesey | E131: Isle of Anglesey 003D | F131: W00000155 | G131: W01000030 | H131: 9,752,956 | I131: 958 | J131: 10,181 | K131: 122 | L131: 1,242,082 | M131: 1,242 | N131: 0.14 | O131: 2.0
D132: Anglesey | E132: Isle of Anglesey 005B | F132: W00000057 | G132: W01000013 | H132: 10,034,250 | I132: 620 | J132: 16,184 | K132: 152 | L132: 2,459,968 | M132: 2,460 | N132: 0.28 | O132: 2.3
D133: Anglesey | E133: Isle of Anglesey 005B | F133: W00000058 | G133: W01000013 | H133: 10,034,250 | I133: 620 | J133: 16,184 | K133: 175 | L133: 2,832,200 | M133: 2,832 | N133: 0.32 | O133: 0.2
D134: Anglesey | E134: Isle of Anglesey 005B | F134: W00000059 | G134: W01000013 | H134: 10,034,250 | I134: 620 | J134: 16,184 | K134: 131 | L134: 2,120,104 | M134: 2,120 | N134: 0.24 | O134: 4.4
D135: Anglesey | E135: Isle of Anglesey 005B | F135: W00000060 | G135: W01000013 | H135: 10,034,250 | I135: 620 | J135: 16,184 | K135: 144 | L135: 2,330,496 | M135: 2,330 | N135: 0.27 | O135: 0.6
D136: Anglesey | E136: Isle of Anglesey 005B | F136: W00000061 | G136: W01000013 | H136: 10,034,250 | I136: 620 | J136: 16,184 | K136: 139 | L136: 2,249,576 | M136: 2,250 | N136: 0.26 | O136: 0.4
D137: Anglesey | E137: Isle of Anglesey 005B | F137: W00000062 | G137: W01000013 | H137: 10,034,250 | I137: 620 | J137: 16,184 | K137: 170 | L137: 2,751,280 | M137: 2,751 | N137: 0.31 | O137: 0.0
D138: Anglesey | E138: Isle of Anglesey 005B | F138: W00000063 | G138: W01000013 | H138: 10,034,250 | I138: 620 | J138: 16,184 | K138: 135 | L138: 2,184,840 | M138: 2,185 | N138: 0.25 | O138: 0.0
D139: Anglesey | E139: Isle of Anglesey 006C | F139: W00000064 | G139: W01000014 | H139: 10,133,065 | I139: 862 | J139: 11,755 | K139: 107 | L139: 1,257,785 | M139: 1,258 | N139: 0.14 | O139: 0.0
D140: Anglesey | E140: Isle of Anglesey 006C | F140: W00000065 | G140: W01000014 | H140: 10,133,065 | I140: 862 | J140: 11,755 | K140: 141 | L140: 1,657,455 | M140: 1,657 | N140: 0.19 | O140: 1.6
D141: Anglesey | E141: Isle of Anglesey 006C | F141: W00000066 | G141: W01000014 | H141: 10,133,065 | I141: 862 | J141: 11,755 | K141: 132 | L141: 1,551,660 | M141: 1,552 | N141: 0.18 | O141: 2.1
D142: Anglesey | E142: Isle of Anglesey 006C | F142: W00000067 | G142: W01000014 | H142: 10,133,065 | I142: 862 | J142: 11,755 | K142: 214 | L142: 2,515,570 | M142: 2,516 | N142: 0.29 | O142: 0.2
D143: Anglesey | E143: Isle of Anglesey 006C | F143: W00000068 | G143: W01000014 | H143: =IFERROR(VLOOKUP($G143,RHD_LSOA_Lookup,2,FALSE),0) -> 10,133,065 | I143: =IFERROR(VLOOKUP($G143,RHD_LSOA_Lookup,3,FALSE),0) -> 862 | J143: =IFERROR(VLOOKUP($G143,RHD_LSOA_Lookup,4,FALSE),0) -> 11,755 | K143: =VLOOKUP($F143,dwellings_lookup,2,FALSE) -> 185 | L143: =J143*K143 -> 2,174,675 | M143: =L143/1000 -> 2,175 | N143: =M143/(24*365) -> 0.25 | O143: =N143/VLOOKUP($F143,lookup_area,10,FALSE) -> 0.5
D144: Anglesey | E144: Isle of Anglesey 006C | F144: W00000069 | G144: W01000014 | H144: 10,133,065 | I144: 862 | J144: 11,755 | K144: 151 | L144: 1,775,005 | M144: 1,775 | N144: 0.20 | O144: 3.3
D145: Anglesey | E145: Isle of Anglesey 005A | F145: W00000014 | G145: W01000005 | H145: 11,122,081 | I145: 902 | J145: 12,330 | K145: 117 | L145: 1,442,610 | M145: 1,443 | N145: 0.16 | O145: 0.0
D146: Anglesey | E146: Isle of Anglesey 005A | F146: W00000015 | G146: W01000005 | H146: 11,122,081 | I146: 902 | J146: 12,330 | K146: 138 | L146: 1,701,540 | M146: 1,702 | N146: 0.19 | O146: 0.1
D147: Anglesey | E147: Isle of Anglesey 005A | F147: W00000016 | G147: W01000005 | H147: 11,122,081 | I147: 902 | J147: 12,330 | K147: 121 | L147: 1,491,930 | M147: 1,492 | N147: 0.17 | O147: 1.1
D148: Anglesey | E148: Isle of Anglesey 005A | F148: W00000017 | G148: W01000005 | H148: 11,122,081 | I148: 902 | J148: 12,330 | K148: 165 | L148: 2,034,450 | M148: 2,034 | N148: 0.23 | O148: 5.0
D149: Anglesey | E149: Isle of Anglesey 005A | F149: W00000018 | G149: W01000005 | H149: 11,122,081 | I149: 902 | J149: 12,330 | K149: 136 | L149: 1,676,880 | M149: 1,677 | N149: 0.19 | O149: 1.1
D150: Anglesey | E150: Isle of Anglesey 005A | F150: W00000019 | G150: W01000005 | H150: 11,122,081 | I150: 902 | J150: 12,330 | K150: 170 | L150: 2,096,100 | M150: 2,096 | N150: 0.24 | O150: 1.8
D151: Anglesey | E151: Isle of Anglesey 005A | F151: W00000020 | G151: W01000005 | H151: 11,122,081 | I151: 902 | J151: 12,330 | K151: 132 | L151: 1,627,560 | M151: 1,628 | N151: 0.19 | O151: 4.1
D152: Anglesey | E152: Isle of Anglesey 005A | F152: W00000021 | G152: W01000005 | H152: 11,122,081 | I152: 902 | J152: 12,330 | K152: 153 | L152: 1,886,490 | M152: 1,886 | N152: 0.22 | O152: 0.6
D153: Anglesey | E153: Isle of Anglesey 001A | F153: W00000005 | G153: W01000003 | H153: 12,009,967 | I153: 1,079 | J153: 11,131 | K153: 233 | L153: 2,593,523 | M153: 2,594 | N153: 0.30 | O153: 0.3
D154: Anglesey | E154: Isle of Anglesey 001A | F154: W00000006 | G154: W01000003 | H154: 12,009,967 | I154: 1,079 | J154: 11,131 | K154: 175 | L154: 1,947,925 | M154: 1,948 | N154: 0.22 | O154: 2.0
D155: Anglesey | E155: Isle of Anglesey 001A | F155: W00000008 | G155: W01000003 | H155: 12,009,967 | I155: 1,079 | J155: 11,131 | K155: 131 | L155: 1,458,161 | M155: 1,458 | N155: 0.17 | O155: 0.6
D156: Anglesey | E156: Isle of Anglesey 001A | F156: W00000009 | G156: W01000003 | H156: 12,009,967 | I156: 1,079 | J156: 11,131 | K156: 193 | L156: 2,148,283 | M156: 2,148 | N156: 0.25 | O156: 0.7
D157: Anglesey | E157: Isle of Anglesey 001A | F157: W00009977 | G157: W01000003 | H157: 12,009,967 | I157: 1,079 | J157: 11,131 | K157: 121 | L157: 1,346,851 | M157: 1,347 | N157: 0.15 | O157: 1.4
D158: Anglesey | E158: Isle of Anglesey 001A | F158: W00009978 | G158: W01000003 | H158: 12,009,967 | I158: 1,079 | J158: 11,131 | K158: 129 | L158: 1,435,899 | M158: 1,436 | N158: 0.16 | O158: 0.5
D159: Anglesey | E159: Isle of Anglesey 001A | F159: W00009979 | G159: W01000003 | H159: 12,009,967 | I159: 1,079 | J159: 11,131 | K159: 122 | L159: 1,357,982 | M159: 1,358 | N159: 0.16 | O159: 0.5
D160: Anglesey | E160: Isle of Anglesey 001A | F160: W00009980 | G160: W01000003 | H160: 12,009,967 | I160: 1,079 | J160: 11,131 | K160: 130 | L160: 1,447,030 | M160: 1,447 | N160: 0.17 | O160: 1.2
J161: =AVERAGE(J15:J160) -> 12,195
D162: Blaenau Gwent | E162: Blaenau Gwent 009D | F162: W00007710 | G162: W01001476 | H162: =IFERROR(VLOOKUP($G162,RHD_LSOA_Lookup,2,FALSE),0) -> 6,024,916 | I162: =IFERROR(VLOOKUP($G162,RHD_LSOA_Lookup,3,FALSE),0) -> 466 | J162: =IFERROR(VLOOKUP($G162,RHD_LSOA_Lookup,4,FALSE),0) -> 12,929 | K162: =VLOOKUP($F162,dwellings_lookup,2,FALSE) -> 134 | L162: =J162*K162 -> 1,732,486 | M162: =L162/1000 -> 1,732 | N162: =M162/(24*365) -> 0.20 | O162: =N162/VLOOKUP($F162,lookup_area,10,FALSE) -> 0.1
D163: Blaenau Gwent | E163: Blaenau Gwent 009D | F163: W00007711 | G163: W01001476 | H163: 6,024,916 | I163: 466 | J163: 12,929 | K163: 129 | L163: 1,667,841 | M163: 1,668 | N163: 0.19 | O163: 5.7
D164: Blaenau Gwent | E164: Blaenau Gwent 009D | F164: W00007712 | G164: W01001476 | H164: 6,024,916 | I164: 466 | J164: 12,929 | K164: 120 | L164: 1,551,480 | M164: 1,551 | N164: 0.18 | O164: 4.1
D165: Blaenau Gwent | E165: Blaenau Gwent 009D | F165: W00007715 | G165: W01001476 | H165: 6,024,916 | I165: 466 | J165: 12,929 | K165: 135 | L165: 1,745,415 | M165: 1,745 | N165: 0.20 | O165: 2.4
D166: Blaenau Gwent | E166: Blaenau Gwent 007D | F166: W00007622 | G166: W01001459 | H166: 7,090,903 | I166: 473 | J166: 14,991 | K166: 134 | L166: 2,008,794 | M166: 2,009 | N166: 0.23 | O166: 2.4
D167: Blaenau Gwent | E167: Blaenau Gwent 007D | F167: W00007629 | G167: W01001459 | H167: 7,090,903 | I167: 473 | J167: 14,991 | K167: 137 | L167: 2,053,767 | M167: 2,054 | N167: 0.23 | O167: 2.7
D168: Blaenau Gwent | E168: Blaenau Gwent 007D | F168: W00007630 | G168: W01001459 | H168: 7,090,903 | I168: 473 | J168: 14,991 | K168: 135 | L168: 2,023,785 | M168: 2,024 | N168: 0.23 | O168: 0.5
D169: Blaenau Gwent | E169: Blaenau Gwent 007D | F169: W00007635 | G169: W01001459 | H169: 7,090,903 | I169: 473 | J169: 14,991 | K169: 66 | L169: 989,406 | M169: 989 | N169: 0.11 | O169: 2.2
D170: Blaenau Gwent | E170: Blaenau Gwent 005F | F170: W00007667 | G170: W01001469 | H170: 7,202,614 | I170: 514 | J170: 14,013 | K170: 134 | L170: 1,877,742 | M170: 1,878 | N170: 0.21 | O170: 1.7
D171: Blaenau Gwent | E171: Blaenau Gwent 005F | F171: W00007668 | G171: W01001469 | H171: 7,202,614 | I171: 514 | J171: 14,013 | K171: 137 | L171: 1,919,781 | M171: 1,920 | N171: 0.22 | O171: 0.2
D172: Blaenau Gwent | E172: Blaenau Gwent 005F | F172: W00007669 | G172: W01001469 | H172: 7,202,614 | I172: 514 | J172: 14,013 | K172: 113 | L172: 1,583,469 | M172: 1,583 | N172: 0.18 | O172: 2.8
D173: Blaenau Gwent | E173: Blaenau Gwent 005F | F173: W00007670 | G173: W01001469 | H173: 7,202,614 | I173: 514 | J173: 14,013 | K173: 134 | L173: 1,877,742 | M173: 1,878 | N173: 0.21 | O173: 1.4
D174: Blaenau Gwent | E174: Blaenau Gwent 001B | F174: W00007528 | G174: W01001441 | H174: 7,207,632 | I174: 534 | J174: 13,497 | K174: 120 | L174: 1,619,640 | M174: 1,620 | N174: 0.18 | O174: 3.6
D175: Blaenau Gwent | E175: Blaenau Gwent 001B | F175: W00007533 | G175: W01001441 | H175: 7,207,632 | I175: 534 | J175: 13,497 | K175: 132 | L175: 1,781,604 | M175: 1,782 | N175: 0.20 | O175: 1.6
D176: Blaenau Gwent | E176: Blaenau Gwent 001B | F176: W00007534 | G176: W01001441 | H176: 7,207,632 | I176: 534 | J176: 13,497 | K176: 124 | L176: 1,673,628 | M176: 1,674 | N176: 0.19 | O176: 0.2
D177: Blaenau Gwent | E177: Blaenau Gwent 001B | F177: W00007536 | G177: W01001441 | H177: 7,207,632 | I177: 534 | J177: 13,497 | K177: 137 | L177: 1,849,089 | M177: 1,849 | N177: 0.21 | O177: 1.6
D178: Blaenau Gwent | E178: Blaenau Gwent 002A | F178: W00007556 | G178: W01001446 | H178: 7,741,761 | I178: 480 | J178: 16,129 | K178: 137 | L178: 2,209,673 | M178: 2,210 | N178: 0.25 | O178: 3.8
D179: Blaenau Gwent | E179: Blaenau Gwent 002A | F179: W00007564 | G179: W01001446 | H179: 7,741,761 | I179: 480 | J179: 16,129 | K179: 130 | L179: 2,096,770 | M179: 2,097 | N179: 0.24 | O179: 1.8
D180: Blaenau Gwent | E180: Blaenau Gwent 002A | F180: W00007571 | G180: W01001446 | H180: 7,741,761 | I180: 480 | J180: 16,129 | K180: 123 | L180: 1,983,867 | M180: 1,984 | N180: 0.23 | O180: 0.1
D181: Blaenau Gwent | E181: Blaenau Gwent 002A | F181: W00007573 | G181: W01001446 | H181: 7,741,761 | I181: 480 | J181: 16,129 | K181: 116 | L181: 1,870,964 | M181: 1,871 | N181: 0.21 | O181: 1.4
D182: Blaenau Gwent | E182: Blaenau Gwent 009A | F182: W00007651 | G182: W01001464 | H182: 7,966,083 | I182: 665 | J182: 11,979 | K182: 128 | L182: 1,533,312 | M182: 1,533 | N182: 0.18 | O182: 1.1
D183: Blaenau Gwent | E183: Blaenau Gwent 009A | F183: W00007652 | G183: W01001464 | H183: 7,966,083 | I183: 665 | J183: 11,979 | K183: 143 | L183: 1,712,997 | M183: 1,713 | N183: 0.20 | O183: 2.2
D184: Blaenau Gwent | E184: Blaenau Gwent 009A | F184: W00007653 | G184: W01001464 | H184: 7,966,083 | I184: 665 | J184: 11,979 | K184: 183 | L184: 2,192,157 | M184: 2,192 | N184: 0.25 | O184: 0.2
D185: Blaenau Gwent | E185: Blaenau Gwent 009A | F185: W00007654 | G185: W01001464 | H185: 7,966,083 | I185: 665 | J185: 11,979 | K185: 123 | L185: 1,473,417 | M185: 1,473 | N185: 0.17 | O185: 2.6
D186: Blaenau Gwent | E186: Blaenau Gwent 009A | F186: W00007655 | G186: W01001464 | H186: 7,966,083 | I186: 665 | J186: 11,979 | K186: 148 | L186: 1,772,892 | M186: 1,773 | N186: 0.20 | O186: 3.8
D187: Blaenau Gwent | E187: Blaenau Gwent 003D | F187: W00007703 | G187: W01001475 | H187: 7,977,905 | I187: 530 | J187: 15,053 | K187: 130 | L187: 1,956,890 | M187: 1,957 | N187: 0.22 | O187: 0.5
D188: Blaenau Gwent | E188: Blaenau Gwent 003D | F188: W00007704 | G188: W01001475 | H188: 7,977,905 | I188: 530 | J188: 15,053 | K188: 118 | L188: 1,776,254 | M188: 1,776 | N188: 0.20 | O188: 1.0
D189: Blaenau Gwent | E189: Blaenau Gwent 003D | F189: W00007708 | G189: W01001475 | H189: 7,977,905 | I189: 530 | J189: 15,053 | K189: 126 | L189: 1,896,678 | M189: 1,897 | N189: 0.22 | O189: 1.7
D190: Blaenau Gwent | E190: Blaenau Gwent 003D | F190: W00007709 | G190: W01001475 | H190: 7,977,905 | I190: 530 | J190: 15,053 | K190: 156 | L190: 2,348,268 | M190: 2,348 | N190: 0.27 | O190: 3.0
D191: Blaenau Gwent | E191: Blaenau Gwent 007C | F191: W00007581 | G191: W01001452 | H191: 8,274,340 | I191: 586 | J191: 14,120 | K191: 136 | L191: 1,920,320 | M191: 1,920 | N191: 0.22 | O191: 0.2
D192: Blaenau Gwent | E192: Blaenau Gwent 007C | F192: W00007582 | G192: W01001452 | H192: 8,274,340 | I192: 586 | J192: 14,120 | K192: 123 | L192: 1,736,760 | M192: 1,737 | N192: 0.20 | O192: 2.9
D193: Blaenau Gwent | E193: Blaenau Gwent 007C | F193: W00007583 | G193: W01001452 | H193: 8,274,340 | I193: 586 | J193: 14,120 | K193: 137 | L193: 1,934,440 | M193: 1,934 | N193: 0.22 | O193: 2.6
D194: Blaenau Gwent | E194: Blaenau Gwent 007C | F194: W00007584 | G194: W01001452 | H194: 8,274,340 | I194: 586 | J194: 14,120 | K194: 122 | L194: 1,722,640 | M194: 1,723 | N194: 0.20 | O194: 0.4
D195: Blaenau Gwent | E195: Blaenau Gwent 007C | F195: W00007585 | G195: W01001452 | H195: 8,274,340 | I195: 586 | J195: 14,120 | K195: 124 | L195: 1,750,880 | M195: 1,751 | N195: 0.20 | O195: 0.2
D196: Blaenau Gwent | E196: Blaenau Gwent 007A | F196: W00007577 | G196: W01001450 | H196: 8,342,290 | I196: 559 | J196: 14,924 | K196: 141 | L196: 2,104,284 | M196: 2,104 | N196: 0.24 | O196: 6.1
D197: Blaenau Gwent | E197: Blaenau Gwent 007A | F197: W00007587 | G197: W01001450 | H197: 8,342,290 | I197: 559 | J197: 14,924 | K197: 167 | L197: 2,492,308 | M197: 2,492 | N197: 0.28 | O197: 0.4
D198: Blaenau Gwent | E198: Blaenau Gwent 007A | F198: W00007588 | G198: W01001450 | H198: 8,342,290 | I198: 559 | J198: 14,924 | K198: 153 | L198: 2,283,372 | M198: 2,283 | N198: 0.26 | O198: 0.2
D199: Blaenau Gwent | E199: Blaenau Gwent 007A | F199: W00007589 | G199: W01001450 | H199: 8,342,290 | I199: 559 | J199: 14,924 | K199: 143 | L199: 2,134,132 | M199: 2,134 | N199: 0.24 | O199: 6.2
D200: Blaenau Gwent | E200: Blaenau Gwent 008B | F200: W00007503 | G200: W01001436 | H200: 8,516,198 | I200: 698 | J200: 12,201 | K200: 120 | L200: 1,464,120 | M200: 1,464 | N200: 0.17 | O200: 1.4
D201: Blaenau Gwent | E201: Blaenau Gwent 008B | F201: W00007504 | G201: W01001436 | H201: 8,516,198 | I201: 698 | J201: 12,201 | K201: 149 | L201: 1,817,949 | M201: 1,818 | N201: 0.21 | O201: 6.0
D202: Blaenau Gwent | E202: Blaenau Gwent 008B | F202: W00007505 | G202: W01001436 | H202: 8,516,198 | I202: 698 | J202: 12,201 | K202: 139 | L202: 1,695,939 | M202: 1,696 | N202: 0.19 | O202: 6.2
D203: Blaenau Gwent | E203: Blaenau Gwent 008B | F203: W00007506 | G203: W01001436 | H203: 8,516,198 | I203: 698 | J203: 12,201 | K203: 176 | L203: 2,147,376 | M203: 2,147 | N203: 0.25 | O203: 6.3
D204: Blaenau Gwent | E204: Blaenau Gwent 008B | F204: W00007507 | G204: W01001436 | H204: 8,516,198 | I204: 698 | J204: 12,201 | K204: 139 | L204: 1,695,939 | M204: 1,696 | N204: 0.19 | O204: 6.9
D205: Blaenau Gwent | E205: Blaenau Gwent 009B | F205: W00007656 | G205: W01001465 | H205: 8,542,252 | I205: 689 | J205: 12,398 | K205: 134 | L205: 1,661,332 | M205: 1,661 | N205: 0.19 | O205: 0.2
... 4295 more rows
